Body,Body name,Service label,Service divison label,Expenditure category,Detailed expenditure type,Detailed expenditure code,Date paid,Transaction number,Net amount,Capital or revenue,Supplier name
http://statistics.data.gov.uk/doc/local-authority/00DA,Leeds City Council,Central & Corporate Functions,Commercial Services Trading Services,Supplies and Services,Food & Drink,231,26-May-11,1105-00001,528,R,3663 Booker Food Services
http://statistics.data.gov.uk/doc/local-authority/00DA,Leeds City Council,Central & Corporate Functions,Commercial Services Trading Services,Supplies and Services,Food & Drink,231,26-May-11,1105-00002,1336.2,R,3663 Booker Food Services
http://statistics.data.gov.uk/doc/local-authority/00DA,Leeds City Council,Childrens Services,Early Years Service,Third Party Payments,Services Rendered By Voluntary Sector,505,26-May-11,1105-00003,63809,R,4 Children (Trading Ltd)
http://statistics.data.gov.uk/doc/local-authority/00DA,Leeds City Council,Childrens Services,Youth Justice,Employees,Agency Staff,8,06-May-11,1105-00004,2000.7,R,4 Site Security Services Ltd
http://statistics.data.gov.uk/doc/local-authority/00DA,Leeds City Council,Central & Corporate Functions,Commercial Services Trading Services,Supplies and Services,Other Hired And Contracted Services,265,11-May-11,1105-00005,4503.4,R,4 Site Security Services Ltd
http://statistics.data.gov.uk/doc/local-authority/00DA,Leeds City Council,Central & Corporate Functions,Commercial Services Trading Services,Supplies and Services,Other Hired And Contracted Services,265,11-May-11,1105-00006,1366.9,R,4 Site Security Services Ltd
http://statistics.data.gov.uk/doc/local-authority/00DA,Leeds City Council,Central & Corporate Functions,Commercial Services Trading Services,Supplies and Services,Other Hired And Contracted Services,265,11-May-11,1105-00007,1500.06,R,4 Site Security Services Ltd
http://statistics.data.gov.uk/doc/local-authority/00DA,Leeds City Council,Central & Corporate Functions,Commercial Services Trading Services,Supplies and Services,Other Hired And Contracted Services,265,11-May-11,1105-00008,2657.72,R,4 Site Security Services Ltd
http://statistics.data.gov.uk/doc/local-authority/00DA,Leeds City Council,Central & Corporate Functions,Commercial Services Trading Services,Supplies and Services,Other Hired And Contracted Services,265,11-May-11,1105-00009,1016.35,R,4 Site Security Services Ltd
http://statistics.data.gov.uk/doc/local-authority/00DA,Leeds City Council,Central & Corporate Functions,Commercial Services Trading Services,Supplies and Services,Other Hired And Contracted Services,265,11-May-11,1105-00010,3418.03,R,4 Site Security Services Ltd
http://statistics.data.gov.uk/doc/local-authority/00DA,Leeds City Council,Central & Corporate Functions,Commercial Services Trading Services,Supplies and Services,Other Hired And Contracted Services,265,11-May-11,1105-00011,1211.87,R,4 Site Security Services Ltd
http://statistics.data.gov.uk/doc/local-authority/00DA,Leeds City Council,Central & Corporate Functions,Commercial Services Trading Services,Supplies and Services,Other Hired And Contracted Services,265,11-May-11,1105-00012,798.95,R,4 Site Security Services Ltd
http://statistics.data.gov.uk/doc/local-authority/00DA,Leeds City Council,Central & Corporate Functions,Commercial Services Trading Services,Supplies and Services,Other Hired And Contracted Services,265,11-May-11,1105-00013,3326.22,R,4 Site Security Services Ltd
http://statistics.data.gov.uk/doc/local-authority/00DA,Leeds City Council,Childrens Services,Youth Justice,Employees,Agency Staff,8,12-May-11,1105-00014,2410,R,4 Site Security Services Ltd
http://statistics.data.gov.uk/doc/local-authority/00DA,Leeds City Council,City Development,Recreation,Supplies and Services,Security Services(Non Infrastructure),262,13-May-11,1105-00015,1670.9,R,4 Site Security Services Ltd
http://statistics.data.gov.uk/doc/local-authority/00DA,Leeds City Council,Environment & Neighbourhoods,Regeneration,Supplies and Services,Well Being Small Grants Projects,228,11-May-11,1105-00016,500,R,7th Leeds Boys Brigade
http://statistics.data.gov.uk/doc/local-authority/00DA,East - North East,East - North East,Technical Services,Supplies and Services,Other Materials,205,12-May-11,1105-00017,780.8,R,A Andrews & Sons (Marbles & Tiles)
http://statistics.data.gov.uk/doc/local-authority/00DA,Leeds City Council,Environment & Neighbourhoods,Streetscene Environmental Services,Supplies and Services,Other Hired And Contracted Services,265,09-May-11,1105-00018,3744,R,A Appleyard
http://statistics.data.gov.uk/doc/local-authority/00DA,Leeds City Council,Environment & Neighbourhoods,Streetscene Environmental Services,Supplies and Services,Other Hired And Contracted Services,265,10-May-11,1105-00019,4160,R,A Appleyard
http://statistics.data.gov.uk/doc/local-authority/00DA,Leeds City Council,Adult Social Care,Roseville Enterprises,Supplies and Services,Operational Furniture And Equipment,203,13-May-11,1105-00020,1300.72,R,A D G Engineering Ltd
http://statistics.data.gov.uk/doc/local-authority/00DA,East - North East,East - North East,Technical Services,Supplies and Services,Other Hired And Contracted Services,265,12-May-11,1105-00021,487.22,R,A D Simpson Construction Ltd
http://statistics.data.gov.uk/doc/local-authority/00DA,East - North East,East - North East,Technical Services,Employees,Temporary Staff-Basic,9,18-May-11,1105-00022,920,R,A D Simpson Construction Ltd
http://statistics.data.gov.uk/doc/local-authority/00DA,East - North East,East - North East,Technical Services,Employees,Temporary Staff-Basic,9,18-May-11,1105-00023,920,R,A D Simpson Construction Ltd
http://statistics.data.gov.uk/doc/local-authority/00DA,East - North East,East - North East,Technical Services,Employees,Temporary Staff-Basic,9,18-May-11,1105-00024,920,R,A D Simpson Construction Ltd
http://statistics.data.gov.uk/doc/local-authority/00DA,East - North East,East - North East,Technical Services,Employees,Temporary Staff-Basic,9,18-May-11,1105-00025,920,R,A D Simpson Construction Ltd
http://statistics.data.gov.uk/doc/local-authority/00DA,East - North East,East - North East,Technical Services,Employees,Temporary Staff-Basic,9,18-May-11,1105-00026,920,R,A D Simpson Construction Ltd
http://statistics.data.gov.uk/doc/local-authority/00DA,East - North East,East - North East,Technical Services,Supplies and Services,Other Hired And Contracted Services,265,26-May-11,1105-00027,615.96,R,A D Simpson Construction Ltd
http://statistics.data.gov.uk/doc/local-authority/00DA,East - North East,East - North East,Technical Services,Supplies and Services,Other Hired And Contracted Services,265,26-May-11,1105-00028,1246.33,R,A D Simpson Construction Ltd
http://statistics.data.gov.uk/doc/local-authority/00DA,East - North East,East - North East,Technical Services,Supplies and Services,Other Hired And Contracted Services,265,26-May-11,1105-00029,766.45,R,A D Simpson Construction Ltd
http://statistics.data.gov.uk/doc/local-authority/00DA,East - North East,East - North East,Technical Services,Supplies and Services,Other Hired And Contracted Services,265,26-May-11,1105-00030,452.2,R,A D Simpson Construction Ltd
http://statistics.data.gov.uk/doc/local-authority/00DA,East - North East,East - North East,Technical Services,Supplies and Services,Other Hired And Contracted Services,265,26-May-11,1105-00031,1641.2,R,A D Simpson Construction Ltd
http://statistics.data.gov.uk/doc/local-authority/00DA,East - North East,East - North East,Technical Services,Supplies and Services,Other Hired And Contracted Services,265,26-May-11,1105-00032,1187.8,R,A D Simpson Construction Ltd
http://statistics.data.gov.uk/doc/local-authority/00DA,East - North East,East - North East,Technical Services,Supplies and Services,Other Hired And Contracted Services,265,26-May-11,1105-00033,419.5,R,A D Simpson Construction Ltd
http://statistics.data.gov.uk/doc/local-authority/00DA,East - North East,East - North East,Technical Services,Supplies and Services,Other Hired And Contracted Services,265,26-May-11,1105-00034,12973.74,R,A D Simpson Construction Ltd
http://statistics.data.gov.uk/doc/local-authority/00DA,East - North East,East - North East,Technical Services,Supplies and Services,Other Hired And Contracted Services,265,26-May-11,1105-00035,689.5,R,A D Simpson Construction Ltd
http://statistics.data.gov.uk/doc/local-authority/00DA,Leeds City Council,Central & Corporate Functions,Corporate Property Management,Premises,Plant and Machinery,102,24-May-11,1105-00036,799,R,A J H Pump Supply & Repair Ltd
http://statistics.data.gov.uk/doc/local-authority/00DA,Leeds City Council,Central & Corporate Functions,Commercial Services Trading Services,Supplies and Services,Operational Materials,205,27-May-11,1105-00037,1212,R,A J H Pump Supply & Repair Ltd
http://statistics.data.gov.uk/doc/local-authority/00DA,Leeds City Council,Childrens Services,Children Looked After,Third Party Payments,General External Residential Placements,507,26-May-11,1105-00038,13000,R,A Lowrie Care Service Limited
http://statistics.data.gov.uk/doc/local-authority/00DA,Leeds City Council,Central & Corporate Functions,Customer Services,Supplies and Services,Other Hired And Contracted Services,265,06-May-11,1105-00039,969.05,R,A Namaki
http://statistics.data.gov.uk/doc/local-authority/00DA,Leeds City Council,Central & Corporate Functions,Commercial Services Trading Services,Supplies and Services,Operational Materials,205,04-May-11,1105-00040,3427.32,R,A O Smith Water Heaters
http://statistics.data.gov.uk/doc/local-authority/00DA,Leeds City Council,Central & Corporate Functions,Corporate Governance,Premises,Rents,141,19-May-11,1105-00041,600,R,A1 Amateur Boxing Club
http://statistics.data.gov.uk/doc/local-authority/00DA,Leeds City Council,Adult Social Care,Services For Older People - 65 And Over,Third Party Payments,Residential Care Emi,571,11-May-11,1105-00042,1151.92,R,Abbey Lea Residential Care Home
http://statistics.data.gov.uk/doc/local-authority/00DA,Leeds City Council,Adult Social Care,Services For Adults Under 65 Mental/Dis,Third Party Payments,Residential,580,11-May-11,1105-00043,1153.4,R,Abbeydale Care Home
http://statistics.data.gov.uk/doc/local-authority/00DA,Leeds City Council,City Development,Highways,Supplies and Services,Other Hired And Contracted Services,265,19-May-11,1105-00044,8345,R,Abi Alert
http://statistics.data.gov.uk/doc/local-authority/00DA,Leeds City Council,Environment & Neighbourhoods,South South East,Capital,Construction,3,05-May-11,1105-00045,4015,C,Able Bathing & Building Contractors Ltd
http://statistics.data.gov.uk/doc/local-authority/00DA,Leeds City Council,Environment & Neighbourhoods,South South East,Capital,Construction,3,06-May-11,1105-00046,4015,C,Able Bathing & Building Contractors Ltd
http://statistics.data.gov.uk/doc/local-authority/00DA,Leeds City Council,Environment & Neighbourhoods,Environmental Health,Capital,Construction,3,06-May-11,1105-00047,4400,C,Able Bathing & Building Contractors Ltd
http://statistics.data.gov.uk/doc/local-authority/00DA,Leeds City Council,Environment & Neighbourhoods,Environmental Health,Capital,Construction,3,06-May-11,1105-00048,12784,C,Able Bathing & Building Contractors Ltd
http://statistics.data.gov.uk/doc/local-authority/00DA,Leeds City Council,Environment & Neighbourhoods,Environmental Health,Capital,Construction,3,06-May-11,1105-00049,10726,C,Able Bathing & Building Contractors Ltd
http://statistics.data.gov.uk/doc/local-authority/00DA,Leeds City Council,Environment & Neighbourhoods,South South East,Capital,Construction,3,13-May-11,1105-00050,3600,C,Able Bathing & Building Contractors Ltd
http://statistics.data.gov.uk/doc/local-authority/00DA,Leeds City Council,Environment & Neighbourhoods,South South East,Capital,Construction,3,13-May-11,1105-00051,4015,C,Able Bathing & Building Contractors Ltd
http://statistics.data.gov.uk/doc/local-authority/00DA,Leeds City Council,Environment & Neighbourhoods,South South East,Capital,Construction,3,13-May-11,1105-00052,3600,C,Able Bathing & Building Contractors Ltd
http://statistics.data.gov.uk/doc/local-authority/00DA,Leeds City Council,Environment & Neighbourhoods,South South East,Capital,Construction,3,13-May-11,1105-00053,3600,C,Able Bathing & Building Contractors Ltd
http://statistics.data.gov.uk/doc/local-authority/00DA,Leeds City Council,Environment & Neighbourhoods,South South East,Capital,Construction,3,13-May-11,1105-00054,3600,C,Able Bathing & Building Contractors Ltd
http://statistics.data.gov.uk/doc/local-authority/00DA,Leeds City Council,Environment & Neighbourhoods,South South East,Capital,Construction,3,13-May-11,1105-00055,4015,C,Able Bathing & Building Contractors Ltd
http://statistics.data.gov.uk/doc/local-authority/00DA,Leeds City Council,Environment & Neighbourhoods,South South East,Capital,Construction,3,13-May-11,1105-00056,3600,C,Able Bathing & Building Contractors Ltd
http://statistics.data.gov.uk/doc/local-authority/00DA,Leeds City Council,Environment & Neighbourhoods,Environmental Health,Capital,Construction,3,13-May-11,1105-00057,1500,C,Able Bathing & Building Contractors Ltd
http://statistics.data.gov.uk/doc/local-authority/00DA,Leeds City Council,Environment & Neighbourhoods,Environmental Health,Capital,Construction,3,13-May-11,1105-00058,16000,C,Able Bathing & Building Contractors Ltd
http://statistics.data.gov.uk/doc/local-authority/00DA,Leeds City Council,Environment & Neighbourhoods,Environmental Health,Capital,Construction,3,13-May-11,1105-00059,4400,C,Able Bathing & Building Contractors Ltd
http://statistics.data.gov.uk/doc/local-authority/00DA,Leeds City Council,Environment & Neighbourhoods,Environmental Health,Capital,Construction,3,20-May-11,1105-00060,4150,C,Able Bathing & Building Contractors Ltd
http://statistics.data.gov.uk/doc/local-authority/00DA,Leeds City Council,Environment & Neighbourhoods,Environmental Health,Capital,Construction,3,20-May-11,1105-00061,4096.7,C,Able Bathing & Building Contractors Ltd
http://statistics.data.gov.uk/doc/local-authority/00DA,Leeds City Council,Environment & Neighbourhoods,Environmental Health,Capital,Construction,3,20-May-11,1105-00062,4710.2,C,Able Bathing & Building Contractors Ltd
http://statistics.data.gov.uk/doc/local-authority/00DA,Leeds City Council,Environment & Neighbourhoods,Environmental Health,Capital,Construction,3,20-May-11,1105-00063,2890,C,Able Bathing & Building Contractors Ltd
http://statistics.data.gov.uk/doc/local-authority/00DA,Leeds City Council,Environment & Neighbourhoods,South South East,Capital,Construction,3,24-May-11,1105-00064,3600,C,Able Bathing & Building Contractors Ltd
http://statistics.data.gov.uk/doc/local-authority/00DA,Leeds City Council,Environment & Neighbourhoods,South South East,Capital,Construction,3,24-May-11,1105-00065,3600,C,Able Bathing & Building Contractors Ltd
http://statistics.data.gov.uk/doc/local-authority/00DA,Leeds City Council,Environment & Neighbourhoods,South South East,Capital,Construction,3,24-May-11,1105-00066,4425,C,Able Bathing & Building Contractors Ltd
http://statistics.data.gov.uk/doc/local-authority/00DA,Leeds City Council,Environment & Neighbourhoods,South South East,Capital,Construction,3,26-May-11,1105-00067,4341.09,C,Able Bathing & Building Contractors Ltd
http://statistics.data.gov.uk/doc/local-authority/00DA,Leeds City Council,Environment & Neighbourhoods,Environmental Health,Capital,Construction,3,31-May-11,1105-00068,2890,C,Able Bathing & Building Contractors Ltd
http://statistics.data.gov.uk/doc/local-authority/00DA,Leeds City Council,Other Education Services,Active Accounts,Employees,Agency Staff,8,26-May-11,1105-00069,785,R,Academic Appointments Ltd
http://statistics.data.gov.uk/doc/local-authority/00DA,Leeds City Council,Other Education Services,Active Accounts,Employees,Agency Staff,8,26-May-11,1105-00070,2250,R,Academic Appointments Ltd
http://statistics.data.gov.uk/doc/local-authority/00DA,Leeds City Council,Other Education Services,Active Accounts,Employees,Agency Staff,8,26-May-11,1105-00071,840,R,Academic Appointments Ltd
http://statistics.data.gov.uk/doc/local-authority/00DA,Leeds City Council,City Development,Recreation,Supplies and Services,Security Services(Non Infrastructure),262,11-May-11,1105-00072,782.28,R,Acclaimed Security Services
http://statistics.data.gov.uk/doc/local-authority/00DA,Leeds City Council,City Development,Recreation,Supplies and Services,Security Services(Non Infrastructure),262,16-May-11,1105-00073,1161.12,R,Acclaimed Security Services
http://statistics.data.gov.uk/doc/local-authority/00DA,Leeds City Council,City Development,Recreation,Employees,Agency Staff,8,18-May-11,1105-00074,438.24,R,Acclaimed Security Services
http://statistics.data.gov.uk/doc/local-authority/00DA,Leeds City Council,City Development,Recreation,Supplies and Services,Security Services(Non Infrastructure),262,24-May-11,1105-00075,1062.72,R,Acclaimed Security Services
http://statistics.data.gov.uk/doc/local-authority/00DA,Leeds City Council,City Development,Recreation,Employees,Agency Staff,8,27-May-11,1105-00076,876.48,R,Acclaimed Security Services
http://statistics.data.gov.uk/doc/local-authority/00DA,Leeds City Council,City Development,Recreation,Supplies and Services,Security Services(Non Infrastructure),262,27-May-11,1105-00077,1436.64,R,Acclaimed Security Services
http://statistics.data.gov.uk/doc/local-authority/00DA,Leeds City Council as Accountable Body,Leeds Community Equip Store Pooled Budgt,Leeds Community Equip Store Pooled Budgt,Supplies and Services,Other Equipment,203,31-May-11,1105-00078,1165,R,Accora
http://statistics.data.gov.uk/doc/local-authority/00DA,Leeds City Council,Insurance,Insurance,Supplies and Services,Insurance Claims,248,05-May-11,1105-00079,1700,R,Accountant General Of The Senior Court
http://statistics.data.gov.uk/doc/local-authority/00DA,Leeds City Council,Insurance,Insurance,Supplies and Services,Insurance Claims,248,12-May-11,1105-00080,2000,R,Accountant General Of The Senior Court
http://statistics.data.gov.uk/doc/local-authority/00DA,Leeds City Council,Insurance,Insurance,Supplies and Services,Insurance Claims,248,19-May-11,1105-00081,4000,R,Accountant General Of The Senior Court
http://statistics.data.gov.uk/doc/local-authority/00DA,Leeds City Council,Environment & Neighbourhoods,Community Safety,Supplies and Services,Other Hired And Contracted Services,265,23-May-11,1105-00082,2733.99,R,Accutime Ltd
http://statistics.data.gov.uk/doc/local-authority/00DA,Leeds City Council,Adult Social Care,Services For Older People - 65 And Over,Third Party Payments,Nursing Home,570,11-May-11,1105-00083,1167.28,R,Ackworth House
http://statistics.data.gov.uk/doc/local-authority/00DA,Leeds City Council,Other Education Services,Active Accounts,Third Party Payments,Services Rendered By Schools,506,19-May-11,1105-00084,14850,R,Ackworth School
http://statistics.data.gov.uk/doc/local-authority/00DA,Leeds City Council,Central & Corporate Functions,Corporate Property Management,Premises,Plant and Machinery,102,20-May-11,1105-00085,970,R,Acm
http://statistics.data.gov.uk/doc/local-authority/00DA,Leeds City Council,Central & Corporate Functions,Commercial Services Trading Services,Supplies and Services,Other Hired And Contracted Services,265,18-May-11,1105-00086,2129,R,Acme
http://statistics.data.gov.uk/doc/local-authority/00DA,Leeds City Council,Central & Corporate Functions,Commercial Services Trading Services,Supplies and Services,Other Hired And Contracted Services,265,18-May-11,1105-00087,670,R,Acme
http://statistics.data.gov.uk/doc/local-authority/00DA,Leeds City Council,Central & Corporate Functions,Commercial Services Trading Services,Supplies and Services,Crockery Cutlery & Utensils,221,31-May-11,1105-00088,1775,R,Acme
http://statistics.data.gov.uk/doc/local-authority/00DA,Leeds City Council,Insurance,Insurance,Supplies and Services,Insurance Claims,248,12-May-11,1105-00089,900,R,Acromas Insurance Company Ltd
http://statistics.data.gov.uk/doc/local-authority/00DA,Leeds City Council,City Development,Recreation,Supplies and Services,Bought In Professional Services,277,18-May-11,1105-00090,16627.51,R,Ad Golf Management Ltd
http://statistics.data.gov.uk/doc/local-authority/00DA,Leeds City Council,Adult Social Care,Assessment And Care Management,Support Services,Legal Disbursements,411,18-May-11,1105-00091,625,R,Adam Fullwood
http://statistics.data.gov.uk/doc/local-authority/00DA,Leeds City Council,City Development,Recreation,Supplies and Services,Other Hired And Contracted Services,265,10-May-11,1105-00092,8806,R,Addlestone Moumouris Orme & Sixsmith
http://statistics.data.gov.uk/doc/local-authority/00DA,Leeds City Council,Environment & Neighbourhoods,Environmental Health,Capital,Other Costs,7,05-May-11,1105-00093,530,C,Admas Limited
http://statistics.data.gov.uk/doc/local-authority/00DA,Leeds City Council,City Development,Libraries Arts & Heritage,Supplies and Services,Operational Furniture And Equipment,203,12-May-11,1105-00094,4089,R,Admiral Signs Visual Imaging Ltd
http://statistics.data.gov.uk/doc/local-authority/00DA,Leeds City Council,Childrens Services,Other Childrens And Families Services,Supplies and Services,Memberships,226,06-May-11,1105-00095,1097,R,Adoption Uk
http://statistics.data.gov.uk/doc/local-authority/00DA,West - North West,West - North West,Customer And Tenancy,Premises,H.R.A. - Special Maintenance,106,03-May-11,1105-00096,827.27,R,Adt Fire And Security
http://statistics.data.gov.uk/doc/local-authority/00DA,Leeds City Council,City Development,Libraries Arts & Heritage,Premises,Premises Security Services,162,03-May-11,1105-00097,724.24,R,Adt Fire And Security
http://statistics.data.gov.uk/doc/local-authority/00DA,Leeds City Council,Other Education Services,Active Accounts,Premises,Premises Security Services,162,06-May-11,1105-00098,1556.01,R,Adt Fire And Security
http://statistics.data.gov.uk/doc/local-authority/00DA,Leeds City Council,Adult Social Care,Assessment And Care Management,Premises,Premises Security Services,162,18-May-11,1105-00099,994.32,R,Adt Fire And Security
http://statistics.data.gov.uk/doc/local-authority/00DA,Leeds City Council,Central & Corporate Functions,Corporate Property Management,Premises,Maintenance Of Buildings,101,18-May-11,1105-00100,1070.18,R,Adt Fire And Security
http://statistics.data.gov.uk/doc/local-authority/00DA,Leeds City Council,Other Education Services,Active Accounts,Premises,Premises Security Services,162,19-May-11,1105-00101,1048.96,R,Adt Fire And Security
http://statistics.data.gov.uk/doc/local-authority/00DA,Leeds City Council,City Development,Libraries Arts & Heritage,Premises,Premises Security Services,162,19-May-11,1105-00102,909.16,R,Adt Fire And Security
http://statistics.data.gov.uk/doc/local-authority/00DA,West - North West,West - North West,Customer And Tenancy,Premises,H.R.A. - Special Maintenance,106,23-May-11,1105-00103,835.72,R,Adt Fire And Security
http://statistics.data.gov.uk/doc/local-authority/00DA,Leeds City Council,Central & Corporate Functions,Corporate Property Management,Premises,Maintenance Of Buildings,101,31-May-11,1105-00104,830.6,R,Adt Fire And Security
http://statistics.data.gov.uk/doc/local-authority/00DA,Leeds City Council as Accountable Body,Jcs For People With Learning Disabilitie,Jcs For People With Learning Disabilitie,Third Party Payments,Residential,580,11-May-11,1105-00105,12635.2,R,Advitam Ltd
http://statistics.data.gov.uk/doc/local-authority/00DA,Leeds City Council,Adult Social Care,Services For Adults Under 65 Mental/Dis,Third Party Payments,Payments To Voluntary Organisations,561,16-May-11,1105-00106,23156,R,Advocacy For Mental Health And Dementia
http://statistics.data.gov.uk/doc/local-authority/00DA,Leeds City Council as Accountable Body,Jcs For People With Learning Disabilitie,Jcs For People With Learning Disabilitie,Third Party Payments,Day Centre,564,13-May-11,1105-00107,2346.4,R,Affinity Trust
http://statistics.data.gov.uk/doc/local-authority/00DA,Leeds City Council as Accountable Body,Jcs For People With Learning Disabilitie,Jcs For People With Learning Disabilitie,Third Party Payments,Home Care,568,09-May-11,1105-00108,4134.32,R,Affinity Trust North Divisional Office
http://statistics.data.gov.uk/doc/local-authority/00DA,Leeds City Council as Accountable Body,Jcs For People With Learning Disabilitie,Jcs For People With Learning Disabilitie,Third Party Payments,Home Care,568,09-May-11,1105-00109,804.48,R,Affinity Trust North Divisional Office
http://statistics.data.gov.uk/doc/local-authority/00DA,Leeds City Council as Accountable Body,Jcs For People With Learning Disabilitie,Jcs For People With Learning Disabilitie,Third Party Payments,Home Care,568,10-May-11,1105-00110,3192.1,R,Affinity Trust North Divisional Office
http://statistics.data.gov.uk/doc/local-authority/00DA,Leeds City Council as Accountable Body,Jcs For People With Learning Disabilitie,Jcs For People With Learning Disabilitie,Third Party Payments,Home Care,568,12-May-11,1105-00111,2587.32,R,Affinity Trust North Divisional Office
http://statistics.data.gov.uk/doc/local-authority/00DA,Leeds City Council,Environment & Neighbourhoods,Housing Needs,Third Party Payments,Supporting Ppl - Block Gross Chargeable,514,23-May-11,1105-00112,3957.68,R,Age Uk Leeds
http://statistics.data.gov.uk/doc/local-authority/00DA,Leeds City Council,City Development,Highways,Supplies and Services,Other Hired And Contracted Services,265,19-May-11,1105-00113,86335,R,Aggregate Industries Uk Ltd
http://statistics.data.gov.uk/doc/local-authority/00DA,Leeds City Council,City Development,Highways,Capital,Construction,3,19-May-11,1105-00114,13300,C,Aggregate Industries Uk Ltd
http://statistics.data.gov.uk/doc/local-authority/00DA,Leeds City Council,City Development,Highways,Supplies and Services,Other Hired And Contracted Services,265,19-May-11,1105-00115,7493,R,Aggregate Industries Uk Ltd
http://statistics.data.gov.uk/doc/local-authority/00DA,Leeds City Council,Adult Social Care,Services For Older People Under 65 P/Dis,Third Party Payments,Residential,580,11-May-11,1105-00116,5582.52,R,Agricola House
http://statistics.data.gov.uk/doc/local-authority/00DA,Leeds City Council as Accountable Body,Leeds Community Equip Store Pooled Budgt,Leeds Community Equip Store Pooled Budgt,Supplies and Services,Other Equipment,203,20-May-11,1105-00117,4063,R,Aidapt Bathrooms Ltd
http://statistics.data.gov.uk/doc/local-authority/00DA,Leeds City Council as Accountable Body,Leeds Community Equip Store Pooled Budgt,Leeds Community Equip Store Pooled Budgt,Supplies and Services,Other Equipment,203,20-May-11,1105-00118,795,R,Aidapt Bathrooms Ltd
http://statistics.data.gov.uk/doc/local-authority/00DA,Leeds City Council as Accountable Body,Leeds Community Equip Store Pooled Budgt,Leeds Community Equip Store Pooled Budgt,Supplies and Services,Other Equipment,203,20-May-11,1105-00119,505.6,R,Aidapt Bathrooms Ltd
http://statistics.data.gov.uk/doc/local-authority/00DA,Leeds City Council,City Development,Economic Development,Capital,Construction,3,19-May-11,1105-00120,500,C,Aig London Limited
http://statistics.data.gov.uk/doc/local-authority/00DA,Leeds City Council,City Development,Economic Development,Capital,Other Costs,7,27-May-11,1105-00121,3458.26,C,Aig London Limited
http://statistics.data.gov.uk/doc/local-authority/00DA,Leeds City Council,Strategic Accounts,Miscellaneous,Transfer Payments,Land Drainage Levies,665,03-May-11,1105-00122,3239.56,R,Ainsty (2008) Internal Drainage Board
http://statistics.data.gov.uk/doc/local-authority/00DA,Leeds City Council,City Development,Highways,Premises,Grounds Maintenance Work,111,05-May-11,1105-00123,3332.08,R,Ainsty Timber Marketing Ltd
http://statistics.data.gov.uk/doc/local-authority/00DA,Leeds City Council,City Development,Highways,Premises,Grounds Maintenance Work,111,06-May-11,1105-00124,16347.4,R,Ainsty Timber Marketing Ltd
http://statistics.data.gov.uk/doc/local-authority/00DA,Leeds City Council,City Development,Highways,Premises,Grounds Maintenance Work,111,06-May-11,1105-00125,851,R,Ainsty Timber Marketing Ltd
http://statistics.data.gov.uk/doc/local-authority/00DA,Leeds City Council,City Development,Highways,Premises,Grounds Maintenance Work,111,06-May-11,1105-00126,15416.64,R,Ainsty Timber Marketing Ltd
http://statistics.data.gov.uk/doc/local-authority/00DA,Leeds City Council,City Development,Highways,Premises,Grounds Maintenance Work,111,06-May-11,1105-00127,781.53,R,Ainsty Timber Marketing Ltd
http://statistics.data.gov.uk/doc/local-authority/00DA,Leeds City Council,Environment & Neighbourhoods,Health & Environmental Action,Supplies and Services,Operational Furniture And Equipment,203,19-May-11,1105-00128,1589.94,R,Air Liquide Uk
http://statistics.data.gov.uk/doc/local-authority/00DA,Leeds City Council,Environment & Neighbourhoods,Health & Environmental Action,Supplies and Services,Operational Furniture And Equipment,203,19-May-11,1105-00129,424.69,R,Air Liquide Uk
http://statistics.data.gov.uk/doc/local-authority/00DA,Leeds City Council as Accountable Body,Jcs For People With Learning Disabilitie,Jcs For People With Learning Disabilitie,Third Party Payments,Residential,580,11-May-11,1105-00130,3074.68,R,Aire House
http://statistics.data.gov.uk/doc/local-authority/00DA,Leeds City Council,Environment & Neighbourhoods,Regeneration,Supplies and Services,Non-Recurring Grants,227,26-May-11,1105-00131,20243,R,Aire Valley Homes Leeds
http://statistics.data.gov.uk/doc/local-authority/00DA,Leeds City Council,Adult Social Care,Services For Older People - 65 And Over,Third Party Payments,Residential Care Emi,571,11-May-11,1105-00132,12883.54,R,Aire View Residential Home
http://statistics.data.gov.uk/doc/local-authority/00DA,Leeds City Council,Adult Social Care,Services For Older People - 65 And Over,Third Party Payments,Nursing Care Emi,574,11-May-11,1105-00133,1307.2,R,Aire View Residential Home
http://statistics.data.gov.uk/doc/local-authority/00DA,Leeds City Council,Adult Social Care,Services For Older People - 65 And Over,Third Party Payments,Residential,580,11-May-11,1105-00134,19582.17,R,Aire View Residential Home
http://statistics.data.gov.uk/doc/local-authority/00DA,Leeds City Council,Adult Social Care,Services For Older People - 65 And Over,Third Party Payments,Residential,580,11-May-11,1105-00135,32499.92,R,Airedale (Goldsborough)
http://statistics.data.gov.uk/doc/local-authority/00DA,Leeds City Council,Childrens Services,Integrated Youth Support Service,Premises,Repairs & Adapts - Buildings,191,20-May-11,1105-00136,1750,R,Airedale Mechanical & Electrical Ltd
http://statistics.data.gov.uk/doc/local-authority/00DA,Leeds City Council,Central & Corporate Functions,Commercial Services Trading Services,Supplies and Services,Operational Materials,205,04-May-11,1105-00137,680.67,R,Ajm Fixings & Power Tools Ltd
http://statistics.data.gov.uk/doc/local-authority/00DA,Leeds City Council,Central & Corporate Functions,Commercial Services Trading Services,Supplies and Services,Operational Materials,205,10-May-11,1105-00138,481.6,R,Ajm Fixings & Power Tools Ltd
http://statistics.data.gov.uk/doc/local-authority/00DA,East - North East,East - North East,Technical Services,Supplies and Services,Other Materials,205,12-May-11,1105-00139,458,R,Ajm Fixings & Power Tools Ltd
http://statistics.data.gov.uk/doc/local-authority/00DA,East - North East,East - North East,Technical Services,Supplies and Services,Other Materials,205,12-May-11,1105-00140,1436.73,R,Ajm Fixings & Power Tools Ltd
http://statistics.data.gov.uk/doc/local-authority/00DA,East - North East,East - North East,Technical Services,Supplies and Services,Other Materials,205,12-May-11,1105-00141,1329.38,R,Ajm Fixings & Power Tools Ltd
http://statistics.data.gov.uk/doc/local-authority/00DA,East - North East,East - North East,Technical Services,Supplies and Services,Other Materials,205,12-May-11,1105-00142,1219.78,R,Ajm Fixings & Power Tools Ltd
http://statistics.data.gov.uk/doc/local-authority/00DA,East - North East,East - North East,Technical Services,Supplies and Services,Other Materials,205,12-May-11,1105-00143,455.14,R,Ajm Fixings & Power Tools Ltd
http://statistics.data.gov.uk/doc/local-authority/00DA,East - North East,East - North East,Technical Services,Supplies and Services,Other Materials,205,12-May-11,1105-00144,757.31,R,Ajm Fixings & Power Tools Ltd
http://statistics.data.gov.uk/doc/local-authority/00DA,Leeds City Council,Central & Corporate Functions,Commercial Services Trading Services,Supplies and Services,Operational Materials,205,20-May-11,1105-00145,494.17,R,Ajm Fixings & Power Tools Ltd
http://statistics.data.gov.uk/doc/local-authority/00DA,East - North East,East - North East,Technical Services,Supplies and Services,Other Materials,205,26-May-11,1105-00146,4374,R,Ajm Fixings & Power Tools Ltd
http://statistics.data.gov.uk/doc/local-authority/00DA,Leeds City Council,Environment & Neighbourhoods,Streetscene Environmental Services,Transport,External Hire -Occasional,304,17-May-11,1105-00147,594,R,Alan Thompson Transport
http://statistics.data.gov.uk/doc/local-authority/00DA,Leeds City Council,City Development,City Development,Supplies and Services,Resaleable Material,204,22-Apr-11,1105-00148,1134.88,R,Alan Titchmarsh Products
http://statistics.data.gov.uk/doc/local-authority/00DA,Leeds City Council,Adult Social Care,Services For Older People - 65 And Over,Third Party Payments,Residential Care Emi,571,11-May-11,1105-00149,5598.64,R,Alexander Residential Home
http://statistics.data.gov.uk/doc/local-authority/00DA,Leeds City Council,Adult Social Care,Services For Older People - 65 And Over,Third Party Payments,Residential,580,11-May-11,1105-00150,15826.12,R,Alexander Residential Home
http://statistics.data.gov.uk/doc/local-authority/00DA,Leeds City Council,Adult Social Care,Services For Older People Under 65 P/Dis,Third Party Payments,Residential,580,11-May-11,1105-00151,1120.96,R,Alexander Residential Home
http://statistics.data.gov.uk/doc/local-authority/00DA,Leeds City Council as Accountable Body,Jcs For People With Learning Disabilitie,Jcs For People With Learning Disabilitie,Third Party Payments,Residential,580,11-May-11,1105-00152,1202.92,R,Alexander Residential Home
http://statistics.data.gov.uk/doc/local-authority/00DA,Leeds City Council,Adult Social Care,Services For Older People - 65 And Over,Third Party Payments,Residential Care Emi,571,11-May-11,1105-00153,1220.6,R,Alexandra Court
http://statistics.data.gov.uk/doc/local-authority/00DA,Leeds City Council,Adult Social Care,Services For Older People - 65 And Over,Third Party Payments,Residential,580,11-May-11,1105-00154,10094.58,R,Alexandra Court
http://statistics.data.gov.uk/doc/local-authority/00DA,Leeds City Council,Environment & Neighbourhoods,Health & Environmental Action,Supplies and Services,Other Hired And Contracted Services,265,16-May-11,1105-00155,464.55,R,Alfies Boarding Kennels
http://statistics.data.gov.uk/doc/local-authority/00DA,Leeds City Council,Environment & Neighbourhoods,Health & Environmental Action,Supplies and Services,Other Hired And Contracted Services,265,27-May-11,1105-00156,868.4,R,Alfies Boarding Kennels
http://statistics.data.gov.uk/doc/local-authority/00DA,Leeds City Council,Environment & Neighbourhoods,Health & Environmental Action,Supplies and Services,Other Hired And Contracted Services,265,27-May-11,1105-00157,667,R,Alfies Boarding Kennels
http://statistics.data.gov.uk/doc/local-authority/00DA,Leeds City Council,Central & Corporate Functions,Customer Services,Supplies and Services,Other Hired And Contracted Services,265,06-May-11,1105-00158,3317.36,R,Alfred Bagnall & Sons (Leeds) Ltd
http://statistics.data.gov.uk/doc/local-authority/00DA,Leeds City Council,Central & Corporate Functions,Customer Services,Supplies and Services,Other Hired And Contracted Services,265,10-May-11,1105-00159,700,R,Alfred Bagnall & Sons (Leeds) Ltd
http://statistics.data.gov.uk/doc/local-authority/00DA,Leeds City Council,Central & Corporate Functions,Customer Services,Supplies and Services,Other Hired And Contracted Services,265,10-May-11,1105-00160,890,R,Alfred Bagnall & Sons (Leeds) Ltd
http://statistics.data.gov.uk/doc/local-authority/00DA,Leeds City Council,City Development,Libraries Arts & Heritage,Supplies and Services,Other Hired And Contracted Services,265,18-May-11,1105-00161,4000,R,Alfred Bagnall & Sons (Leeds) Ltd
http://statistics.data.gov.uk/doc/local-authority/00DA,Leeds City Council,City Development,Asset Management Services,Premises,Maintenance Of Buildings,101,18-May-11,1105-00162,966.2,R,Alfred Bagnall & Sons (Leeds) Ltd
http://statistics.data.gov.uk/doc/local-authority/00DA,Leeds City Council,Central & Corporate Functions,Corporate Property Management,Premises,Maintenance Of Buildings,101,25-May-11,1105-00163,6677.07,R,Alfred Bagnall & Sons (Leeds) Ltd
http://statistics.data.gov.uk/doc/local-authority/00DA,Leeds City Council,Central & Corporate Functions,Commercial Services Trading Services,Supplies and Services,Other Hired And Contracted Services,265,13-May-11,1105-00164,425,R,All Clear Solutions Ltd
http://statistics.data.gov.uk/doc/local-authority/00DA,Leeds City Council,Adult Social Care,Services For Older People - 65 And Over,Third Party Payments,Residential,580,11-May-11,1105-00165,1085.36,R,Allendale Residential Home
http://statistics.data.gov.uk/doc/local-authority/00DA,Leeds City Council,Central & Corporate Functions,Revenues,Supplies and Services,Bank Charges,263,05-May-11,1105-00166,622.57,R,Alliance & Leicester Commercial Bank
http://statistics.data.gov.uk/doc/local-authority/00DA,Leeds City Council,City Development,Recreation,Premises,Cleaning,127,12-Apr-11,1105-00167,654.93,R,Alliance Disposables Ltd
http://statistics.data.gov.uk/doc/local-authority/00DA,Leeds City Council,City Development,Recreation,Premises,Cleaning Maintenance & Toiletries,127,10-May-11,1105-00168,466.1,R,Alliance Disposables Ltd
http://statistics.data.gov.uk/doc/local-authority/00DA,Leeds City Council as Accountable Body,Jcs For People With Learning Disabilitie,Jcs For People With Learning Disabilitie,Third Party Payments,Home Care,568,10-May-11,1105-00169,529.2,R,Allied Healthcare Group Ltd
http://statistics.data.gov.uk/doc/local-authority/00DA,Leeds City Council,Adult Social Care,Other Generic Services,Third Party Payments,Home Care,568,27-May-11,1105-00170,19513.55,R,Allied Healthcare Group Ltd
http://statistics.data.gov.uk/doc/local-authority/00DA,Leeds City Council,Adult Social Care,Other Generic Services,Third Party Payments,Home Care,568,27-May-11,1105-00171,1637.18,R,Allied Healthcare Group Ltd
http://statistics.data.gov.uk/doc/local-authority/00DA,Leeds City Council,City Development,Planning & Sustainable Development,Supplies and Services,Computer Software & Equipment,214,13-May-11,1105-00172,1390,R,Allied Images Ltd
http://statistics.data.gov.uk/doc/local-authority/00DA,Leeds City Council,City Development,Recreation,Supplies and Services,Operational Materials,205,27-May-11,1105-00173,1126.08,R,Alpha Awards Ltd
http://statistics.data.gov.uk/doc/local-authority/00DA,Leeds City Council,Environment & Neighbourhoods,Health & Environmental Action,Premises,Maintenance Of Buildings,101,16-May-11,1105-00174,2000,R,Alternative Drainage Company Ltd
http://statistics.data.gov.uk/doc/local-authority/00DA,Leeds City Council,Central & Corporate Functions,Commercial Services Trading Services,Supplies and Services,Other Hired And Contracted Services,265,27-May-11,1105-00175,1002,R,Alternative Windows (Leeds) Ltd
http://statistics.data.gov.uk/doc/local-authority/00DA,Leeds City Council,Central & Corporate Functions,Commercial Services Trading Services,Supplies and Services,Operational Materials,205,06-May-11,1105-00176,594.05,R,Alvin Morris Ltd
http://statistics.data.gov.uk/doc/local-authority/00DA,Leeds City Council,Adult Social Care,Other Generic Services,Third Party Payments,Payments To Voluntary Organisations,561,16-May-11,1105-00177,24500,R,Alzheimers Disease Society
http://statistics.data.gov.uk/doc/local-authority/00DA,Leeds City Council,Adult Social Care,Services For Older People - 65 And Over,Third Party Payments,Nursing Care Emi,574,12-May-11,1105-00178,1091.72,R,Amarna House Care Centre
http://statistics.data.gov.uk/doc/local-authority/00DA,Leeds City Council,City Development,Recreation,Supplies and Services,Operational Furniture And Equipment,203,12-May-11,1105-00179,967.85,R,Amazon Leisure Uk Ltd
http://statistics.data.gov.uk/doc/local-authority/00DA,Leeds City Council,Childrens Services,Children Looked After,Third Party Payments,General External Residential Placements,507,13-May-11,1105-00180,16020,R,Amberleigh Care Ltd
http://statistics.data.gov.uk/doc/local-authority/00DA,Leeds City Council,Adult Social Care,Services For Older People - 65 And Over,Third Party Payments,Residential,580,11-May-11,1105-00181,2147.64,R,Amelia House
http://statistics.data.gov.uk/doc/local-authority/00DA,Leeds City Council as Accountable Body,Jcs For People With Learning Disabilitie,Jcs For People With Learning Disabilitie,Third Party Payments,Home Care,568,13-May-11,1105-00182,1200.37,R,Anchor
http://statistics.data.gov.uk/doc/local-authority/00DA,Leeds City Council,Adult Social Care,Services For Adults Under 65 Mental/Dis,Third Party Payments,Residential,580,11-May-11,1105-00183,1068.88,R,Anchor Trust
http://statistics.data.gov.uk/doc/local-authority/00DA,Leeds City Council,Adult Social Care,Services For Older People - 65 And Over,Third Party Payments,Nursing Home,570,11-May-11,1105-00184,18343.97,R,Anchor Trust
http://statistics.data.gov.uk/doc/local-authority/00DA,Leeds City Council,Adult Social Care,Services For Older People - 65 And Over,Third Party Payments,Residential Care Emi,571,11-May-11,1105-00185,433.24,R,Anchor Trust
http://statistics.data.gov.uk/doc/local-authority/00DA,Leeds City Council,Adult Social Care,Services For Older People - 65 And Over,Third Party Payments,Residential Care Emi,571,11-May-11,1105-00186,1650.04,R,Anchor Trust
http://statistics.data.gov.uk/doc/local-authority/00DA,Leeds City Council,Adult Social Care,Services For Older People - 65 And Over,Third Party Payments,Residential Care Emi,571,11-May-11,1105-00187,3504.8,R,Anchor Trust
http://statistics.data.gov.uk/doc/local-authority/00DA,Leeds City Council,Adult Social Care,Services For Older People - 65 And Over,Third Party Payments,Nursing Care Emi,574,11-May-11,1105-00188,1169,R,Anchor Trust
http://statistics.data.gov.uk/doc/local-authority/00DA,Leeds City Council,Adult Social Care,Services For Older People - 65 And Over,Third Party Payments,Residential,580,11-May-11,1105-00189,4310.6,R,Anchor Trust
http://statistics.data.gov.uk/doc/local-authority/00DA,Leeds City Council,Adult Social Care,Services For Older People - 65 And Over,Third Party Payments,Residential,580,11-May-11,1105-00190,1133.72,R,Anchor Trust
http://statistics.data.gov.uk/doc/local-authority/00DA,Leeds City Council,Adult Social Care,Services For Older People - 65 And Over,Third Party Payments,Residential,580,11-May-11,1105-00191,1817.12,R,Anchor Trust
http://statistics.data.gov.uk/doc/local-authority/00DA,Leeds City Council,Adult Social Care,Services For Older People Under 65 P/Dis,Third Party Payments,Nursing Home,570,11-May-11,1105-00192,6370.45,R,Anchor Trust
http://statistics.data.gov.uk/doc/local-authority/00DA,Leeds City Council,Environment & Neighbourhoods,Housing Needs,Third Party Payments,Supporting People - Block Subsidy,513,23-May-11,1105-00193,616.95,R,Anchor Trust
http://statistics.data.gov.uk/doc/local-authority/00DA,Leeds City Council,Environment & Neighbourhoods,Housing Needs,Third Party Payments,Supporting People - Block Subsidy,513,23-May-11,1105-00194,10046.82,R,Anchor Trust
http://statistics.data.gov.uk/doc/local-authority/00DA,Leeds City Council,Environment & Neighbourhoods,Housing Needs,Third Party Payments,Supporting People - Block Subsidy,513,23-May-11,1105-00195,939.61,R,Anchor Trust
http://statistics.data.gov.uk/doc/local-authority/00DA,Leeds City Council,Adult Social Care,Services For Older People - 65 And Over,Third Party Payments,Residential Care Emi,571,11-May-11,1105-00196,8546.68,R,Anchor Trust Simon Marks Court
http://statistics.data.gov.uk/doc/local-authority/00DA,Leeds City Council,Adult Social Care,Services For Older People - 65 And Over,Third Party Payments,Residential,580,11-May-11,1105-00197,11461.6,R,Anchor Trust Simon Marks Court
http://statistics.data.gov.uk/doc/local-authority/00DA,Aire Valley Homes Leeds,Aire Valley Homes Leeds,Aire Valley Homes Leeds,Supplies and Services,Other Hired And Contracted Services,265,27-May-11,1105-00198,1000,R,Andrew Elliott
http://statistics.data.gov.uk/doc/local-authority/00DA,Leeds City Council,Childrens Services,Children - Commissioning And Social Work,Support Services,Legal Disbursements,411,18-May-11,1105-00199,800,R,Andrew Wastall
http://statistics.data.gov.uk/doc/local-authority/00DA,Leeds City Council,Adult Social Care,Services For Older People - 65 And Over,Third Party Payments,Payments To Voluntary Organisations,561,03-May-11,1105-00200,11938.95,R,Angels Housekeeping Cic Ltd
http://statistics.data.gov.uk/doc/local-authority/00DA,Leeds City Council,Adult Social Care,Services For Older People - 65 And Over,Third Party Payments,Payments To Voluntary Organisations,561,25-May-11,1105-00201,2000,R,Angels Housekeeping Cic Ltd
http://statistics.data.gov.uk/doc/local-authority/00DA,Leeds City Council,Environment & Neighbourhoods,Regeneration,Supplies and Services,Non-Recurring Grants,227,26-May-11,1105-00202,8400,R,Angels Housekeeping Cic Ltd
http://statistics.data.gov.uk/doc/local-authority/00DA,Leeds City Council,Central & Corporate Functions,Corporate Governance,Supplies and Services,Other Hired And Contracted Services,265,04-May-11,1105-00203,5235.69,R,Anslow Communications Ltd
http://statistics.data.gov.uk/doc/local-authority/00DA,Leeds City Council,Central & Corporate Functions,Information Technology,Supplies and Services,Office Consumables,210,27-May-11,1105-00204,586.25,R,Antalis Mcnaughton Limited
http://statistics.data.gov.uk/doc/local-authority/00DA,Leeds City Council,City Development,City Development,Supplies and Services,Stationery & External Printing,210,07-Apr-11,1105-00205,621.39,R,Antalis Uk Ltd
http://statistics.data.gov.uk/doc/local-authority/00DA,Leeds City Council,City Development,City Development,Supplies and Services,Stationery & External Printing,210,07-Apr-11,1105-00206,882.34,R,Antalis Uk Ltd
http://statistics.data.gov.uk/doc/local-authority/00DA,Leeds City Council,Central & Corporate Functions,Central & Corporate Functions,Supplies and Services,Office Consumables,210,15-Apr-11,1105-00207,469,R,Antalis Uk Ltd
http://statistics.data.gov.uk/doc/local-authority/00DA,Leeds City Council,City Development,Economic Development,Capital,Furniture And Equipment,5,27-May-11,1105-00208,500,C,Antony Dunn
http://statistics.data.gov.uk/doc/local-authority/00DA,Leeds City Council,Central & Corporate Functions,Commercial Services Trading Services,Supplies and Services,Food & Drink,231,27-May-11,1105-00209,1426.42,R,Apetito Ltd
http://statistics.data.gov.uk/doc/local-authority/00DA,Leeds City Council,Central & Corporate Functions,Commercial Services Trading Services,Supplies and Services,Food & Drink,231,27-May-11,1105-00210,645.37,R,Apetito Ltd
http://statistics.data.gov.uk/doc/local-authority/00DA,Leeds City Council,Central & Corporate Functions,Commercial Services Trading Services,Supplies and Services,Food & Drink,231,27-May-11,1105-00211,772.8,R,Apetito Ltd
http://statistics.data.gov.uk/doc/local-authority/00DA,Leeds City Council,Central & Corporate Functions,Commercial Services Trading Services,Supplies and Services,Food & Drink,231,27-May-11,1105-00212,2173.88,R,Apetito Ltd
http://statistics.data.gov.uk/doc/local-authority/00DA,Leeds City Council,City Development,Economic Development,Supplies and Services,Advertising,211,27-May-11,1105-00213,1700,R,Appeal Pr Ltd
http://statistics.data.gov.uk/doc/local-authority/00DA,Leeds City Council,Childrens Services,Children Looked After,Third Party Payments,General External Residential Placements,507,04-May-11,1105-00214,49779,R,Appletree Treatment Centre
http://statistics.data.gov.uk/doc/local-authority/00DA,Leeds City Council as Accountable Body,Jcs For People With Learning Disabilitie,Jcs For People With Learning Disabilitie,Third Party Payments,Residential,580,11-May-11,1105-00215,10329.8,R,Applewalk Homes
http://statistics.data.gov.uk/doc/local-authority/00DA,Leeds City Council,Central & Corporate Functions,Information Technology,Supplies and Services,Software - Expenditure,80,24-May-11,1105-00216,14933.06,R,Appstation
http://statistics.data.gov.uk/doc/local-authority/00DA,Leeds City Council,Central & Corporate Functions,Information Technology,Supplies and Services,Software - Expenditure,80,26-May-11,1105-00217,68723.62,R,Appstation
http://statistics.data.gov.uk/doc/local-authority/00DA,Leeds City Council,Central & Corporate Functions,Information Technology,Supplies and Services,Software - Expenditure,80,12-May-11,1105-00218,2848,R,Aprotec International Ltd
http://statistics.data.gov.uk/doc/local-authority/00DA,Leeds City Council,Environment & Neighbourhoods,Environmental Health,Capital,Construction,3,31-May-11,1105-00219,2483.39,C,Aqua Interiors T/A V & T Plumbing
http://statistics.data.gov.uk/doc/local-authority/00DA,Leeds City Council,Environment & Neighbourhoods,Environmental Health,Capital,Construction,3,31-May-11,1105-00220,2363.25,C,Aqua Interiors T/A V & T Plumbing
http://statistics.data.gov.uk/doc/local-authority/00DA,Leeds City Council,Central & Corporate Functions,Commercial Services Trading Services,Supplies and Services,Other Hired And Contracted Services,265,16-May-11,1105-00221,10161.48,R,Aquatrust Water & Ventilation Ltd
http://statistics.data.gov.uk/doc/local-authority/00DA,Leeds City Council as Accountable Body,Jcs For People With Learning Disabilitie,Jcs For People With Learning Disabilitie,Third Party Payments,Home Care,568,12-May-11,1105-00222,428.71,R,Arabella Health Staffing Ltd
http://statistics.data.gov.uk/doc/local-authority/00DA,Leeds City Council as Accountable Body,Jcs For People With Learning Disabilitie,Jcs For People With Learning Disabilitie,Third Party Payments,Home Care,568,12-May-11,1105-00223,1168.34,R,Arabella Health Staffing Ltd
http://statistics.data.gov.uk/doc/local-authority/00DA,Leeds City Council as Accountable Body,Jcs For People With Learning Disabilitie,Jcs For People With Learning Disabilitie,Third Party Payments,Home Care,568,12-May-11,1105-00224,2028.69,R,Arabella Health Staffing Ltd
http://statistics.data.gov.uk/doc/local-authority/00DA,Leeds City Council as Accountable Body,Jcs For People With Learning Disabilitie,Jcs For People With Learning Disabilitie,Third Party Payments,Home Care,568,12-May-11,1105-00225,707.9,R,Arabella Health Staffing Ltd
http://statistics.data.gov.uk/doc/local-authority/00DA,Leeds City Council as Accountable Body,Jcs For People With Learning Disabilitie,Jcs For People With Learning Disabilitie,Third Party Payments,Home Care,568,16-May-11,1105-00226,1965.78,R,Arabella Health Staffing Ltd
http://statistics.data.gov.uk/doc/local-authority/00DA,Leeds City Council as Accountable Body,Jcs For People With Learning Disabilitie,Jcs For People With Learning Disabilitie,Third Party Payments,Home Care,568,20-May-11,1105-00227,1603.8,R,Arabella Health Staffing Ltd
http://statistics.data.gov.uk/doc/local-authority/00DA,Leeds City Council as Accountable Body,Jcs For People With Learning Disabilitie,Jcs For People With Learning Disabilitie,Third Party Payments,Home Care,568,20-May-11,1105-00228,1359.07,R,Arabella Health Staffing Ltd
http://statistics.data.gov.uk/doc/local-authority/00DA,Leeds City Council as Accountable Body,Jcs For People With Learning Disabilitie,Jcs For People With Learning Disabilitie,Third Party Payments,Home Care,568,20-May-11,1105-00229,552.24,R,Arabella Health Staffing Ltd
http://statistics.data.gov.uk/doc/local-authority/00DA,Leeds City Council as Accountable Body,Jcs For People With Learning Disabilitie,Jcs For People With Learning Disabilitie,Third Party Payments,Home Care,568,20-May-11,1105-00230,669.12,R,Arabella Health Staffing Ltd
http://statistics.data.gov.uk/doc/local-authority/00DA,Leeds City Council as Accountable Body,Jcs For People With Learning Disabilitie,Jcs For People With Learning Disabilitie,Third Party Payments,Home Care,568,20-May-11,1105-00231,643.92,R,Arabella Health Staffing Ltd
http://statistics.data.gov.uk/doc/local-authority/00DA,Leeds City Council as Accountable Body,Jcs For People With Learning Disabilitie,Jcs For People With Learning Disabilitie,Third Party Payments,Home Care,568,20-May-11,1105-00232,1799.59,R,Arabella Health Staffing Ltd
http://statistics.data.gov.uk/doc/local-authority/00DA,Leeds City Council,Environment & Neighbourhoods,Regeneration,Supplies and Services,Non-Recurring Grants,227,26-May-11,1105-00233,37572,R,Archway
http://statistics.data.gov.uk/doc/local-authority/00DA,Leeds City Council,Central & Corporate Functions,Commercial Services Trading Services,Supplies and Services,Operational Materials,205,06-May-11,1105-00234,502.2,R,Arco Ltd
http://statistics.data.gov.uk/doc/local-authority/00DA,Aire Valley Homes Leeds,Aire Valley Homes Leeds,Housing,Supplies and Services,Clothing & Uniforms,241,11-May-11,1105-00235,468.98,R,Arco Ltd
http://statistics.data.gov.uk/doc/local-authority/00DA,East - North East,East - North East,Technical Services,Supplies and Services,Other Materials,205,12-May-11,1105-00236,767.96,R,Arco Ltd
http://statistics.data.gov.uk/doc/local-authority/00DA,East - North East,East - North East,Technical Services,Supplies and Services,Other Materials,205,12-May-11,1105-00237,964.74,R,Arco Ltd
http://statistics.data.gov.uk/doc/local-authority/00DA,Leeds City Council,City Development,Recreation,Supplies and Services,Operational Materials,205,17-May-11,1105-00238,813.63,R,Arco Ltd
http://statistics.data.gov.uk/doc/local-authority/00DA,Leeds City Council,Environment & Neighbourhoods,Streetscene Environmental Services,Supplies and Services,Clothing & Uniforms,241,19-May-11,1105-00239,800,R,Arco Ltd
http://statistics.data.gov.uk/doc/local-authority/00DA,Leeds City Council,City Development,Highways,Supplies and Services,Operational Materials,205,24-May-11,1105-00240,420.48,R,Arco Ltd
http://statistics.data.gov.uk/doc/local-authority/00DA,West - North West,West - North West,Customer And Tenancy,Supplies and Services,Project Management Group,260,05-May-11,1105-00241,9075,R,Arena Partnership Limited
http://statistics.data.gov.uk/doc/local-authority/00DA,Leeds City Council,Childrens Services,Integrated Youth Support Service,Capital,Furniture And Equipment,5,18-May-11,1105-00242,1178.19,C,Argos Distributors Ltd
http://statistics.data.gov.uk/doc/local-authority/00DA,Leeds City Council,Childrens Services,Integrated Youth Support Service,Supplies and Services,Other Hired And Contracted Services,265,18-May-11,1105-00243,1843.1,R,Argos Distributors Ltd
http://statistics.data.gov.uk/doc/local-authority/00DA,Leeds City Council,Childrens Services,Integrated Youth Support Service,Supplies and Services,Other Hired And Contracted Services,265,26-May-11,1105-00244,679.78,R,Argos Distributors Ltd
http://statistics.data.gov.uk/doc/local-authority/00DA,Leeds City Council,Childrens Services,Integrated Youth Support Service,Third Party Payments,Services Rendered By Voluntary Sector,505,11-May-11,1105-00245,7126,R,Armley Juniors
http://statistics.data.gov.uk/doc/local-authority/00DA,Leeds City Council,Childrens Services,Integrated Youth Support Service,Third Party Payments,Services Rendered By Voluntary Sector,505,19-May-11,1105-00246,4070,R,Armley Juniors
http://statistics.data.gov.uk/doc/local-authority/00DA,Leeds City Council,Central & Corporate Functions,Commercial Services Trading Services,Supplies and Services,Operational Materials,205,04-May-11,1105-00247,603.23,R,Arnold Laver & Co Ltd
http://statistics.data.gov.uk/doc/local-authority/00DA,East - North East,East - North East,Technical Services,Supplies and Services,Other Materials,205,12-May-11,1105-00248,704.7,R,Arnold Laver & Co Ltd
http://statistics.data.gov.uk/doc/local-authority/00DA,East - North East,East - North East,Technical Services,Supplies and Services,Other Materials,205,12-May-11,1105-00249,653.23,R,Arnold Laver & Co Ltd
http://statistics.data.gov.uk/doc/local-authority/00DA,East - North East,East - North East,Technical Services,Supplies and Services,Other Materials,205,18-May-11,1105-00250,426.35,R,Arnold Laver & Co Ltd
http://statistics.data.gov.uk/doc/local-authority/00DA,East - North East,East - North East,Technical Services,Supplies and Services,Other Hired And Contracted Services,265,20-May-11,1105-00251,3300,R,Arr Spend Management Solutions
http://statistics.data.gov.uk/doc/local-authority/00DA,East - North East,East - North East,Technical Services,Supplies and Services,Other Hired And Contracted Services,265,27-May-11,1105-00252,2750,R,Arr Spend Management Solutions
http://statistics.data.gov.uk/doc/local-authority/00DA,East - North East,East - North East,Technical Services,Supplies and Services,Other Hired And Contracted Services,265,27-May-11,1105-00253,3300,R,Arr Spend Management Solutions
http://statistics.data.gov.uk/doc/local-authority/00DA,Leeds City Council,Adult Social Care,Services For Older People - 65 And Over,Third Party Payments,Nursing Home,570,12-May-11,1105-00254,1328.48,R,Arrigadeen Nursing Home
http://statistics.data.gov.uk/doc/local-authority/00DA,Leeds City Council as Accountable Body,Jcs For People With Learning Disabilitie,Jcs For People With Learning Disabilitie,Third Party Payments,Other Agency Services,561,10-May-11,1105-00255,440.34,R,Articulate Advocacy
http://statistics.data.gov.uk/doc/local-authority/00DA,Leeds City Council as Accountable Body,Jcs For People With Learning Disabilitie,Jcs For People With Learning Disabilitie,Third Party Payments,Other Agency Services,561,10-May-11,1105-00256,978.45,R,Articulate Advocacy
http://statistics.data.gov.uk/doc/local-authority/00DA,Leeds City Council as Accountable Body,Jcs For People With Learning Disabilitie,Jcs For People With Learning Disabilitie,Supplies and Services,Other Hired And Contracted Services,265,10-May-11,1105-00257,878.8,R,Articulate Advocacy
http://statistics.data.gov.uk/doc/local-authority/00DA,Leeds City Council as Accountable Body,Jcs For People With Learning Disabilitie,Jcs For People With Learning Disabilitie,Supplies and Services,Other Hired And Contracted Services,265,10-May-11,1105-00258,1138,R,Articulate Advocacy
http://statistics.data.gov.uk/doc/local-authority/00DA,Leeds City Council,City Development,Libraries Arts & Heritage,Supplies and Services,Non-Recurring Grants,227,19-May-11,1105-00259,14902,R,Artlink West Yorkshire
http://statistics.data.gov.uk/doc/local-authority/00DA,Leeds City Council,Other Education Services,Active Accounts,Transport,Fuel (Non LCC Supplies),321,05-May-11,1105-00260,1544.78,R,Arval Phh Business Solutions Ltd
http://statistics.data.gov.uk/doc/local-authority/00DA,Leeds City Council,City Development,Highways,Transport,Fuel (Non LCC Supplies),321,05-May-11,1105-00261,648.2,R,Arval Phh Business Solutions Ltd
http://statistics.data.gov.uk/doc/local-authority/00DA,Leeds City Council,Central & Corporate Functions,Commercial Services Trading Services,Supplies and Services,Other Hired And Contracted Services,265,13-May-11,1105-00262,592.5,R,Asbestos Sample Analysis Limited
http://statistics.data.gov.uk/doc/local-authority/00DA,Leeds City Council,Central & Corporate Functions,Commercial Services Trading Services,Supplies and Services,Other Hired And Contracted Services,265,16-May-11,1105-00263,442.5,R,Asbestos Sample Analysis Limited
http://statistics.data.gov.uk/doc/local-authority/00DA,Leeds City Council,Central & Corporate Functions,Commercial Services Trading Services,Supplies and Services,Other Hired And Contracted Services,265,18-May-11,1105-00264,457.5,R,Asbestos Sample Analysis Limited
http://statistics.data.gov.uk/doc/local-authority/00DA,Leeds City Council,Central & Corporate Functions,Commercial Services Trading Services,Supplies and Services,Other Hired And Contracted Services,265,27-May-11,1105-00265,435,R,Asbestos Sample Analysis Limited
http://statistics.data.gov.uk/doc/local-authority/00DA,Leeds City Council,City Development,Libraries Arts & Heritage,Supplies and Services,Non-Recurring Grants,227,05-May-11,1105-00266,1000,R,Ascendance Rep
http://statistics.data.gov.uk/doc/local-authority/00DA,Leeds City Council,Central & Corporate Functions,Support And Facilities Trading Services,Supplies and Services,Operational Materials,205,13-May-11,1105-00267,2784,R,Asd Metal Services
http://statistics.data.gov.uk/doc/local-authority/00DA,Leeds City Council,Adult Social Care,Services For Older People - 65 And Over,Third Party Payments,Residential,580,11-May-11,1105-00268,11398.24,R,Ashcroft House Residential Home
http://statistics.data.gov.uk/doc/local-authority/00DA,Leeds City Council,Adult Social Care,Services For Older People - 65 And Over,Third Party Payments,Nursing Home,570,11-May-11,1105-00269,3697.24,R,Ashcroft Nursing Home
http://statistics.data.gov.uk/doc/local-authority/00DA,Leeds City Council,Adult Social Care,Services For Older People - 65 And Over,Third Party Payments,Nursing Home,570,11-May-11,1105-00270,1191.24,R,Ashcroft Nursing Home
http://statistics.data.gov.uk/doc/local-authority/00DA,Leeds City Council,Adult Social Care,Services For Older People - 65 And Over,Third Party Payments,Residential Care Emi,571,11-May-11,1105-00271,761.52,R,Ashcroft Nursing Home
http://statistics.data.gov.uk/doc/local-authority/00DA,Leeds City Council,Adult Social Care,Services For Older People - 65 And Over,Third Party Payments,Residential Care Emi,571,11-May-11,1105-00272,627.8,R,Ashfield Court
http://statistics.data.gov.uk/doc/local-authority/00DA,Leeds City Council,Adult Social Care,Services For Older People - 65 And Over,Third Party Payments,Residential,580,11-May-11,1105-00273,511.8,R,Ashfield Court
http://statistics.data.gov.uk/doc/local-authority/00DA,Leeds City Council,Adult Social Care,Services For Adults Under 65 Mental/Dis,Third Party Payments,Residential,580,11-May-11,1105-00274,2318.4,R,Ashfield Nursing Home
http://statistics.data.gov.uk/doc/local-authority/00DA,Leeds City Council,Adult Social Care,Services For Older People - 65 And Over,Third Party Payments,Nursing Home,570,11-May-11,1105-00275,26617.12,R,Ashfield Nursing Home
http://statistics.data.gov.uk/doc/local-authority/00DA,Leeds City Council,Adult Social Care,Services For Older People - 65 And Over,Third Party Payments,Residential,580,11-May-11,1105-00276,2656,R,Ashfield Nursing Home
http://statistics.data.gov.uk/doc/local-authority/00DA,Leeds City Council,Adult Social Care,Services For Older People - 65 And Over,Third Party Payments,Nursing Home,570,11-May-11,1105-00277,1504,R,Ashley Care Ltd
http://statistics.data.gov.uk/doc/local-authority/00DA,Leeds City Council,City Development,Highways,Transport,Plant Hire - By Directorate,305,06-May-11,1105-00278,759,R,Ashtead Plant Hire Company Ltd
http://statistics.data.gov.uk/doc/local-authority/00DA,Leeds City Council,City Development,Highways,Transport,Plant Hire - By Directorate,305,06-May-11,1105-00279,784,R,Ashtead Plant Hire Company Ltd
http://statistics.data.gov.uk/doc/local-authority/00DA,Leeds City Council,City Development,Highways,Transport,Plant Hire - By Directorate,305,06-May-11,1105-00280,784,R,Ashtead Plant Hire Company Ltd
http://statistics.data.gov.uk/doc/local-authority/00DA,Leeds City Council,Central & Corporate Functions,Commercial Services Trading Services,Supplies and Services,Other Hired And Contracted Services,265,06-May-11,1105-00281,687.64,R,Ashtead Plant Hire Company Ltd
http://statistics.data.gov.uk/doc/local-authority/00DA,Leeds City Council,Central & Corporate Functions,Commercial Services Trading Services,Supplies and Services,Other Hired And Contracted Services,265,12-May-11,1105-00282,716.6,R,Ashtead Plant Hire Company Ltd
http://statistics.data.gov.uk/doc/local-authority/00DA,Leeds City Council,City Development,Libraries Arts & Heritage,Supplies and Services,Other Hired And Contracted Services,265,18-May-11,1105-00283,639,R,Ashtead Plant Hire Company Ltd
http://statistics.data.gov.uk/doc/local-authority/00DA,Leeds City Council,Adult Social Care,Services For Older People - 65 And Over,Third Party Payments,Residential Care Emi,571,11-May-11,1105-00284,809.36,R,Ashville Care Home
http://statistics.data.gov.uk/doc/local-authority/00DA,Leeds City Council,Adult Social Care,Services For Older People - 65 And Over,Third Party Payments,Residential,580,12-May-11,1105-00285,1104.12,R,Ashworth Grange
http://statistics.data.gov.uk/doc/local-authority/00DA,Leeds City Council,City Development,Libraries Arts & Heritage,Supplies and Services,Books & Audio-Visual Materials,206,10-May-11,1105-00286,10346.14,R,Askews & Holts
http://statistics.data.gov.uk/doc/local-authority/00DA,Leeds City Council,City Development,Libraries Arts & Heritage,Supplies and Services,Books & Audio-Visual Materials,206,10-May-11,1105-00287,4586.54,R,Askews & Holts
http://statistics.data.gov.uk/doc/local-authority/00DA,Leeds City Council,City Development,Libraries Arts & Heritage,Supplies and Services,Books & Audio-Visual Materials,206,10-May-11,1105-00288,12449.3,R,Askews & Holts
http://statistics.data.gov.uk/doc/local-authority/00DA,Leeds City Council,City Development,Libraries Arts & Heritage,Supplies and Services,Books & Audio-Visual Materials,206,12-May-11,1105-00289,851.77,R,Askews & Holts
http://statistics.data.gov.uk/doc/local-authority/00DA,Leeds City Council,City Development,Libraries Arts & Heritage,Supplies and Services,Books & Audio-Visual Materials,206,16-May-11,1105-00290,1597.26,R,Askews & Holts
http://statistics.data.gov.uk/doc/local-authority/00DA,Leeds City Council,City Development,Libraries Arts & Heritage,Supplies and Services,Books & Audio-Visual Materials,206,16-May-11,1105-00291,1095.07,R,Askews & Holts
http://statistics.data.gov.uk/doc/local-authority/00DA,Leeds City Council,City Development,Libraries Arts & Heritage,Supplies and Services,Books & Audio-Visual Materials,206,16-May-11,1105-00292,1812,R,Askews & Holts
http://statistics.data.gov.uk/doc/local-authority/00DA,Leeds City Council,City Development,Libraries Arts & Heritage,Supplies and Services,Books & Audio-Visual Materials,206,16-May-11,1105-00293,10658.83,R,Askews & Holts
http://statistics.data.gov.uk/doc/local-authority/00DA,Leeds City Council,City Development,Libraries Arts & Heritage,Supplies and Services,Books & Audio-Visual Materials,206,16-May-11,1105-00294,423.2,R,Askews & Holts
http://statistics.data.gov.uk/doc/local-authority/00DA,Leeds City Council,City Development,Libraries Arts & Heritage,Supplies and Services,Books & Audio-Visual Materials,206,18-May-11,1105-00295,3918.88,R,Askews & Holts
http://statistics.data.gov.uk/doc/local-authority/00DA,Leeds City Council,City Development,Libraries Arts & Heritage,Supplies and Services,Operational Materials,205,20-May-11,1105-00296,6000,R,Askews & Holts
http://statistics.data.gov.uk/doc/local-authority/00DA,Leeds City Council,City Development,Libraries Arts & Heritage,Supplies and Services,Operational Materials,205,20-May-11,1105-00297,2500,R,Askews & Holts
http://statistics.data.gov.uk/doc/local-authority/00DA,Leeds City Council,City Development,Libraries Arts & Heritage,Supplies and Services,Operational Materials,205,20-May-11,1105-00298,3900,R,Askews & Holts
http://statistics.data.gov.uk/doc/local-authority/00DA,Leeds City Council,City Development,Libraries Arts & Heritage,Supplies and Services,Books & Audio-Visual Materials,206,20-May-11,1105-00299,1252.01,R,Askews & Holts
http://statistics.data.gov.uk/doc/local-authority/00DA,Leeds City Council,City Development,Libraries Arts & Heritage,Supplies and Services,Books & Audio-Visual Materials,206,20-May-11,1105-00300,560.63,R,Askews & Holts
http://statistics.data.gov.uk/doc/local-authority/00DA,Leeds City Council,City Development,Libraries Arts & Heritage,Supplies and Services,Books & Audio-Visual Materials,206,20-May-11,1105-00301,9690.55,R,Askews & Holts
http://statistics.data.gov.uk/doc/local-authority/00DA,Leeds City Council,City Development,Libraries Arts & Heritage,Supplies and Services,Books & Audio-Visual Materials,206,20-May-11,1105-00302,2905.97,R,Askews & Holts
http://statistics.data.gov.uk/doc/local-authority/00DA,Leeds City Council,City Development,Highways,Transport,Plant Hire - By Directorate,305,11-May-11,1105-00303,1405,R,Asphalt Pavers
http://statistics.data.gov.uk/doc/local-authority/00DA,Leeds City Council,City Development,Highways,Transport,Plant Hire - By Directorate,305,11-May-11,1105-00304,1300,R,Asphalt Pavers
http://statistics.data.gov.uk/doc/local-authority/00DA,Leeds City Council,City Development,Highways,Transport,Plant Hire - By Directorate,305,11-May-11,1105-00305,790,R,Asphalt Pavers
http://statistics.data.gov.uk/doc/local-authority/00DA,Leeds City Council,City Development,Highways,Transport,Plant Hire - By Directorate,305,11-May-11,1105-00306,1095.88,R,Asphalt Pavers
http://statistics.data.gov.uk/doc/local-authority/00DA,Leeds City Council,City Development,Highways,Transport,Plant Hire - By Directorate,305,11-May-11,1105-00307,790,R,Asphalt Pavers
http://statistics.data.gov.uk/doc/local-authority/00DA,Leeds City Council,City Development,Highways,Transport,Plant Hire - By Directorate,305,20-May-11,1105-00308,790,R,Asphalt Pavers
http://statistics.data.gov.uk/doc/local-authority/00DA,Leeds City Council,City Development,Highways,Transport,Plant Hire - By Directorate,305,20-May-11,1105-00309,790,R,Asphalt Pavers
http://statistics.data.gov.uk/doc/local-authority/00DA,Leeds City Council,City Development,Highways,Transport,Plant Hire - By Directorate,305,20-May-11,1105-00310,2641,R,Asphalt Pavers
http://statistics.data.gov.uk/doc/local-authority/00DA,Leeds City Council,Environment & Neighbourhoods,Streetscene Environmental Services,Supplies and Services,Recycling & Reuse Charges,234,04-May-11,1105-00311,9827.56,R,Associated Waste Management Limited
http://statistics.data.gov.uk/doc/local-authority/00DA,Leeds City Council,Environment & Neighbourhoods,Streetscene Environmental Services,Supplies and Services,Waste Disposal Charges,236,04-May-11,1105-00312,18251.19,R,Associated Waste Management Limited
http://statistics.data.gov.uk/doc/local-authority/00DA,Leeds City Council,Environment & Neighbourhoods,Streetscene Environmental Services,Supplies and Services,Waste Disposal Charges,236,04-May-11,1105-00313,29397.89,R,Associated Waste Management Limited
http://statistics.data.gov.uk/doc/local-authority/00DA,Leeds City Council,Environment & Neighbourhoods,Streetscene Environmental Services,Supplies and Services,Recycling & Reuse Charges,234,06-May-11,1105-00314,7364.41,R,Associated Waste Management Limited
http://statistics.data.gov.uk/doc/local-authority/00DA,Leeds City Council,Environment & Neighbourhoods,Streetscene Environmental Services,Supplies and Services,Waste Disposal Charges,236,06-May-11,1105-00315,13676.77,R,Associated Waste Management Limited
http://statistics.data.gov.uk/doc/local-authority/00DA,Leeds City Council,Environment & Neighbourhoods,Streetscene Environmental Services,Supplies and Services,Waste Disposal Charges,236,06-May-11,1105-00316,22029.7,R,Associated Waste Management Limited
http://statistics.data.gov.uk/doc/local-authority/00DA,Leeds City Council,City Development,Support Services,Premises,Removal Of Workplace Waste,126,09-May-11,1105-00317,6462.15,R,Associated Waste Management Limited
http://statistics.data.gov.uk/doc/local-authority/00DA,Leeds City Council,Environment & Neighbourhoods,Streetscene Environmental Services,Supplies and Services,Recycling & Reuse Charges,234,10-May-11,1105-00318,9966.06,R,Associated Waste Management Limited
http://statistics.data.gov.uk/doc/local-authority/00DA,Leeds City Council,Environment & Neighbourhoods,Streetscene Environmental Services,Supplies and Services,Waste Disposal Charges,236,10-May-11,1105-00319,18508.41,R,Associated Waste Management Limited
http://statistics.data.gov.uk/doc/local-authority/00DA,Leeds City Council,Environment & Neighbourhoods,Streetscene Environmental Services,Supplies and Services,Waste Disposal Charges,236,10-May-11,1105-00320,29643.75,R,Associated Waste Management Limited
http://statistics.data.gov.uk/doc/local-authority/00DA,Leeds City Council,City Development,Recreation,Premises,Removal Of Workplace Waste,126,11-May-11,1105-00321,522,R,Associated Waste Management Limited
http://statistics.data.gov.uk/doc/local-authority/00DA,Leeds City Council,City Development,Recreation,Premises,Removal Of Workplace Waste,126,17-May-11,1105-00322,426,R,Associated Waste Management Limited
http://statistics.data.gov.uk/doc/local-authority/00DA,Leeds City Council,City Development,Recreation,Premises,Removal Of Workplace Waste,126,18-May-11,1105-00323,871,R,Associated Waste Management Limited
http://statistics.data.gov.uk/doc/local-authority/00DA,Leeds City Council,City Development,Recreation,Premises,Removal Of Workplace Waste,126,18-May-11,1105-00324,1443.78,R,Associated Waste Management Limited
http://statistics.data.gov.uk/doc/local-authority/00DA,Leeds City Council,City Development,Recreation,Premises,Removal Of Workplace Waste,126,18-May-11,1105-00325,1279.82,R,Associated Waste Management Limited
http://statistics.data.gov.uk/doc/local-authority/00DA,Leeds City Council,City Development,Recreation,Premises,Removal Of Workplace Waste,126,18-May-11,1105-00326,1749.9,R,Associated Waste Management Limited
http://statistics.data.gov.uk/doc/local-authority/00DA,Leeds City Council,City Development,Recreation,Premises,Removal Of Workplace Waste,126,18-May-11,1105-00327,1027.47,R,Associated Waste Management Limited
http://statistics.data.gov.uk/doc/local-authority/00DA,Leeds City Council,City Development,Recreation,Premises,Removal Of Workplace Waste,126,19-May-11,1105-00328,1558.45,R,Associated Waste Management Limited
http://statistics.data.gov.uk/doc/local-authority/00DA,Leeds City Council,City Development,Recreation,Premises,Removal Of Workplace Waste,126,19-May-11,1105-00329,844.07,R,Associated Waste Management Limited
http://statistics.data.gov.uk/doc/local-authority/00DA,Leeds City Council,Environment & Neighbourhoods,Streetscene Environmental Services,Supplies and Services,Recycling & Reuse Charges,234,19-May-11,1105-00330,10790.25,R,Associated Waste Management Limited
http://statistics.data.gov.uk/doc/local-authority/00DA,Leeds City Council,Environment & Neighbourhoods,Streetscene Environmental Services,Supplies and Services,Waste Disposal Charges,236,19-May-11,1105-00331,20039.06,R,Associated Waste Management Limited
http://statistics.data.gov.uk/doc/local-authority/00DA,Leeds City Council,Environment & Neighbourhoods,Streetscene Environmental Services,Supplies and Services,Waste Disposal Charges,236,19-May-11,1105-00332,37657.26,R,Associated Waste Management Limited
http://statistics.data.gov.uk/doc/local-authority/00DA,Leeds City Council,City Development,Recreation,Premises,Removal Of Workplace Waste,126,20-May-11,1105-00333,997.62,R,Associated Waste Management Limited
http://statistics.data.gov.uk/doc/local-authority/00DA,Leeds City Council,Central & Corporate Functions,Commercial Services Trading Services,Supplies and Services,Other Hired And Contracted Services,265,24-May-11,1105-00334,808.93,R,Associated Waste Management Limited
http://statistics.data.gov.uk/doc/local-authority/00DA,Leeds City Council,Environment & Neighbourhoods,Streetscene Environmental Services,Supplies and Services,Recycling & Reuse Charges,234,25-May-11,1105-00335,7653.74,R,Associated Waste Management Limited
http://statistics.data.gov.uk/doc/local-authority/00DA,Leeds City Council,Environment & Neighbourhoods,Streetscene Environmental Services,Supplies and Services,Waste Disposal Charges,236,25-May-11,1105-00336,13608.1,R,Associated Waste Management Limited
http://statistics.data.gov.uk/doc/local-authority/00DA,Leeds City Council,Environment & Neighbourhoods,Streetscene Environmental Services,Supplies and Services,Waste Disposal Charges,236,25-May-11,1105-00337,26711.05,R,Associated Waste Management Limited
http://statistics.data.gov.uk/doc/local-authority/00DA,Leeds City Council,City Development,Recreation,Premises,Removal Of Workplace Waste,126,26-May-11,1105-00338,897.1,R,Associated Waste Management Limited
http://statistics.data.gov.uk/doc/local-authority/00DA,Leeds City Council,City Development,Recreation,Premises,Removal Of Workplace Waste,126,27-May-11,1105-00339,1220.97,R,Associated Waste Management Limited
http://statistics.data.gov.uk/doc/local-authority/00DA,Leeds City Council,Adult Social Care,Services For Older People - 65 And Over,Third Party Payments,Nursing Home,570,11-May-11,1105-00340,10133.6,R,Atkinson Court
http://statistics.data.gov.uk/doc/local-authority/00DA,Leeds City Council,Adult Social Care,Services For Older People - 65 And Over,Third Party Payments,Nursing Care Emi,574,11-May-11,1105-00341,15455.69,R,Atkinson Court
http://statistics.data.gov.uk/doc/local-authority/00DA,Leeds City Council,City Development,Recreation,Supplies and Services,Operational Materials,205,20-May-11,1105-00342,1265.69,R,Atkinsons Fencing Limited
http://statistics.data.gov.uk/doc/local-authority/00DA,Leeds City Council,City Development,Highways,Supplies and Services,Other Hired And Contracted Services,265,26-May-11,1105-00343,504.8,R,Atkinsons Fencing Limited
http://statistics.data.gov.uk/doc/local-authority/00DA,Leeds City Council,Central & Corporate Functions,Commercial Services Trading Services,Supplies and Services,Operational Materials,205,26-May-11,1105-00344,735.48,R,Atkinsons Fencing Limited
http://statistics.data.gov.uk/doc/local-authority/00DA,Leeds City Council,Insurance,Insurance,Supplies and Services,Insurance Claims,248,26-May-11,1105-00345,750,R,Ats
http://statistics.data.gov.uk/doc/local-authority/00DA,Leeds City Council,Adult Social Care,Services For Older People - 65 And Over,Third Party Payments,Nursing Home,570,11-May-11,1105-00346,1584,R,Attlee Court
http://statistics.data.gov.uk/doc/local-authority/00DA,Leeds City Council,Adult Social Care,Services For Older People - 65 And Over,Third Party Payments,Nursing Care Emi,574,11-May-11,1105-00347,1125.32,R,Attlee Court
http://statistics.data.gov.uk/doc/local-authority/00DA,Leeds City Council,City Development,Libraries Arts & Heritage,Supplies and Services,Books & Audio-Visual Materials,206,12-May-11,1105-00348,769.75,R,Audiogo Ltd
http://statistics.data.gov.uk/doc/local-authority/00DA,Leeds City Council,City Development,Libraries Arts & Heritage,Supplies and Services,Books & Audio-Visual Materials,206,13-May-11,1105-00349,651.65,R,Audiogo Ltd
http://statistics.data.gov.uk/doc/local-authority/00DA,Leeds City Council,City Development,Libraries Arts & Heritage,Supplies and Services,Books & Audio-Visual Materials,206,18-May-11,1105-00350,530.4,R,Audiogo Ltd
http://statistics.data.gov.uk/doc/local-authority/00DA,Leeds City Council,City Development,Libraries Arts & Heritage,Supplies and Services,Books & Audio-Visual Materials,206,18-May-11,1105-00351,1088.44,R,Audiogo Ltd
http://statistics.data.gov.uk/doc/local-authority/00DA,Leeds City Council,City Development,Libraries Arts & Heritage,Supplies and Services,Books & Audio-Visual Materials,206,18-May-11,1105-00352,743.42,R,Audiogo Ltd
http://statistics.data.gov.uk/doc/local-authority/00DA,Leeds City Council,Central & Corporate Functions,Audit And Risk,Supplies and Services,External Audit Fees,261,10-May-11,1105-00353,15677,R,Audit Commission
http://statistics.data.gov.uk/doc/local-authority/00DA,Leeds City Council as Accountable Body,Jcs For People With Learning Disabilitie,Jcs For People With Learning Disabilitie,Third Party Payments,Residential,580,11-May-11,1105-00354,8337,R,Autism Care (Uk) Ltd
http://statistics.data.gov.uk/doc/local-authority/00DA,Education Leeds,Education Leeds,Education Leeds,Transfer Payments,Outside Placement - Fees,606,26-May-11,1105-00355,592.25,R,Autism Partnership Uk Ltd
http://statistics.data.gov.uk/doc/local-authority/00DA,Education Leeds,Education Leeds,Education Leeds,Transfer Payments,Outside Placement - Fees,606,26-May-11,1105-00356,2750.52,R,Autism Partnership Uk Ltd
http://statistics.data.gov.uk/doc/local-authority/00DA,Education Leeds,Education Leeds,Education Leeds,Transfer Payments,Outside Placement - Fees,606,26-May-11,1105-00357,3109.06,R,Autism Partnership Uk Ltd
http://statistics.data.gov.uk/doc/local-authority/00DA,Education Leeds,Education Leeds,Education Leeds,Transfer Payments,Outside Placement - Fees,606,26-May-11,1105-00358,669.5,R,Autism Partnership Uk Ltd
http://statistics.data.gov.uk/doc/local-authority/00DA,Education Leeds,Education Leeds,Education Leeds,Transfer Payments,Outside Placement - Fees,606,26-May-11,1105-00359,1068,R,Autism Partnership Uk Ltd
http://statistics.data.gov.uk/doc/local-authority/00DA,Education Leeds,Education Leeds,Education Leeds,Transfer Payments,Outside Placement - Fees,606,26-May-11,1105-00360,630.88,R,Autism Partnership Uk Ltd
http://statistics.data.gov.uk/doc/local-authority/00DA,Leeds City Council,City Development,Recreation,Supplies and Services,Food & Drink,231,18-May-11,1105-00361,453.86,R,Autobar Uk Ltd
http://statistics.data.gov.uk/doc/local-authority/00DA,East - North East,East - North East,Technical Services,Supplies and Services,Other Hired And Contracted Services,265,12-May-11,1105-00362,731.57,R,Avalon
http://statistics.data.gov.uk/doc/local-authority/00DA,East - North East,East - North East,Technical Services,Supplies and Services,Other Hired And Contracted Services,265,12-May-11,1105-00363,597.2,R,Avalon
http://statistics.data.gov.uk/doc/local-authority/00DA,East - North East,East - North East,Technical Services,Supplies and Services,Other Hired And Contracted Services,265,12-May-11,1105-00364,701.71,R,Avalon
http://statistics.data.gov.uk/doc/local-authority/00DA,East - North East,East - North East,Technical Services,Supplies and Services,Other Hired And Contracted Services,265,12-May-11,1105-00365,7599.67,R,Avalon
http://statistics.data.gov.uk/doc/local-authority/00DA,Leeds City Council as Accountable Body,Jcs For People With Learning Disabilitie,Jcs For People With Learning Disabilitie,Third Party Payments,Home Care,568,16-May-11,1105-00366,869.06,R,Avalon
http://statistics.data.gov.uk/doc/local-authority/00DA,East - North East,East - North East,Technical Services,Supplies and Services,Other Hired And Contracted Services,265,25-May-11,1105-00367,895.8,R,Avalon
http://statistics.data.gov.uk/doc/local-authority/00DA,East - North East,East - North East,Housing Services,Employees,Temporary Staff-Basic,9,31-May-11,1105-00368,6133.33,R,Avalon
http://statistics.data.gov.uk/doc/local-authority/00DA,Leeds City Council,City Development,Libraries Arts & Heritage,Income,Admissions Booking Fees & Ticket Sales,933,25-May-11,1105-00369,8083.5,R,Avalon Promotions Ltd
http://statistics.data.gov.uk/doc/local-authority/00DA,Leeds City Council,Environment & Neighbourhoods,East North East,Capital,Construction,3,05-May-11,1105-00370,1870,C,Avanta U.K Ltd
http://statistics.data.gov.uk/doc/local-authority/00DA,Leeds City Council,Environment & Neighbourhoods,East North East,Capital,Construction,3,13-May-11,1105-00371,1723.64,C,Avanta U.K Ltd
http://statistics.data.gov.uk/doc/local-authority/00DA,Leeds City Council,Environment & Neighbourhoods,East North East,Capital,Construction,3,13-May-11,1105-00372,9850,C,Avanta U.K Ltd
http://statistics.data.gov.uk/doc/local-authority/00DA,Leeds City Council,Environment & Neighbourhoods,East North East,Capital,Construction,3,13-May-11,1105-00373,1723.64,C,Avanta U.K Ltd
http://statistics.data.gov.uk/doc/local-authority/00DA,Leeds City Council as Accountable Body,Jcs For People With Learning Disabilitie,Jcs For People With Learning Disabilitie,Third Party Payments,Residential,580,25-May-11,1105-00374,4642.2,R,Avens Ltd
http://statistics.data.gov.uk/doc/local-authority/00DA,Leeds City Council as Accountable Body,Jcs For People With Learning Disabilitie,Jcs For People With Learning Disabilitie,Third Party Payments,Residential,580,11-May-11,1105-00375,4132.92,R,Avon Lodge
http://statistics.data.gov.uk/doc/local-authority/00DA,Leeds City Council,Adult Social Care,Services For Older People - 65 And Over,Third Party Payments,Nursing Home,570,11-May-11,1105-00376,1203.2,R,Ayresome Court Nursing Home
http://statistics.data.gov.uk/doc/local-authority/00DA,Leeds City Council,Environment & Neighbourhoods,South South East,Capital,Construction,3,05-May-11,1105-00377,3600,C,B & K Passmore
http://statistics.data.gov.uk/doc/local-authority/00DA,Leeds City Council,Environment & Neighbourhoods,South South East,Capital,Construction,3,05-May-11,1105-00378,4120,C,B & K Passmore
http://statistics.data.gov.uk/doc/local-authority/00DA,Leeds City Council,Environment & Neighbourhoods,South South East,Capital,Construction,3,06-May-11,1105-00379,4150,C,B & K Passmore
http://statistics.data.gov.uk/doc/local-authority/00DA,Leeds City Council,Environment & Neighbourhoods,South South East,Capital,Construction,3,13-May-11,1105-00380,4840,C,B & K Passmore
http://statistics.data.gov.uk/doc/local-authority/00DA,Leeds City Council,Environment & Neighbourhoods,South South East,Capital,Construction,3,13-May-11,1105-00381,4015,C,B & K Passmore
http://statistics.data.gov.uk/doc/local-authority/00DA,Leeds City Council,Environment & Neighbourhoods,South South East,Capital,Construction,3,13-May-11,1105-00382,4015,C,B & K Passmore
http://statistics.data.gov.uk/doc/local-authority/00DA,Leeds City Council,Environment & Neighbourhoods,South South East,Capital,Construction,3,13-May-11,1105-00383,3798,C,B & K Passmore
http://statistics.data.gov.uk/doc/local-authority/00DA,Leeds City Council,Environment & Neighbourhoods,South South East,Capital,Construction,3,13-May-11,1105-00384,3600,C,B & K Passmore
http://statistics.data.gov.uk/doc/local-authority/00DA,Leeds City Council,Environment & Neighbourhoods,South South East,Capital,Construction,3,13-May-11,1105-00385,3116,C,B & K Passmore
http://statistics.data.gov.uk/doc/local-authority/00DA,Leeds City Council,Environment & Neighbourhoods,South South East,Capital,Construction,3,13-May-11,1105-00386,4343,C,B & K Passmore
http://statistics.data.gov.uk/doc/local-authority/00DA,Leeds City Council,Environment & Neighbourhoods,South South East,Capital,Construction,3,13-May-11,1105-00387,3600,C,B & K Passmore
http://statistics.data.gov.uk/doc/local-authority/00DA,Leeds City Council,Environment & Neighbourhoods,South South East,Capital,Construction,3,13-May-11,1105-00388,3600,C,B & K Passmore
http://statistics.data.gov.uk/doc/local-authority/00DA,Leeds City Council,Environment & Neighbourhoods,South South East,Capital,Construction,3,13-May-11,1105-00389,3600,C,B & K Passmore
http://statistics.data.gov.uk/doc/local-authority/00DA,Leeds City Council,Environment & Neighbourhoods,South South East,Capital,Construction,3,13-May-11,1105-00390,3816,C,B & K Passmore
http://statistics.data.gov.uk/doc/local-authority/00DA,Leeds City Council,Environment & Neighbourhoods,South South East,Capital,Construction,3,13-May-11,1105-00391,3600,C,B & K Passmore
http://statistics.data.gov.uk/doc/local-authority/00DA,Leeds City Council,Environment & Neighbourhoods,South South East,Capital,Construction,3,13-May-11,1105-00392,3600,C,B & K Passmore
http://statistics.data.gov.uk/doc/local-authority/00DA,Leeds City Council,Environment & Neighbourhoods,South South East,Capital,Construction,3,13-May-11,1105-00393,5002,C,B & K Passmore
http://statistics.data.gov.uk/doc/local-authority/00DA,Leeds City Council,Environment & Neighbourhoods,South South East,Capital,Construction,3,13-May-11,1105-00394,4015,C,B & K Passmore
http://statistics.data.gov.uk/doc/local-authority/00DA,Leeds City Council,Environment & Neighbourhoods,South South East,Capital,Construction,3,13-May-11,1105-00395,5002,C,B & K Passmore
http://statistics.data.gov.uk/doc/local-authority/00DA,Leeds City Council,Environment & Neighbourhoods,South South East,Capital,Construction,3,13-May-11,1105-00396,4425,C,B & K Passmore
http://statistics.data.gov.uk/doc/local-authority/00DA,Leeds City Council,Environment & Neighbourhoods,Environmental Health,Capital,Construction,3,13-May-11,1105-00397,6655.97,C,B & K Passmore
http://statistics.data.gov.uk/doc/local-authority/00DA,Leeds City Council,Environment & Neighbourhoods,Environmental Health,Capital,Construction,3,13-May-11,1105-00398,2890,C,B & K Passmore
http://statistics.data.gov.uk/doc/local-authority/00DA,Leeds City Council,Environment & Neighbourhoods,Environmental Health,Capital,Construction,3,13-May-11,1105-00399,4150,C,B & K Passmore
http://statistics.data.gov.uk/doc/local-authority/00DA,Leeds City Council,Environment & Neighbourhoods,South South East,Capital,Construction,3,17-May-11,1105-00400,1100,C,B & K Passmore
http://statistics.data.gov.uk/doc/local-authority/00DA,Leeds City Council,Environment & Neighbourhoods,South South East,Capital,Construction,3,17-May-11,1105-00401,5446.74,C,B & K Passmore
http://statistics.data.gov.uk/doc/local-authority/00DA,Leeds City Council,Environment & Neighbourhoods,Environmental Health,Capital,Construction,3,20-May-11,1105-00402,4150,C,B & K Passmore
http://statistics.data.gov.uk/doc/local-authority/00DA,Leeds City Council,Environment & Neighbourhoods,Environmental Health,Capital,Construction,3,20-May-11,1105-00403,4150,C,B & K Passmore
http://statistics.data.gov.uk/doc/local-authority/00DA,Leeds City Council,Environment & Neighbourhoods,Environmental Health,Capital,Construction,3,20-May-11,1105-00404,2376,C,B & K Passmore
http://statistics.data.gov.uk/doc/local-authority/00DA,Leeds City Council,Environment & Neighbourhoods,Environmental Health,Capital,Construction,3,31-May-11,1105-00405,4150,C,B & K Passmore
http://statistics.data.gov.uk/doc/local-authority/00DA,Aire Valley Homes Leeds,Aire Valley Homes Leeds,Housing,Employees,Temporary Staff-Basic,9,10-May-11,1105-00406,730.85,R,Badenoch & Clark Ltd
http://statistics.data.gov.uk/doc/local-authority/00DA,Aire Valley Homes Leeds,Aire Valley Homes Leeds,Housing,Employees,Temporary Staff-Basic,9,10-May-11,1105-00407,495.41,R,Badenoch & Clark Ltd
http://statistics.data.gov.uk/doc/local-authority/00DA,West - North West,West - North West,Customer And Tenancy,Employees,Temporary Staff-Basic,9,13-May-11,1105-00408,1120.49,R,Badenoch & Clark Ltd
http://statistics.data.gov.uk/doc/local-authority/00DA,West - North West,West - North West,Customer And Tenancy,Employees,Temporary Staff-Basic,9,13-May-11,1105-00409,620.86,R,Badenoch & Clark Ltd
http://statistics.data.gov.uk/doc/local-authority/00DA,West - North West,West - North West,Customer And Tenancy,Supplies and Services,Project Management Group,260,13-May-11,1105-00410,658.28,R,Badenoch & Clark Ltd
http://statistics.data.gov.uk/doc/local-authority/00DA,West - North West,West - North West,Customer And Tenancy,Supplies and Services,Project Management Group,260,13-May-11,1105-00411,552.49,R,Badenoch & Clark Ltd
http://statistics.data.gov.uk/doc/local-authority/00DA,West - North West,West - North West,Customer And Tenancy,Employees,Temporary Staff-Basic,9,13-May-11,1105-00412,489.51,R,Badenoch & Clark Ltd
http://statistics.data.gov.uk/doc/local-authority/00DA,West - North West,West - North West,Customer And Tenancy,Employees,Temporary Staff-Basic,9,13-May-11,1105-00413,489.51,R,Badenoch & Clark Ltd
http://statistics.data.gov.uk/doc/local-authority/00DA,West - North West,West - North West,Customer And Tenancy,Employees,Temporary Staff-Basic,9,13-May-11,1105-00414,489.51,R,Badenoch & Clark Ltd
http://statistics.data.gov.uk/doc/local-authority/00DA,West - North West,West - North West,Customer And Tenancy,Employees,Temporary Staff-Basic,9,13-May-11,1105-00415,486.55,R,Badenoch & Clark Ltd
http://statistics.data.gov.uk/doc/local-authority/00DA,West - North West,West - North West,Customer And Tenancy,Employees,Temporary Staff-Basic,9,13-May-11,1105-00416,620.86,R,Badenoch & Clark Ltd
http://statistics.data.gov.uk/doc/local-authority/00DA,West - North West,West - North West,Customer And Tenancy,Supplies and Services,Project Management Group,260,24-May-11,1105-00417,752.32,R,Badenoch & Clark Ltd
http://statistics.data.gov.uk/doc/local-authority/00DA,West - North West,West - North West,Customer And Tenancy,Employees,Temporary Staff-Basic,9,25-May-11,1105-00418,461.76,R,Badenoch & Clark Ltd
http://statistics.data.gov.uk/doc/local-authority/00DA,West - North West,West - North West,Customer And Tenancy,Employees,Temporary Staff-Basic,9,25-May-11,1105-00419,620.86,R,Badenoch & Clark Ltd
http://statistics.data.gov.uk/doc/local-authority/00DA,West - North West,West - North West,Customer And Tenancy,Employees,Temporary Staff-Basic,9,27-May-11,1105-00420,496.13,R,Badenoch & Clark Ltd
http://statistics.data.gov.uk/doc/local-authority/00DA,West - North West,West - North West,Customer And Tenancy,Employees,Temporary Staff-Basic,9,27-May-11,1105-00421,489.51,R,Badenoch & Clark Ltd
http://statistics.data.gov.uk/doc/local-authority/00DA,West - North West,West - North West,Customer And Tenancy,Employees,Temporary Staff-Basic,9,27-May-11,1105-00422,486.55,R,Badenoch & Clark Ltd
http://statistics.data.gov.uk/doc/local-authority/00DA,West - North West,West - North West,Customer And Tenancy,Employees,Temporary Staff-Basic,9,27-May-11,1105-00423,496.13,R,Badenoch & Clark Ltd
http://statistics.data.gov.uk/doc/local-authority/00DA,West - North West,West - North West,Customer And Tenancy,Employees,Temporary Staff-Basic,9,27-May-11,1105-00424,423.36,R,Badenoch & Clark Ltd
http://statistics.data.gov.uk/doc/local-authority/00DA,West - North West,West - North West,Customer And Tenancy,Employees,Temporary Staff-Basic,9,27-May-11,1105-00425,417.51,R,Badenoch & Clark Ltd
http://statistics.data.gov.uk/doc/local-authority/00DA,Leeds City Council,City Development,City Development,Supplies and Services,Resaleable Material,204,12-Apr-11,1105-00426,1654.54,R,Baker & Taylor (Uk) Ltd
http://statistics.data.gov.uk/doc/local-authority/00DA,Leeds City Council,City Development,City Development,Supplies and Services,Resaleable Material,204,12-Apr-11,1105-00427,1654.54,R,Baker & Taylor (Uk) Ltd
http://statistics.data.gov.uk/doc/local-authority/00DA,Leeds City Council,City Development,Recreation,Supplies and Services,Operational Materials,205,13-May-11,1105-00428,533.41,R,Ball Colegrave Ltd
http://statistics.data.gov.uk/doc/local-authority/00DA,Leeds City Council,City Development,Libraries Arts & Heritage,Capital,Construction,3,04-May-11,1105-00429,556980.6,C,Bam Construction Ltd
http://statistics.data.gov.uk/doc/local-authority/00DA,Leeds City Council,City Development,Libraries Arts & Heritage,Capital,Construction,3,25-May-11,1105-00430,600962.57,C,Bam Construction Ltd
http://statistics.data.gov.uk/doc/local-authority/00DA,Leeds City Council,City Development,Asset Management Services,Capital,Other Costs,7,27-May-11,1105-00431,309182,C,Bam Construction Ltd
http://statistics.data.gov.uk/doc/local-authority/00DA,Leeds City Council,Environment & Neighbourhoods,Regeneration,Supplies and Services,Other Hired And Contracted Services,265,06-May-11,1105-00432,3750,R,Bangladesh Centre Leeds.
http://statistics.data.gov.uk/doc/local-authority/00DA,Leeds City Council,City Development,Recreation,Supplies and Services,Operational Materials,205,05-May-11,1105-00433,1325,R,Banner Plant Ltd
http://statistics.data.gov.uk/doc/local-authority/00DA,Leeds City Council,Environment & Neighbourhoods,Safer Leeds Drugs Team,Third Party Payments,Services Rendered By Voluntary Sector,505,03-May-11,1105-00434,52998.75,R,Barca Leeds
http://statistics.data.gov.uk/doc/local-authority/00DA,Leeds City Council,Childrens Services,Integrated Youth Support Service,Third Party Payments,Services Rendered By Voluntary Sector,505,03-May-11,1105-00435,13087,R,Barca Leeds
http://statistics.data.gov.uk/doc/local-authority/00DA,Leeds City Council,Childrens Services,Integrated Youth Support Service,Third Party Payments,Services Rendered By Voluntary Sector,505,05-May-11,1105-00436,19102.5,R,Barca Leeds
http://statistics.data.gov.uk/doc/local-authority/00DA,Leeds City Council,Childrens Services,Early Years Service,Third Party Payments,Services Rendered By Voluntary Sector,505,27-May-11,1105-00437,16000,R,Barca Leeds
http://statistics.data.gov.uk/doc/local-authority/00DA,Leeds City Council,Childrens Services,Integrated Youth Support Service,Supplies and Services,Other Hired And Contracted Services,265,27-May-11,1105-00438,2130.25,R,Barca Leeds
http://statistics.data.gov.uk/doc/local-authority/00DA,Leeds City Council,City Development,Recreation,Supplies and Services,Other Hired And Contracted Services,265,11-May-11,1105-00439,4560,R,Bardsey Tree Services
http://statistics.data.gov.uk/doc/local-authority/00DA,Leeds City Council,Adult Social Care,Services For Adults Under 65 Mental/Dis,Third Party Payments,Payments To Voluntary Organisations,561,20-May-11,1105-00440,26063,R,Barnardo Services Ltd
http://statistics.data.gov.uk/doc/local-authority/00DA,Leeds City Council,Childrens Services,Other Childrens And Families Services,Transfer Payments,Sth Leeds Grndwrk Trst-Unreclaimable Vat,661,17-May-11,1105-00441,59670,R,Barnardos Yorkshire
http://statistics.data.gov.uk/doc/local-authority/00DA,Leeds City Council,City Development,Recreation,Supplies and Services,Operational Furniture And Equipment,203,10-May-11,1105-00442,560,R,Baron Bros Ltd
http://statistics.data.gov.uk/doc/local-authority/00DA,Leeds City Council,City Development,Libraries Arts & Heritage,Supplies and Services,Office Furniture & Equipment,201,06-May-11,1105-00443,3480,R,Barrett Business Machines
http://statistics.data.gov.uk/doc/local-authority/00DA,Education Leeds,Education Leeds,Education Leeds,Supplies and Services,Advertising,211,16-May-11,1105-00444,7040.8,R,Bauer Radio Ltd
http://statistics.data.gov.uk/doc/local-authority/00DA,Leeds City Council,City Development,Asset Management Services,Supplies and Services,Publication And Promotion,267,27-May-11,1105-00445,1500,R,Bauer Radio Ltd
http://statistics.data.gov.uk/doc/local-authority/00DA,Leeds City Council,City Development,Libraries Arts & Heritage,Premises,Oil,122,04-May-11,1105-00446,768.66,R,Bayford Oil
http://statistics.data.gov.uk/doc/local-authority/00DA,Leeds City Council,Central & Corporate Functions,Support And Facilities Trading Services,Premises,Oil,122,05-May-11,1105-00447,1323,R,Bayford Oil
http://statistics.data.gov.uk/doc/local-authority/00DA,Leeds City Council,Central & Corporate Functions,Commercial Services Trading Services,Transport,Fuel (Non LCC Supplies),321,06-May-11,1105-00448,40013.21,R,Bayford Oil
http://statistics.data.gov.uk/doc/local-authority/00DA,Leeds City Council,Environment & Neighbourhoods,Streetscene Environmental Services,Premises,Oil,122,10-May-11,1105-00449,822.92,R,Bayford Oil
http://statistics.data.gov.uk/doc/local-authority/00DA,Leeds City Council,Environment & Neighbourhoods,Streetscene Environmental Services,Transport,Fuel (Non LCC Supplies),321,10-May-11,1105-00450,1045.05,R,Bayford Oil
http://statistics.data.gov.uk/doc/local-authority/00DA,Leeds City Council,Central & Corporate Functions,Commercial Services Trading Services,Transport,Fuel (Non LCC Supplies),321,10-May-11,1105-00451,11464.15,R,Bayford Oil
http://statistics.data.gov.uk/doc/local-authority/00DA,Leeds City Council,Central & Corporate Functions,Commercial Services Trading Services,Transport,Fuel (Non LCC Supplies),321,10-May-11,1105-00452,1949.59,R,Bayford Oil
http://statistics.data.gov.uk/doc/local-authority/00DA,Leeds City Council,Central & Corporate Functions,Commercial Services Trading Services,Transport,Fuel (Non LCC Supplies),321,12-May-11,1105-00453,17179.5,R,Bayford Oil
http://statistics.data.gov.uk/doc/local-authority/00DA,Leeds City Council,Central & Corporate Functions,Commercial Services Trading Services,Transport,Fuel (Non LCC Supplies),321,12-May-11,1105-00454,20728.8,R,Bayford Oil
http://statistics.data.gov.uk/doc/local-authority/00DA,Leeds City Council,Central & Corporate Functions,Commercial Services Trading Services,Transport,Fuel (Non LCC Supplies),321,13-May-11,1105-00455,23032,R,Bayford Oil
http://statistics.data.gov.uk/doc/local-authority/00DA,Leeds City Council,City Development,Recreation,Transport,Fuel (Non LCC Supplies),321,18-May-11,1105-00456,3779.65,R,Bayford Oil
http://statistics.data.gov.uk/doc/local-authority/00DA,Leeds City Council,Central & Corporate Functions,Commercial Services Trading Services,Transport,Fuel (Non LCC Supplies),321,18-May-11,1105-00457,40306,R,Bayford Oil
http://statistics.data.gov.uk/doc/local-authority/00DA,Leeds City Council,City Development,Recreation,Transport,Fuel (Non LCC Supplies),321,18-May-11,1105-00458,1681.5,R,Bayford Oil
http://statistics.data.gov.uk/doc/local-authority/00DA,Leeds City Council,City Development,Recreation,Transport,Fuel (Non LCC Supplies),321,19-May-11,1105-00459,1302.56,R,Bayford Oil
http://statistics.data.gov.uk/doc/local-authority/00DA,Leeds City Council,City Development,Recreation,Transport,Fuel (Non LCC Supplies),321,19-May-11,1105-00460,1154.28,R,Bayford Oil
http://statistics.data.gov.uk/doc/local-authority/00DA,Leeds City Council,City Development,Recreation,Transport,Fuel (Non LCC Supplies),321,19-May-11,1105-00461,17317.84,R,Bayford Oil
http://statistics.data.gov.uk/doc/local-authority/00DA,Leeds City Council,City Development,Recreation,Transport,Fuel (Non LCC Supplies),321,20-May-11,1105-00462,17213.86,R,Bayford Oil
http://statistics.data.gov.uk/doc/local-authority/00DA,Leeds City Council,City Development,Recreation,Transport,Fuel (Non LCC Supplies),321,20-May-11,1105-00463,2663.2,R,Bayford Oil
http://statistics.data.gov.uk/doc/local-authority/00DA,Leeds City Council,Environment & Neighbourhoods,Streetscene Environmental Services,Transport,Fuel (Non LCC Supplies),321,20-May-11,1105-00464,871.41,R,Bayford Oil
http://statistics.data.gov.uk/doc/local-authority/00DA,Leeds City Council,Central & Corporate Functions,Commercial Services Trading Services,Transport,Fuel (Non LCC Supplies),321,20-May-11,1105-00465,17304,R,Bayford Oil
http://statistics.data.gov.uk/doc/local-authority/00DA,Leeds City Council,City Development,Recreation,Transport,Fuel (Non LCC Supplies),321,20-May-11,1105-00466,1014.22,R,Bayford Oil
http://statistics.data.gov.uk/doc/local-authority/00DA,Leeds City Council,Central & Corporate Functions,Commercial Services Trading Services,Transport,Fuel (Non LCC Supplies),321,26-May-11,1105-00467,40307.15,R,Bayford Oil
http://statistics.data.gov.uk/doc/local-authority/00DA,Leeds City Council,Central & Corporate Functions,Commercial Services Trading Services,Transport,Fuel (Non LCC Supplies),321,26-May-11,1105-00468,20728.8,R,Bayford Oil
http://statistics.data.gov.uk/doc/local-authority/00DA,Leeds City Council,Central & Corporate Functions,Commercial Services Trading Services,Transport,Fuel (Non LCC Supplies),321,27-May-11,1105-00469,1997.7,R,Bayford Oil
http://statistics.data.gov.uk/doc/local-authority/00DA,Leeds City Council,Central & Corporate Functions,Commercial Services Trading Services,Transport,Fuel (Non LCC Supplies),321,27-May-11,1105-00470,40065.64,R,Bayford Oil
http://statistics.data.gov.uk/doc/local-authority/00DA,Leeds City Council,City Development,Recreation,Transport,Fuel (Non LCC Supplies),321,31-May-11,1105-00471,4597.1,R,Bayford Oil
http://statistics.data.gov.uk/doc/local-authority/00DA,Leeds City Council,City Development,Recreation,Transport,Fuel (Non LCC Supplies),321,31-May-11,1105-00472,1016.85,R,Bayford Oil
http://statistics.data.gov.uk/doc/local-authority/00DA,Leeds City Council,Adult Social Care,Services For Older People Under 65 P/Dis,Third Party Payments,Residential,580,11-May-11,1105-00473,7984,R,Baylis Place
http://statistics.data.gov.uk/doc/local-authority/00DA,Leeds City Council,Central & Corporate Functions,Information Technology,Supplies and Services,Networks Dept Orders - Expenditure,90,06-May-11,1105-00474,435,R,Beacon Communication Technology (North)
http://statistics.data.gov.uk/doc/local-authority/00DA,Leeds City Council,Central & Corporate Functions,Information Technology,Supplies and Services,Networks Dept Orders - Expenditure,90,06-May-11,1105-00475,625,R,Beacon Communication Technology (North)
http://statistics.data.gov.uk/doc/local-authority/00DA,Leeds City Council,Central & Corporate Functions,Information Technology,Supplies and Services,Networks Dept Orders - Expenditure,90,06-May-11,1105-00476,625,R,Beacon Communication Technology (North)
http://statistics.data.gov.uk/doc/local-authority/00DA,Leeds City Council,Central & Corporate Functions,Information Technology,Supplies and Services,Networks Dept Orders - Expenditure,90,06-May-11,1105-00477,625,R,Beacon Communication Technology (North)
http://statistics.data.gov.uk/doc/local-authority/00DA,Leeds City Council,Central & Corporate Functions,Information Technology,Supplies and Services,Networks Dept Orders - Expenditure,90,06-May-11,1105-00478,625,R,Beacon Communication Technology (North)
http://statistics.data.gov.uk/doc/local-authority/00DA,Leeds City Council,Central & Corporate Functions,Information Technology,Supplies and Services,Networks Dept Orders - Expenditure,90,11-May-11,1105-00479,3225,R,Beacon Communication Technology (North)
http://statistics.data.gov.uk/doc/local-authority/00DA,Leeds City Council,Central & Corporate Functions,Information Technology,Capital,Furniture And Equipment,5,12-May-11,1105-00480,3459,C,Beacon Communication Technology (North)
http://statistics.data.gov.uk/doc/local-authority/00DA,Leeds City Council,Central & Corporate Functions,Information Technology,Supplies and Services,Telephones,213,17-May-11,1105-00481,439.5,R,Beacon Communication Technology (North)
http://statistics.data.gov.uk/doc/local-authority/00DA,Leeds City Council,Central & Corporate Functions,Executive Support,Supplies and Services,Computer Software & Equipment,214,25-May-11,1105-00482,16020,R,Beacon Communication Technology (North)
http://statistics.data.gov.uk/doc/local-authority/00DA,Leeds City Council,Adult Social Care,Services For Adults Under 65 Learn/Dis,Premises,First Aid Requisites,128,11-May-11,1105-00483,656.9,R,Beaucare Medical Ltd
http://statistics.data.gov.uk/doc/local-authority/00DA,Leeds City Council,Central & Corporate Functions,Corporate Governance,Premises,Rents,141,25-May-11,1105-00484,450,R,Beckett Park Community Association
http://statistics.data.gov.uk/doc/local-authority/00DA,Leeds City Council,Adult Social Care,Services For Older People - 65 And Over,Third Party Payments,Residential,580,11-May-11,1105-00485,1207.2,R,Beech Lodge Residential Home
http://statistics.data.gov.uk/doc/local-authority/00DA,Leeds City Council,Childrens Services,Early Years Service,Third Party Payments,Services Rendered By Other Organisations,511,20-May-11,1105-00486,7317.12,R,Beechtree Headingley Kindergarten
http://statistics.data.gov.uk/doc/local-authority/00DA,Leeds City Council,Central & Corporate Functions,Corporate Governance,Premises,Rents,141,20-May-11,1105-00487,700,R,Beeston Juniors Football Club
http://statistics.data.gov.uk/doc/local-authority/00DA,Leeds City Council,Adult Social Care,Adult Social Care,Supplies and Services,Other Hired And Contracted Services,265,13-May-11,1105-00488,540,R,Beeston Park Boarding & Cattery
http://statistics.data.gov.uk/doc/local-authority/00DA,Leeds City Council,Environment & Neighbourhoods,Housing Needs,Third Party Payments,Supporting Ppl - Block Gross Chargeable,514,23-May-11,1105-00489,12947.81,R,Behind Closed Doors (Bcd)
http://statistics.data.gov.uk/doc/local-authority/00DA,Leeds City Council,Adult Social Care,Services For Older People - 65 And Over,Third Party Payments,Nursing Home,570,12-May-11,1105-00490,1336.08,R,Belle Green Court Care Home
http://statistics.data.gov.uk/doc/local-authority/00DA,Leeds City Council,Central & Corporate Functions,Corporate Governance,Premises,Rents,141,20-May-11,1105-00491,550,R,Belle Isle Parochial Church Council
http://statistics.data.gov.uk/doc/local-authority/00DA,Leeds City Council,Environment & Neighbourhoods,Housing Needs,Third Party Payments,Supporting People - Block Subsidy,513,23-May-11,1105-00492,5720.96,R,Belle Isle Tenant Management
http://statistics.data.gov.uk/doc/local-authority/00DA,Leeds City Council,Environment & Neighbourhoods,Housing Needs,Third Party Payments,Supporting Ppl - Block Gross Chargeable,514,23-May-11,1105-00493,3188.78,R,Belle Isle Tenant Management
http://statistics.data.gov.uk/doc/local-authority/00DA,Leeds City Council,Environment & Neighbourhoods,Housing Needs,Third Party Payments,Supporting Ppl - Block Gross Chargeable,514,23-May-11,1105-00494,2755.24,R,Belle Isle Tenant Management
http://statistics.data.gov.uk/doc/local-authority/00DA,Leeds City Council,Adult Social Care,Services For Older People - 65 And Over,Third Party Payments,Residential,580,11-May-11,1105-00495,911.76,R,Belvedere Residential Home
http://statistics.data.gov.uk/doc/local-authority/00DA,Leeds City Council as Accountable Body,Jcs For People With Learning Disabilitie,Jcs For People With Learning Disabilitie,Third Party Payments,Residential,580,12-May-11,1105-00496,8653.83,R,Benedict Nursing Home
http://statistics.data.gov.uk/doc/local-authority/00DA,Leeds City Council,Central & Corporate Functions,Commercial Services Trading Services,Transport,Vehicle Spares,345,04-May-11,1105-00497,426.42,R,Benfield Ford Leeds (Parts Invs)
http://statistics.data.gov.uk/doc/local-authority/00DA,Leeds City Council,Adult Social Care,Services For Older People - 65 And Over,Third Party Payments,Residential Care Emi,571,11-May-11,1105-00498,33388.08,R,Berkley Court
http://statistics.data.gov.uk/doc/local-authority/00DA,Leeds City Council,Adult Social Care,Services For Older People - 65 And Over,Third Party Payments,Residential,580,11-May-11,1105-00499,15873.11,R,Berkley Court
http://statistics.data.gov.uk/doc/local-authority/00DA,Leeds City Council,Childrens Services,Children - Commissioning And Social Work,Supplies and Services,Consultancy Services,259,10-May-11,1105-00500,1600,R,Berrybrown Ltd
http://statistics.data.gov.uk/doc/local-authority/00DA,Leeds City Council,Childrens Services,Children - Commissioning And Social Work,Supplies and Services,Consultancy Services,259,17-May-11,1105-00501,1600,R,Berrybrown Ltd
http://statistics.data.gov.uk/doc/local-authority/00DA,Leeds City Council,Childrens Services,Children - Commissioning And Social Work,Supplies and Services,Consultancy Services,259,23-May-11,1105-00502,1280,R,Berrybrown Ltd
http://statistics.data.gov.uk/doc/local-authority/00DA,Leeds City Council,Childrens Services,Children - Commissioning And Social Work,Supplies and Services,Consultancy Services,259,27-May-11,1105-00503,960,R,Berrybrown Ltd
http://statistics.data.gov.uk/doc/local-authority/00DA,Leeds City Council,Central & Corporate Functions,Corporate Governance,Support Services,External Solicitor - Resource,752,05-May-11,1105-00504,551,R,Berrymans Lace Mawer
http://statistics.data.gov.uk/doc/local-authority/00DA,Leeds City Council,Central & Corporate Functions,Corporate Governance,Support Services,External Solicitor - Resource,752,10-May-11,1105-00505,634.8,R,Berrymans Lace Mawer
http://statistics.data.gov.uk/doc/local-authority/00DA,Leeds City Council,Adult Social Care,Services For Older People - 65 And Over,Third Party Payments,Residential Care Emi,571,11-May-11,1105-00506,1760.92,R,Bethel House
http://statistics.data.gov.uk/doc/local-authority/00DA,Leeds City Council,Adult Social Care,Services For Older People - 65 And Over,Third Party Payments,Nursing Care Emi,574,11-May-11,1105-00507,1728,R,Bewick Lodge
http://statistics.data.gov.uk/doc/local-authority/00DA,Leeds City Council,Central & Corporate Functions,Commercial Services Trading Services,Supplies and Services,Other Hired And Contracted Services,265,26-May-11,1105-00508,785,R,Bics
http://statistics.data.gov.uk/doc/local-authority/00DA,Leeds City Council,Central & Corporate Functions,Commercial Services Trading Services,Supplies and Services,Office Consumables,210,12-Apr-11,1105-00509,437.6,R,Biffa Waste
http://statistics.data.gov.uk/doc/local-authority/00DA,Leeds City Council,Environment & Neighbourhoods,Streetscene Environmental Services,Supplies and Services,Waste Disposal Charges,236,03-May-11,1105-00510,1719.24,R,Biffa Waste Services Ltd
http://statistics.data.gov.uk/doc/local-authority/00DA,Leeds City Council,Environment & Neighbourhoods,Streetscene Environmental Services,Supplies and Services,Waste Disposal Charges,236,03-May-11,1105-00511,3415.04,R,Biffa Waste Services Ltd
http://statistics.data.gov.uk/doc/local-authority/00DA,Leeds City Council,Environment & Neighbourhoods,Streetscene Environmental Services,Supplies and Services,Recycling & Reuse Charges,234,03-May-11,1105-00512,1989.26,R,Biffa Waste Services Ltd
http://statistics.data.gov.uk/doc/local-authority/00DA,Leeds City Council,Environment & Neighbourhoods,Streetscene Environmental Services,Supplies and Services,Waste Disposal Charges,236,03-May-11,1105-00513,29046.83,R,Biffa Waste Services Ltd
http://statistics.data.gov.uk/doc/local-authority/00DA,Leeds City Council,Environment & Neighbourhoods,Streetscene Environmental Services,Supplies and Services,Waste Disposal Charges,236,03-May-11,1105-00514,93202.14,R,Biffa Waste Services Ltd
http://statistics.data.gov.uk/doc/local-authority/00DA,Leeds City Council,Environment & Neighbourhoods,Streetscene Environmental Services,Supplies and Services,Recycling & Reuse Charges,234,12-May-11,1105-00515,2261.63,R,Biffa Waste Services Ltd
http://statistics.data.gov.uk/doc/local-authority/00DA,Leeds City Council,Environment & Neighbourhoods,Streetscene Environmental Services,Supplies and Services,Waste Disposal Charges,236,12-May-11,1105-00516,30269.73,R,Biffa Waste Services Ltd
http://statistics.data.gov.uk/doc/local-authority/00DA,Leeds City Council,Environment & Neighbourhoods,Streetscene Environmental Services,Supplies and Services,Waste Disposal Charges,236,12-May-11,1105-00517,114743.16,R,Biffa Waste Services Ltd
http://statistics.data.gov.uk/doc/local-authority/00DA,Leeds City Council,Environment & Neighbourhoods,Streetscene Environmental Services,Supplies and Services,Recycling & Reuse Charges,234,18-May-11,1105-00518,2379.75,R,Biffa Waste Services Ltd
http://statistics.data.gov.uk/doc/local-authority/00DA,Leeds City Council,Environment & Neighbourhoods,Streetscene Environmental Services,Supplies and Services,Waste Disposal Charges,236,18-May-11,1105-00519,29532.26,R,Biffa Waste Services Ltd
http://statistics.data.gov.uk/doc/local-authority/00DA,Leeds City Council,Environment & Neighbourhoods,Streetscene Environmental Services,Supplies and Services,Waste Disposal Charges,236,18-May-11,1105-00520,113361.33,R,Biffa Waste Services Ltd
http://statistics.data.gov.uk/doc/local-authority/00DA,Leeds City Council,Environment & Neighbourhoods,Streetscene Environmental Services,Supplies and Services,Waste Disposal Charges,236,25-May-11,1105-00521,2842.33,R,Biffa Waste Services Ltd
http://statistics.data.gov.uk/doc/local-authority/00DA,Leeds City Council,Environment & Neighbourhoods,Streetscene Environmental Services,Supplies and Services,Waste Disposal Charges,236,25-May-11,1105-00522,6065.92,R,Biffa Waste Services Ltd
http://statistics.data.gov.uk/doc/local-authority/00DA,Leeds City Council,Childrens Services,Integrated Youth Support Service,Supplies and Services,Operational Furniture & Equipment,203,19-Apr-11,1105-00523,644,R,Big Dug Ltd
http://statistics.data.gov.uk/doc/local-authority/00DA,Leeds City Council,City Development,Libraries Arts & Heritage,Supplies and Services,Non-Recurring Grants,227,05-May-11,1105-00524,1000,R,Big Hoo Ha Co
http://statistics.data.gov.uk/doc/local-authority/00DA,Leeds City Council,City Development,City Development,Supplies and Services,Resaleable Material,204,21-Apr-11,1105-00525,1043.25,R,Big Jigs Wooden Toy Ca
http://statistics.data.gov.uk/doc/local-authority/00DA,Leeds City Council,City Development,Libraries Arts & Heritage,Income,Admissions Booking Fees & Ticket Sales,933,24-May-11,1105-00526,1902.08,R,Big Red Curtain Limited
http://statistics.data.gov.uk/doc/local-authority/00DA,Leeds City Council,City Development,Highways,Supplies and Services,Publication And Promotion,267,19-May-11,1105-00527,1957.45,R,Bikeability Btb Mail Flight
http://statistics.data.gov.uk/doc/local-authority/00DA,East - North East,East - North East,Technical Services,Supplies and Services,Other Materials,205,09-May-11,1105-00528,770.37,R,Bilbeck (Merchants) Ltd
http://statistics.data.gov.uk/doc/local-authority/00DA,East - North East,East - North East,Technical Services,Supplies and Services,Other Materials,205,09-May-11,1105-00529,1454.66,R,Bilbeck (Merchants) Ltd
http://statistics.data.gov.uk/doc/local-authority/00DA,East - North East,East - North East,Technical Services,Supplies and Services,Other Materials,205,12-May-11,1105-00530,864.92,R,Bilbeck (Merchants) Ltd
http://statistics.data.gov.uk/doc/local-authority/00DA,East - North East,East - North East,Technical Services,Supplies and Services,Other Materials,205,12-May-11,1105-00531,1506.64,R,Bilbeck (Merchants) Ltd
http://statistics.data.gov.uk/doc/local-authority/00DA,East - North East,East - North East,Technical Services,Supplies and Services,Other Materials,205,12-May-11,1105-00532,885.87,R,Bilbeck (Merchants) Ltd
http://statistics.data.gov.uk/doc/local-authority/00DA,East - North East,East - North East,Technical Services,Supplies and Services,Other Materials,205,12-May-11,1105-00533,1158,R,Bilbeck (Merchants) Ltd
http://statistics.data.gov.uk/doc/local-authority/00DA,East - North East,East - North East,Technical Services,Supplies and Services,Other Materials,205,13-May-11,1105-00534,573.09,R,Bilbeck (Merchants) Ltd
http://statistics.data.gov.uk/doc/local-authority/00DA,East - North East,East - North East,Technical Services,Supplies and Services,Other Materials,205,13-May-11,1105-00535,1908.06,R,Bilbeck (Merchants) Ltd
http://statistics.data.gov.uk/doc/local-authority/00DA,East - North East,East - North East,Technical Services,Supplies and Services,Other Materials,205,13-May-11,1105-00536,874.46,R,Bilbeck (Merchants) Ltd
http://statistics.data.gov.uk/doc/local-authority/00DA,East - North East,East - North East,Technical Services,Supplies and Services,Other Materials,205,26-May-11,1105-00537,1098.25,R,Bilbeck (Merchants) Ltd
http://statistics.data.gov.uk/doc/local-authority/00DA,Leeds City Council,Childrens Services,Youth Justice,Premises,Maintenance Of Buildings,101,31-May-11,1105-00538,1024,R,Binns Fencing Limited
http://statistics.data.gov.uk/doc/local-authority/00DA,Leeds City Council,City Development,Recreation,Transport,Plant Spares,346,04-May-11,1105-00539,1956.27,R,Binson Bearings
http://statistics.data.gov.uk/doc/local-authority/00DA,Leeds City Council,Other Education Services,Active Accounts,Third Party Payments,Services Provided By Other Las (Non WY),525,12-May-11,1105-00540,678.08,R,Birmingham City Council
http://statistics.data.gov.uk/doc/local-authority/00DA,Leeds City Council,Central & Corporate Functions,Commercial Services Trading Services,Supplies and Services,Other Hired And Contracted Services,265,12-May-11,1105-00541,750,R,Bison Bede Limited
http://statistics.data.gov.uk/doc/local-authority/00DA,Leeds City Council,Central & Corporate Functions,Commercial Services Trading Services,Supplies and Services,Other Hired And Contracted Services,265,12-May-11,1105-00542,750,R,Bison Bede Limited
http://statistics.data.gov.uk/doc/local-authority/00DA,Leeds City Council,Central & Corporate Functions,Commercial Services Trading Services,Supplies and Services,Other Hired And Contracted Services,265,12-May-11,1105-00543,1375,R,Bison Bede Limited
http://statistics.data.gov.uk/doc/local-authority/00DA,Leeds City Council,Central & Corporate Functions,Commercial Services Trading Services,Supplies and Services,Other Hired And Contracted Services,265,13-May-11,1105-00544,970,R,Bison Bede Limited
http://statistics.data.gov.uk/doc/local-authority/00DA,Leeds City Council,Central & Corporate Functions,Commercial Services Trading Services,Supplies and Services,Other Hired And Contracted Services,265,16-May-11,1105-00545,750,R,Bison Bede Limited
http://statistics.data.gov.uk/doc/local-authority/00DA,Leeds City Council,Central & Corporate Functions,Commercial Services Trading Services,Supplies and Services,Other Hired And Contracted Services,265,19-May-11,1105-00546,970,R,Bison Bede Limited
http://statistics.data.gov.uk/doc/local-authority/00DA,Leeds City Council,Central & Corporate Functions,Commercial Services Trading Services,Supplies and Services,Other Hired And Contracted Services,265,20-May-11,1105-00547,970,R,Bison Bede Limited
http://statistics.data.gov.uk/doc/local-authority/00DA,Leeds City Council,Central & Corporate Functions,Commercial Services Trading Services,Supplies and Services,Other Hired And Contracted Services,265,27-May-11,1105-00548,970,R,Bison Bede Limited
http://statistics.data.gov.uk/doc/local-authority/00DA,Leeds City Council,Central & Corporate Functions,Commercial Services Trading Services,Supplies and Services,Other Hired And Contracted Services,265,27-May-11,1105-00549,1050,R,Bison Bede Limited
http://statistics.data.gov.uk/doc/local-authority/00DA,Leeds City Council,Adult Social Care,Other Adult Services,Third Party Payments,Payments To Voluntary Organisations,561,17-May-11,1105-00550,16000,R,Black Health Agency
http://statistics.data.gov.uk/doc/local-authority/00DA,Leeds City Council,Adult Social Care,Other Adult Services,Third Party Payments,Payments To Voluntary Organisations,561,17-May-11,1105-00551,72425.25,R,Black Health Agency
http://statistics.data.gov.uk/doc/local-authority/00DA,Leeds City Council,Central & Corporate Functions,Support And Facilities Trading Services,Supplies and Services,Operational Materials,205,12-May-11,1105-00552,690,R,Blackburns Metals Limited
http://statistics.data.gov.uk/doc/local-authority/00DA,Leeds City Council,Environment & Neighbourhoods,Belle Isle,Capital,Construction,3,04-May-11,1105-00553,13369.37,C,Blackie Ltd
http://statistics.data.gov.uk/doc/local-authority/00DA,Leeds City Council,Environment & Neighbourhoods,Belle Isle,Capital,Construction,3,12-May-11,1105-00554,15876.99,C,Blackie Ltd
http://statistics.data.gov.uk/doc/local-authority/00DA,Leeds City Council,Environment & Neighbourhoods,Belle Isle,Capital,Construction,3,19-May-11,1105-00555,7298.06,C,Blackie Ltd
http://statistics.data.gov.uk/doc/local-authority/00DA,Leeds City Council,Environment & Neighbourhoods,Belle Isle,Capital,Construction,3,25-May-11,1105-00556,6033.4,C,Blackie Ltd
http://statistics.data.gov.uk/doc/local-authority/00DA,Leeds City Council,Central & Corporate Functions,Executive Support,Supplies and Services,Printing,215,10-May-11,1105-00557,8600,R,Bmg Systems Ltd
http://statistics.data.gov.uk/doc/local-authority/00DA,Leeds City Council,City Development,Recreation,Capital,Furniture And Equipment,5,06-May-11,1105-00558,8500,C,Bob Wild Grass Machinery
http://statistics.data.gov.uk/doc/local-authority/00DA,Leeds City Council,City Development,Recreation,Supplies and Services,Operational Materials,205,20-May-11,1105-00559,536,R,Bocm Pauls Ltd
http://statistics.data.gov.uk/doc/local-authority/00DA,Leeds City Council,Central & Corporate Functions,Commercial Services Trading Services,Supplies and Services,Operational Materials,205,05-May-11,1105-00560,895,R,Boiler & Heating Supplies Ltd
http://statistics.data.gov.uk/doc/local-authority/00DA,Leeds City Council,Central & Corporate Functions,Commercial Services Trading Services,Supplies and Services,Operational Materials,205,12-May-11,1105-00561,826,R,Boiler & Heating Supplies Ltd
http://statistics.data.gov.uk/doc/local-authority/00DA,Leeds City Council,City Development,Recreation,Supplies and Services,Resaleable Materials,204,20-May-11,1105-00562,899.66,R,Bon Bons Ltd
http://statistics.data.gov.uk/doc/local-authority/00DA,Leeds City Council,City Development,Libraries Arts & Heritage,Supplies and Services,Resaleable Materials,204,13-May-11,1105-00563,1425.6,R,Book Tokens Ltd
http://statistics.data.gov.uk/doc/local-authority/00DA,Education Leeds,Education Leeds,Education Leeds,Supplies and Services,Office Equipment,201,04-May-11,1105-00564,584.53,R,Boosey & Hawkes (Mp) Ltd
http://statistics.data.gov.uk/doc/local-authority/00DA,Leeds City Council,Adult Social Care,Services For Older People - 65 And Over,Third Party Payments,Residential,580,12-May-11,1105-00565,651.64,R,Borrage House
http://statistics.data.gov.uk/doc/local-authority/00DA,West - North West,West - North West,Property And Maintenance,Premises,Furniture And Fittings,195,13-May-11,1105-00566,1284.4,R,Boundaries Fencing
http://statistics.data.gov.uk/doc/local-authority/00DA,Leeds City Council,Environment & Neighbourhoods,Hra,Supplies and Services,Office Consumables,210,27-May-11,1105-00567,595,R,Box-It (Yorkshire)
http://statistics.data.gov.uk/doc/local-authority/00DA,Leeds City Council,Central & Corporate Functions,Commercial Services Trading Services,Supplies and Services,Other Hired And Contracted Services,265,12-May-11,1105-00568,487.81,R,Bps Ltd
http://statistics.data.gov.uk/doc/local-authority/00DA,Leeds City Council,City Development,Economic Development,Supplies and Services,Memberships,226,31-May-11,1105-00569,750,R,Brada
http://statistics.data.gov.uk/doc/local-authority/00DA,Leeds City Council,Environment & Neighbourhoods,Housing Needs,Third Party Payments,Supporting Ppl - Block Gross Chargeable,514,23-May-11,1105-00570,1100.8,R,Bradford And Northern Housing
http://statistics.data.gov.uk/doc/local-authority/00DA,Leeds City Council,Adult Social Care,Services For Adults Under 65 Mental/Dis,Third Party Payments,Residential,580,11-May-11,1105-00571,1445.72,R,Bradford Independent (St Ives) Ltd
http://statistics.data.gov.uk/doc/local-authority/00DA,Leeds City Council,Adult Social Care,Services For Older People - 65 And Over,Third Party Payments,Nursing Home,570,11-May-11,1105-00572,2105.86,R,Bradford Independent (St Ives) Ltd
http://statistics.data.gov.uk/doc/local-authority/00DA,Leeds City Council,Adult Social Care,Services For Older People Under 65 P/Dis,Third Party Payments,Nursing Home,570,11-May-11,1105-00573,10343.12,R,Bradford Independent (St Ives) Ltd
http://statistics.data.gov.uk/doc/local-authority/00DA,Leeds City Council,Adult Social Care,Services For Older People Under 65 P/Dis,Third Party Payments,Residential,580,11-May-11,1105-00574,1915.08,R,Bradford Independent (St Ives) Ltd
http://statistics.data.gov.uk/doc/local-authority/00DA,Leeds City Council,Adult Social Care,Services For Adults Under 65 Mental/Dis,Third Party Payments,Nursing Home,570,11-May-11,1105-00575,3282.2,R,Bradford Independent Health Care
http://statistics.data.gov.uk/doc/local-authority/00DA,Leeds City Council,Adult Social Care,Services For Adults Under 65 Mental/Dis,Third Party Payments,Nursing Home,570,11-May-11,1105-00576,21060.96,R,Bradford Independent Health Care
http://statistics.data.gov.uk/doc/local-authority/00DA,Leeds City Council,Adult Social Care,Services For Adults Under 65 Mental/Dis,Third Party Payments,Residential,580,11-May-11,1105-00577,1121.08,R,Bradford Independent Health Care
http://statistics.data.gov.uk/doc/local-authority/00DA,Leeds City Council,Adult Social Care,Services For Older People - 65 And Over,Third Party Payments,Nursing Home,570,11-May-11,1105-00578,4299.96,R,Bradford Independent Health Care
http://statistics.data.gov.uk/doc/local-authority/00DA,Leeds City Council,Adult Social Care,Services For Older People - 65 And Over,Third Party Payments,Nursing Home,570,11-May-11,1105-00579,14893.04,R,Bradford Independent Health Care
http://statistics.data.gov.uk/doc/local-authority/00DA,Leeds City Council,Adult Social Care,Services For Older People - 65 And Over,Third Party Payments,Residential Care Emi,571,11-May-11,1105-00580,1638.68,R,Bradford Independent Health Care
http://statistics.data.gov.uk/doc/local-authority/00DA,Leeds City Council,Adult Social Care,Services For Older People - 65 And Over,Third Party Payments,Residential Care Emi,571,11-May-11,1105-00581,1710.08,R,Bradford Independent Health Care
http://statistics.data.gov.uk/doc/local-authority/00DA,Leeds City Council,Adult Social Care,Services For Older People - 65 And Over,Third Party Payments,Nursing Care Emi,574,11-May-11,1105-00582,5508.2,R,Bradford Independent Health Care
http://statistics.data.gov.uk/doc/local-authority/00DA,Leeds City Council,Adult Social Care,Services For Older People - 65 And Over,Third Party Payments,Nursing Care Emi,574,11-May-11,1105-00583,3221,R,Bradford Independent Health Care
http://statistics.data.gov.uk/doc/local-authority/00DA,Leeds City Council,Adult Social Care,Services For Older People - 65 And Over,Third Party Payments,Residential,580,11-May-11,1105-00584,1058.96,R,Bradford Independent Health Care
http://statistics.data.gov.uk/doc/local-authority/00DA,Leeds City Council as Accountable Body,Jcs For People With Learning Disabilitie,Jcs For People With Learning Disabilitie,Third Party Payments,Nursing Home,570,11-May-11,1105-00585,1797.8,R,Bradford Independent Health Care
http://statistics.data.gov.uk/doc/local-authority/00DA,Leeds City Council,Adult Social Care,Services For Adults Under 65 Mental/Dis,Third Party Payments,Nursing Home,570,11-May-11,1105-00586,1409.16,R,Bradford Independent Health Care Owlett
http://statistics.data.gov.uk/doc/local-authority/00DA,Leeds City Council,Adult Social Care,Services For Older People - 65 And Over,Third Party Payments,Nursing Home,570,11-May-11,1105-00587,24331.49,R,Bradford Independent Health Care Owlett
http://statistics.data.gov.uk/doc/local-authority/00DA,Leeds City Council,Adult Social Care,Services For Older People - 65 And Over,Third Party Payments,Residential,580,11-May-11,1105-00588,1847.38,R,Bradford Independent Health Care Owlett
http://statistics.data.gov.uk/doc/local-authority/00DA,Leeds City Council,Childrens Services,Children Looked After,Third Party Payments,Rent,552,23-May-11,1105-00589,718,R,Bradford Metropolitan Council
http://statistics.data.gov.uk/doc/local-authority/00DA,Leeds City Council,Environment & Neighbourhoods,South South East,Capital,Construction,3,19-May-11,1105-00590,1422.45,C,Bradley Environmental Consultants
http://statistics.data.gov.uk/doc/local-authority/00DA,Aire Valley Homes Leeds,Aire Valley Homes Leeds,E. Offices,Premises,H.R.A. - Special Maintenance,106,19-May-11,1105-00591,474.15,R,Bradley Environmental Consultants
http://statistics.data.gov.uk/doc/local-authority/00DA,Aire Valley Homes Leeds,Aire Valley Homes Leeds,S. Offices,Premises,H.R.A. - Special Maintenance,106,19-May-11,1105-00592,2370.75,R,Bradley Environmental Consultants
http://statistics.data.gov.uk/doc/local-authority/00DA,West - North West,West - North West,Property And Maintenance,Premises,H.R.A. - Special Maintenance,106,19-May-11,1105-00593,6647.7,R,Bradley Environmental Consultants
http://statistics.data.gov.uk/doc/local-authority/00DA,Leeds City Council,Environment & Neighbourhoods,South South East,Capital,Construction,3,20-May-11,1105-00594,474.15,C,Bradley Environmental Consultants
http://statistics.data.gov.uk/doc/local-authority/00DA,Leeds City Council,Environment & Neighbourhoods,South South East,Capital,Construction,3,20-May-11,1105-00595,474.15,C,Bradley Environmental Consultants
http://statistics.data.gov.uk/doc/local-authority/00DA,Leeds City Council,Environment & Neighbourhoods,South South East,Capital,Construction,3,20-May-11,1105-00596,632.2,C,Bradley Environmental Consultants
http://statistics.data.gov.uk/doc/local-authority/00DA,Leeds City Council,Environment & Neighbourhoods,South South East,Capital,Construction,3,20-May-11,1105-00597,632.2,C,Bradley Environmental Consultants
http://statistics.data.gov.uk/doc/local-authority/00DA,Leeds City Council,Adult Social Care,Services For Adults Under 65 Mental/Dis,Third Party Payments,Nursing Home,570,11-May-11,1105-00598,3782.2,R,Brain Injury Rehabilitation Trust
http://statistics.data.gov.uk/doc/local-authority/00DA,Leeds City Council,Adult Social Care,Services For Older People - 65 And Over,Third Party Payments,Sheltered Accommodation,569,11-May-11,1105-00599,4930.56,R,Brain Injury Rehabilitation Trust
http://statistics.data.gov.uk/doc/local-authority/00DA,Leeds City Council,Adult Social Care,Services For Older People Under 65 P/Dis,Third Party Payments,Sheltered Accommodation,569,11-May-11,1105-00600,4448,R,Brain Injury Rehabilitation Trust
http://statistics.data.gov.uk/doc/local-authority/00DA,Leeds City Council,Adult Social Care,Services For Older People Under 65 P/Dis,Third Party Payments,Sheltered Accommodation,569,11-May-11,1105-00601,9239.8,R,Brain Injury Rehabilitation Trust
http://statistics.data.gov.uk/doc/local-authority/00DA,Leeds City Council,Adult Social Care,Services For Older People Under 65 P/Dis,Third Party Payments,Residential,580,11-May-11,1105-00602,3979.68,R,Brain Injury Rehabilitation Trust
http://statistics.data.gov.uk/doc/local-authority/00DA,Leeds City Council,Adult Social Care,Services For Older People Under 65 P/Dis,Third Party Payments,Residential,580,18-May-11,1105-00603,4181.71,R,Brain Injury Rehabilitation Trust
http://statistics.data.gov.uk/doc/local-authority/00DA,Leeds City Council as Accountable Body,Jcs For People With Learning Disabilitie,Jcs For People With Learning Disabilitie,Third Party Payments,Home Care,568,25-May-11,1105-00604,1524.3,R,Brain Injury Rehabillitation Trust
http://statistics.data.gov.uk/doc/local-authority/00DA,Leeds City Council,Adult Social Care,Services For Older People Under 65 P/Dis,Third Party Payments,Home Care,568,25-May-11,1105-00605,4508.76,R,Brain Injury Rehabillitation Trust
http://statistics.data.gov.uk/doc/local-authority/00DA,Leeds City Council,Childrens Services,Childrens Services,Supplies and Services,Food And Drink,231,07-Apr-11,1105-00606,903.47,R,Brake Bros Ltd
http://statistics.data.gov.uk/doc/local-authority/00DA,Leeds City Council,Childrens Services,Childrens Services,Supplies and Services,Food And Drink,231,14-Apr-11,1105-00607,1014.06,R,Brake Bros Ltd
http://statistics.data.gov.uk/doc/local-authority/00DA,Leeds City Council,Childrens Services,Childrens Services,Supplies and Services,Food And Drink,231,21-Apr-11,1105-00608,500.67,R,Brake Bros Ltd
http://statistics.data.gov.uk/doc/local-authority/00DA,Leeds City Council,Childrens Services,Childrens Services,Supplies and Services,Food And Drink,231,21-Apr-11,1105-00609,1013.16,R,Brake Bros Ltd
http://statistics.data.gov.uk/doc/local-authority/00DA,Leeds City Council,Childrens Services,Childrens Services,Supplies and Services,Food And Drink,231,28-Apr-11,1105-00610,878.28,R,Brake Bros Ltd
http://statistics.data.gov.uk/doc/local-authority/00DA,Leeds City Council,Central & Corporate Functions,Commercial Services Trading Services,Supplies and Services,Food & Drink,231,06-May-11,1105-00611,446.3,R,Brake Bros Ltd
http://statistics.data.gov.uk/doc/local-authority/00DA,Leeds City Council,City Development,Recreation,Supplies and Services,Food & Drink,231,18-May-11,1105-00612,418.82,R,Brake Bros Ltd
http://statistics.data.gov.uk/doc/local-authority/00DA,Leeds City Council,Central & Corporate Functions,Commercial Services Trading Services,Supplies and Services,Food & Drink,231,19-May-11,1105-00613,1395,R,Brake Bros Ltd
http://statistics.data.gov.uk/doc/local-authority/00DA,Leeds City Council,Central & Corporate Functions,Commercial Services Trading Services,Supplies and Services,Food & Drink,231,19-May-11,1105-00614,1092.8,R,Brake Bros Ltd
http://statistics.data.gov.uk/doc/local-authority/00DA,Leeds City Council,Central & Corporate Functions,Commercial Services Trading Services,Supplies and Services,Food & Drink,231,26-May-11,1105-00615,768,R,Brake Bros Ltd
http://statistics.data.gov.uk/doc/local-authority/00DA,Leeds City Council,Central & Corporate Functions,Commercial Services Trading Services,Supplies and Services,Food & Drink,231,26-May-11,1105-00616,1336.5,R,Brake Bros Ltd
http://statistics.data.gov.uk/doc/local-authority/00DA,Leeds City Council,Central & Corporate Functions,Commercial Services Trading Services,Supplies and Services,Food & Drink,231,27-May-11,1105-00617,536.02,R,Brake Bros Ltd
http://statistics.data.gov.uk/doc/local-authority/00DA,Leeds City Council,Central & Corporate Functions,Corporate Governance,Premises,Rents,141,26-May-11,1105-00618,450,R,Bramley Christian Church
http://statistics.data.gov.uk/doc/local-authority/00DA,Leeds City Council,Childrens Services,Children Looked After,Third Party Payments,Contact,548,05-May-11,1105-00619,418.39,R,Bramley Family Support Project
http://statistics.data.gov.uk/doc/local-authority/00DA,Leeds City Council,Childrens Services,Children Looked After,Third Party Payments,Contact,548,19-May-11,1105-00620,659.4,R,Bramley Family Support Project
http://statistics.data.gov.uk/doc/local-authority/00DA,Leeds City Council,Central & Corporate Functions,Corporate Governance,Premises,Rents,141,25-May-11,1105-00621,500,R,Bramley Working Mens Club
http://statistics.data.gov.uk/doc/local-authority/00DA,Leeds City Council,Adult Social Care,Services For Older People - 65 And Over,Third Party Payments,Nursing Home,570,11-May-11,1105-00622,27326.24,R,Brandon House
http://statistics.data.gov.uk/doc/local-authority/00DA,Leeds City Council,Adult Social Care,Services For Older People - 65 And Over,Third Party Payments,Residential,580,11-May-11,1105-00623,1102.6,R,Brandon House
http://statistics.data.gov.uk/doc/local-authority/00DA,Leeds City Council,Insurance,Insurance,Supplies and Services,Insurance Claims,248,19-May-11,1105-00624,20000,R,Brearleys Solicitors
http://statistics.data.gov.uk/doc/local-authority/00DA,West - North West,West - North West,Regeneration/Customer Research,Supplies and Services,Stationery & External Printing,210,18-May-11,1105-00625,503.95,R,Breeze Ltd
http://statistics.data.gov.uk/doc/local-authority/00DA,Leeds City Council,Central & Corporate Functions,Commercial Services Trading Services,Transport,Fuel (Non LCC Supplies),321,03-May-11,1105-00626,470,R,Brenntag Uk Limited
http://statistics.data.gov.uk/doc/local-authority/00DA,Leeds City Council,Central & Corporate Functions,Commercial Services Trading Services,Transport,Fuel (Non LCC Supplies),321,19-May-11,1105-00627,470,R,Brenntag Uk Limited
http://statistics.data.gov.uk/doc/local-authority/00DA,Leeds City Council,Central & Corporate Functions,Commercial Services Trading Services,Transport,Fuel (Non LCC Supplies),321,19-May-11,1105-00628,470,R,Brenntag Uk Limited
http://statistics.data.gov.uk/doc/local-authority/00DA,Leeds City Council,Central & Corporate Functions,Commercial Services Trading Services,Transport,Fuel (Non LCC Supplies),321,20-May-11,1105-00629,470,R,Brenntag Uk Limited
http://statistics.data.gov.uk/doc/local-authority/00DA,Leeds City Council,Childrens Services,Integrated Youth Support Service,Supplies and Services,Other Hired And Contracted Services,265,24-May-11,1105-00630,540,R,Bridge Street Pentecostal Church Ltd
http://statistics.data.gov.uk/doc/local-authority/00DA,Leeds City Council,Childrens Services,Children Looked After,Third Party Payments,Fostering - Placement Support,550,05-May-11,1105-00631,594,R,Bright Skies Day Nursey
http://statistics.data.gov.uk/doc/local-authority/00DA,Leeds City Council,Adult Social Care,Services For Older People - 65 And Over,Third Party Payments,Residential Care Emi,571,11-May-11,1105-00632,2268.08,R,Brigshaw House
http://statistics.data.gov.uk/doc/local-authority/00DA,Leeds City Council,Adult Social Care,Services For Older People - 65 And Over,Third Party Payments,Residential,580,11-May-11,1105-00633,2177.04,R,Brigshaw House
http://statistics.data.gov.uk/doc/local-authority/00DA,Leeds City Council,Environment & Neighbourhoods,Housing Needs,Supplies and Services,Other Hired And Contracted Services,265,12-May-11,1105-00634,598.36,R,Brilliant Lettings - Damage Liability
http://statistics.data.gov.uk/doc/local-authority/00DA,Leeds City Council,Adult Social Care,Services For Adults Under 65 Mental/Dis,Third Party Payments,Residential,580,11-May-11,1105-00635,1900,R,Britannia Nursing Home
http://statistics.data.gov.uk/doc/local-authority/00DA,Leeds City Council,Adult Social Care,Social Services Support Services,Employees,Professionally Linked Training,76,05-May-11,1105-00636,4700.8,R,British Agencies For Adoption &
http://statistics.data.gov.uk/doc/local-authority/00DA,Leeds City Council,City Development,Asset Management Services,Premises,Building Maintenance,101,17-May-11,1105-00637,1348.24,R,British Gas Business
http://statistics.data.gov.uk/doc/local-authority/00DA,Leeds City Council,Central & Corporate Functions,Support And Facilities General Fund,Premises,Gas,123,20-May-11,1105-00638,6022.81,R,British Gas Business
http://statistics.data.gov.uk/doc/local-authority/00DA,East - North East,East - North East,Technical Services,Premises,H.R.A. - Repairs A To P,107,09-May-11,1105-00639,2890.3,R,British Gas Service Ltd
http://statistics.data.gov.uk/doc/local-authority/00DA,Leeds City Council,Environment & Neighbourhoods,South South East,Capital,Construction,3,20-May-11,1105-00640,16243.66,C,British Gas Services Ltd
http://statistics.data.gov.uk/doc/local-authority/00DA,Leeds City Council,Environment & Neighbourhoods,West North West,Capital,Construction,3,23-May-11,1105-00641,25731.23,C,British Gas Services Ltd
http://statistics.data.gov.uk/doc/local-authority/00DA,Leeds City Council,City Development,Highways,Capital,Other Costs,7,04-May-11,1105-00642,1167.84,C,British Telecom
http://statistics.data.gov.uk/doc/local-authority/00DA,Leeds City Council,City Development,Highways,Capital,Other Costs,7,10-May-11,1105-00643,875.88,C,British Telecom
http://statistics.data.gov.uk/doc/local-authority/00DA,Leeds City Council,City Development,Highways,Supplies and Services,Operational Furniture And Equipment,203,06-May-11,1105-00644,16909.87,R,British Telecom Bt/Bacs
http://statistics.data.gov.uk/doc/local-authority/00DA,Leeds City Council,City Development,Highways,Supplies and Services,Operational Furniture And Equipment,203,06-May-11,1105-00645,15319.94,R,British Telecom Bt/Bacs
http://statistics.data.gov.uk/doc/local-authority/00DA,Aire Valley Homes Leeds,Aire Valley Homes Leeds,Aire Valley Homes Leeds,Supplies and Services,Telephones,213,12-May-11,1105-00646,4092.77,R,British Telecom Bt/Bacs
http://statistics.data.gov.uk/doc/local-authority/00DA,Leeds City Council,City Development,Highways,Supplies and Services,Operational Furniture And Equipment,203,13-May-11,1105-00647,30141.5,R,British Telecom Bt/Bacs
http://statistics.data.gov.uk/doc/local-authority/00DA,East - North East,East - North East,Business Improvement,Supplies and Services,Telephones,213,17-May-11,1105-00648,6846.92,R,British Telecom Bt/Bacs
http://statistics.data.gov.uk/doc/local-authority/00DA,Leeds City Council,City Development,Highways,Supplies and Services,Operational Furniture And Equipment,203,17-May-11,1105-00649,9781.07,R,British Telecom Bt/Bacs
http://statistics.data.gov.uk/doc/local-authority/00DA,East - North East,East - North East,Housing Services,Supplies and Services,Telephones,213,19-May-11,1105-00650,946.75,R,British Telecom Bt/Bacs
http://statistics.data.gov.uk/doc/local-authority/00DA,Leeds City Council,City Development,Highways,Capital,Construction,3,19-May-11,1105-00651,41137.8,C,British Telecom Bt/Bacs
http://statistics.data.gov.uk/doc/local-authority/00DA,West - North West,West - North West,Corporate Services,Supplies and Services,Telephones,213,20-May-11,1105-00652,4157.77,R,British Telecom Bt/Bacs
http://statistics.data.gov.uk/doc/local-authority/00DA,Leeds City Council,City Development,Support Services,Supplies and Services,Telephones,213,24-May-11,1105-00653,4474.77,R,British Telecom Bt/Bacs
http://statistics.data.gov.uk/doc/local-authority/00DA,Leeds City Council,City Development,Highways,Capital,Other Costs,7,19-May-11,1105-00654,811,C,British Telecommunications Plc
http://statistics.data.gov.uk/doc/local-authority/00DA,Leeds City Council,Other Education Services,Primary Schools,Capital,Construction,3,10-May-11,1105-00655,357257.38,C,Britspace Modular Buildings Limited
http://statistics.data.gov.uk/doc/local-authority/00DA,Leeds City Council,Other Education Services,Primary Schools,Capital,Construction,3,12-May-11,1105-00656,20243.04,C,Britspace Modular Buildings Limited
http://statistics.data.gov.uk/doc/local-authority/00DA,Leeds City Council,Insurance,Insurance,Supplies and Services,Insurance Claims,248,26-May-11,1105-00657,522,R,Broker Direct
http://statistics.data.gov.uk/doc/local-authority/00DA,Leeds City Council,Childrens Services,Childrens Services,Supplies and Services,Food And Drink,231,12-Apr-11,1105-00658,458.25,R,Bronte Natural Spring Water
http://statistics.data.gov.uk/doc/local-authority/00DA,Leeds City Council,Adult Social Care,Services For Older People - 65 And Over,Third Party Payments,Residential Care Emi,571,11-May-11,1105-00659,3585.52,R,Brooklands Residential Home
http://statistics.data.gov.uk/doc/local-authority/00DA,Leeds City Council,Adult Social Care,Services For Older People - 65 And Over,Third Party Payments,Residential,580,11-May-11,1105-00660,13740.8,R,Brooklands Residential Home
http://statistics.data.gov.uk/doc/local-authority/00DA,Leeds City Council,Adult Social Care,Services For Older People - 65 And Over,Third Party Payments,Residential,580,11-May-11,1105-00661,1244.44,R,Brookside
http://statistics.data.gov.uk/doc/local-authority/00DA,Leeds City Council as Accountable Body,Jcs For People With Learning Disabilitie,Jcs For People With Learning Disabilitie,Third Party Payments,Residential,580,17-May-11,1105-00662,2040,R,Brookvale
http://statistics.data.gov.uk/doc/local-authority/00DA,Leeds City Council as Accountable Body,Jcs For People With Learning Disabilitie,Jcs For People With Learning Disabilitie,Third Party Payments,Residential,580,18-May-11,1105-00663,2040,R,Brookvale
http://statistics.data.gov.uk/doc/local-authority/00DA,Leeds City Council as Accountable Body,Jcs For People With Learning Disabilitie,Jcs For People With Learning Disabilitie,Third Party Payments,Residential,580,11-May-11,1105-00664,2019.2,R,Brookvale (For The Mentally
http://statistics.data.gov.uk/doc/local-authority/00DA,Leeds City Council as Accountable Body,Jcs For People With Learning Disabilitie,Jcs For People With Learning Disabilitie,Third Party Payments,Residential,580,11-May-11,1105-00665,1850.72,R,Brothers Of Charity
http://statistics.data.gov.uk/doc/local-authority/00DA,Leeds City Council,Childrens Services,Children Looked After,Third Party Payments,Other External Residential Placements,508,10-May-11,1105-00666,13056,R,Browning House
http://statistics.data.gov.uk/doc/local-authority/00DA,Leeds City Council,Childrens Services,Children Looked After,Third Party Payments,Other External Residential Placements,508,10-May-11,1105-00667,11016,R,Browning House
http://statistics.data.gov.uk/doc/local-authority/00DA,Leeds City Council,Childrens Services,Children Looked After,Third Party Payments,Other External Residential Placements,508,10-May-11,1105-00668,13770,R,Browning House
http://statistics.data.gov.uk/doc/local-authority/00DA,Leeds City Council,Childrens Services,Children Looked After,Third Party Payments,Other External Residential Placements,508,10-May-11,1105-00669,10710,R,Browning House
http://statistics.data.gov.uk/doc/local-authority/00DA,Leeds City Council,Childrens Services,Children Looked After,Third Party Payments,Other External Residential Placements,508,19-May-11,1105-00670,4680,R,Browning House
http://statistics.data.gov.uk/doc/local-authority/00DA,Leeds City Council,Childrens Services,Children Looked After,Third Party Payments,Other External Residential Placements,508,20-May-11,1105-00671,750,R,Browning House
http://statistics.data.gov.uk/doc/local-authority/00DA,Leeds City Council,Childrens Services,Children Looked After,Third Party Payments,Other External Residential Placements,508,31-May-11,1105-00672,3537.2,R,Browning House
http://statistics.data.gov.uk/doc/local-authority/00DA,West - North West,West - North West,Property And Maintenance,Employees,Temporary Staff-Basic,9,18-May-11,1105-00673,697.85,R,Bs Project Services Ltd
http://statistics.data.gov.uk/doc/local-authority/00DA,West - North West,West - North West,Property And Maintenance,Employees,Temporary Staff-Basic,9,26-May-11,1105-00674,693.95,R,Bs Project Services Ltd
http://statistics.data.gov.uk/doc/local-authority/00DA,Leeds City Council as Accountable Body,Jcs For People With Learning Disabilitie,Jcs For People With Learning Disabilitie,Third Party Payments,Residential,580,31-May-11,1105-00675,477.42,R,Bs Project Services Ltd
http://statistics.data.gov.uk/doc/local-authority/00DA,Leeds City Council,Central & Corporate Functions,Commercial Services Trading Services,Supplies and Services,Operational Materials,205,06-May-11,1105-00676,609.24,R,Bss Group Plc
http://statistics.data.gov.uk/doc/local-authority/00DA,Leeds City Council,Central & Corporate Functions,Commercial Services Trading Services,Supplies and Services,Operational Materials,205,06-May-11,1105-00677,781.83,R,Bss Group Plc
http://statistics.data.gov.uk/doc/local-authority/00DA,Leeds City Council,Central & Corporate Functions,Commercial Services Trading Services,Supplies and Services,Operational Materials,205,09-May-11,1105-00678,419.28,R,Bss Group Plc
http://statistics.data.gov.uk/doc/local-authority/00DA,East - North East,East - North East,Technical Services,Supplies and Services,Other Materials,205,12-May-11,1105-00679,935.32,R,Bss Group Plc
http://statistics.data.gov.uk/doc/local-authority/00DA,East - North East,East - North East,Technical Services,Supplies and Services,Other Materials,205,12-May-11,1105-00680,426.56,R,Bss Group Plc
http://statistics.data.gov.uk/doc/local-authority/00DA,East - North East,East - North East,Technical Services,Supplies and Services,Other Materials,205,12-May-11,1105-00681,848.32,R,Bss Group Plc
http://statistics.data.gov.uk/doc/local-authority/00DA,East - North East,East - North East,Technical Services,Supplies and Services,Other Materials,205,12-May-11,1105-00682,2215.08,R,Bss Group Plc
http://statistics.data.gov.uk/doc/local-authority/00DA,Leeds City Council,Central & Corporate Functions,Commercial Services Trading Services,Supplies and Services,Operational Materials,205,18-May-11,1105-00683,2525.4,R,Bss Group Plc
http://statistics.data.gov.uk/doc/local-authority/00DA,East - North East,East - North East,Technical Services,Supplies and Services,Other Materials,205,18-May-11,1105-00684,1079,R,Bss Group Plc
http://statistics.data.gov.uk/doc/local-authority/00DA,Leeds City Council,Central & Corporate Functions,Commercial Services Trading Services,Supplies and Services,Operational Materials,205,26-May-11,1105-00685,435.78,R,Bss Group Plc
http://statistics.data.gov.uk/doc/local-authority/00DA,Leeds City Council,Central & Corporate Functions,Commercial Services Trading Services,Supplies and Services,Operational Materials,205,26-May-11,1105-00686,498.75,R,Bss Group Plc
http://statistics.data.gov.uk/doc/local-authority/00DA,East - North East,East - North East,Technical Services,Supplies and Services,Other Materials,205,27-May-11,1105-00687,604.2,R,Bss Group Plc
http://statistics.data.gov.uk/doc/local-authority/00DA,East - North East,East - North East,Technical Services,Supplies and Services,Other Materials,205,27-May-11,1105-00688,1550.52,R,Bss Group Plc
http://statistics.data.gov.uk/doc/local-authority/00DA,Leeds City Council,City Development,Libraries Arts & Heritage,Supplies and Services,Telephones,213,13-May-11,1105-00689,523.88,R,Bt Contract Rentals Ltd
http://statistics.data.gov.uk/doc/local-authority/00DA,Leeds City Council,Central & Corporate Functions,Information Technology,Supplies and Services,Networks Dept Orders - Expenditure,90,19-May-11,1105-00690,54727.18,R,Bt Global Services
http://statistics.data.gov.uk/doc/local-authority/00DA,Leeds City Council,Central & Corporate Functions,Central & Corporate Functions,Supplies and Services,Telephones,213,25-Apr-11,1105-00691,4236.35,R,Bt Pay By Phone
http://statistics.data.gov.uk/doc/local-authority/00DA,Leeds City Council,Other Education Services,Primary Schools,Capital,Construction,3,23-May-11,1105-00692,2920.56,C,Bt Plc
http://statistics.data.gov.uk/doc/local-authority/00DA,Leeds City Council,City Development,Highways,Supplies and Services,Operational Furniture And Equipment,203,06-May-11,1105-00693,2932.56,R,Bt Redcare
http://statistics.data.gov.uk/doc/local-authority/00DA,Leeds City Council,City Development,Highways,Supplies and Services,Operational Furniture And Equipment,203,06-May-11,1105-00694,5047,R,Bt Redcare
http://statistics.data.gov.uk/doc/local-authority/00DA,Leeds City Council,City Development,Highways,Supplies and Services,Operational Furniture And Equipment,203,06-May-11,1105-00695,7737.6,R,Bt Redcare
http://statistics.data.gov.uk/doc/local-authority/00DA,Leeds City Council,Environment & Neighbourhoods,Regeneration,Supplies and Services,'Well Being' Large Grants Projects,230,13-May-11,1105-00696,5544,R,Bt Redcare
http://statistics.data.gov.uk/doc/local-authority/00DA,Leeds City Council,City Development,Highways,Supplies and Services,Operational Furniture And Equipment,203,18-May-11,1105-00697,35608.16,R,Bt Redcare
http://statistics.data.gov.uk/doc/local-authority/00DA,Leeds City Council,City Development,Highways,Supplies and Services,Operational Furniture And Equipment,203,20-May-11,1105-00698,4881.84,R,Bt Redcare
http://statistics.data.gov.uk/doc/local-authority/00DA,Leeds City Council,Environment & Neighbourhoods,Community Safety,Supplies and Services,Telephones,213,23-May-11,1105-00699,171826.6,R,Bt Redcare
http://statistics.data.gov.uk/doc/local-authority/00DA,Leeds City Council,Environment & Neighbourhoods,Regeneration,Supplies and Services,Grant Related Expenditure,290,16-May-11,1105-00700,1834.47,R,Btcv
http://statistics.data.gov.uk/doc/local-authority/00DA,Leeds City Council as Accountable Body,Jcs For People With Learning Disabilitie,Jcs For People With Learning Disabilitie,Third Party Payments,Other Agency Services,561,25-May-11,1105-00701,13275,R,Btcv
http://statistics.data.gov.uk/doc/local-authority/00DA,Leeds City Council,Central & Corporate Functions,Information Technology,Supplies and Services,Telephones,213,26-May-11,1105-00702,5450,R,Bts Holdings Ltd
http://statistics.data.gov.uk/doc/local-authority/00DA,Leeds City Council,Adult Social Care,Adult Social Care,Capital,Other Costs,7,13-May-11,1105-00703,598,C,Buddi Limited
http://statistics.data.gov.uk/doc/local-authority/00DA,Leeds City Council,Adult Social Care,Other Generic Services,Supplies and Services,Operational Furniture And Equipment,203,13-May-11,1105-00704,480,R,Buddi Limited
http://statistics.data.gov.uk/doc/local-authority/00DA,Leeds City Council,City Development,Recreation,Supplies and Services,Operational Furniture And Equipment,203,13-May-11,1105-00705,540,R,Bulk Builders Merchants
http://statistics.data.gov.uk/doc/local-authority/00DA,Leeds City Council,City Development,Recreation,Supplies and Services,Operational Materials,205,18-May-11,1105-00706,501.2,R,Bulk Builders Merchants
http://statistics.data.gov.uk/doc/local-authority/00DA,Leeds City Council,City Development,Recreation,Supplies and Services,Operational Materials,205,05-May-11,1105-00707,2464.3,R,Bulrush Horticulture Ltd
http://statistics.data.gov.uk/doc/local-authority/00DA,Leeds City Council,City Development,Recreation,Supplies and Services,Operational Materials,205,26-May-11,1105-00708,3704.4,R,Bulrush Horticulture Ltd
http://statistics.data.gov.uk/doc/local-authority/00DA,Leeds City Council,Childrens Services,Integrated Youth Support Service,Supplies and Services,Other Hired And Contracted Services,265,13-May-11,1105-00709,2500,R,Bumpy Ltd
http://statistics.data.gov.uk/doc/local-authority/00DA,Leeds City Council,City Development,Recreation,Supplies and Services,Crockery Cutlery & Utensils,221,25-May-11,1105-00710,437.34,R,Bunzl Catering Supplies
http://statistics.data.gov.uk/doc/local-authority/00DA,Leeds City Council,Adult Social Care,Services For Older People - 65 And Over,Third Party Payments,Nursing Home,570,11-May-11,1105-00711,27096.16,R,Bupa Park Avenue
http://statistics.data.gov.uk/doc/local-authority/00DA,Leeds City Council,Adult Social Care,Services For Older People - 65 And Over,Third Party Payments,Nursing Care Emi,574,11-May-11,1105-00712,30808.26,R,Bupa Park Avenue
http://statistics.data.gov.uk/doc/local-authority/00DA,Leeds City Council,Adult Social Care,Services For Adults Under 65 Mental/Dis,Third Party Payments,Nursing Home,570,11-May-11,1105-00713,1403.88,R,Bupa Sabourn Court Nursing Home
http://statistics.data.gov.uk/doc/local-authority/00DA,Leeds City Council,Adult Social Care,Services For Older People - 65 And Over,Third Party Payments,Nursing Home,570,11-May-11,1105-00714,24605.28,R,Bupa Sabourn Court Nursing Home
http://statistics.data.gov.uk/doc/local-authority/00DA,Leeds City Council,City Development,Highways,Supplies and Services,Operational Materials,205,13-May-11,1105-00715,503.4,R,Burdens Ltd
http://statistics.data.gov.uk/doc/local-authority/00DA,Leeds City Council,Adult Social Care,Services For Older People - 65 And Over,Third Party Payments,Nursing Home,570,11-May-11,1105-00716,2421,R,Burley Hall Nursing Home
http://statistics.data.gov.uk/doc/local-authority/00DA,Leeds City Council,Adult Social Care,Services For Adults Under 65 Mental/Dis,Third Party Payments,Nursing Home,570,11-May-11,1105-00717,21754.64,R,Burley House
http://statistics.data.gov.uk/doc/local-authority/00DA,Leeds City Council,Adult Social Care,Services For Older People - 65 And Over,Third Party Payments,Nursing Home,570,11-May-11,1105-00718,9891.92,R,Burley House
http://statistics.data.gov.uk/doc/local-authority/00DA,Leeds City Council,Adult Social Care,Services For Older People Under 65 P/Dis,Third Party Payments,Nursing Home,570,11-May-11,1105-00719,1738.96,R,Burley House
http://statistics.data.gov.uk/doc/local-authority/00DA,Leeds City Council,Childrens Services,Early Years Service,Third Party Payments,Services Rendered By Voluntary Sector,505,10-May-11,1105-00720,16000,R,Burley Lodge Centre
http://statistics.data.gov.uk/doc/local-authority/00DA,Leeds City Council,Childrens Services,Director Of Childrens Services,Premises,Hire of meeting rooms,143,10-May-11,1105-00721,918.75,R,Burley Lodge Centre
http://statistics.data.gov.uk/doc/local-authority/00DA,Leeds City Council,Adult Social Care,Services For Older People - 65 And Over,Third Party Payments,Nursing Home,570,12-May-11,1105-00722,3497.64,R,Burlington Care
http://statistics.data.gov.uk/doc/local-authority/00DA,Leeds City Council,City Development,Planning & Sustainable Development,Support Services,Legal Disbursements,411,05-May-11,1105-00723,2675,R,Buro Happold Limited
http://statistics.data.gov.uk/doc/local-authority/00DA,Leeds City Council,Childrens Services,Children - Commissioning And Social Work,Support Services,Legal Disbursements,411,10-May-11,1105-00724,1000,R,Burton Regan Detective Bureau
http://statistics.data.gov.uk/doc/local-authority/00DA,Leeds City Council,Environment & Neighbourhoods,Regeneration,Supplies and Services,Non-Recurring Grants,227,26-May-11,1105-00725,5939,R,Business 900 Community Interest Company
http://statistics.data.gov.uk/doc/local-authority/00DA,Leeds City Council,Central & Corporate Functions,Revenues,Supplies and Services,Computer Software & Equipment,214,04-May-11,1105-00726,4394,R,Business Systems Limited
http://statistics.data.gov.uk/doc/local-authority/00DA,Leeds City Council,Childrens Services,Children - Commissioning And Social Work,Third Party Payments,Section 17,551,05-May-11,1105-00727,824.63,R,Busy Bees Childcare Ltd
http://statistics.data.gov.uk/doc/local-authority/00DA,West - North West,West - North West,Customer And Tenancy,Premises,Removal Of Refuse,126,06-May-11,1105-00728,1201.2,R,Bw Skip Hire Ltd
http://statistics.data.gov.uk/doc/local-authority/00DA,East - North East,East - North East,Technical Services,Premises,Removal Of Refuse,126,12-May-11,1105-00729,577.5,R,Bw Skip Hire Ltd
http://statistics.data.gov.uk/doc/local-authority/00DA,West - North West,West - North West,Customer And Tenancy,Premises,Removal Of Refuse,126,12-May-11,1105-00730,1472.35,R,Bw Skip Hire Ltd
http://statistics.data.gov.uk/doc/local-authority/00DA,East - North East,East - North East,Technical Services,Premises,Removal Of Refuse,126,13-May-11,1105-00731,1314.5,R,Bw Skip Hire Ltd
http://statistics.data.gov.uk/doc/local-authority/00DA,East - North East,East - North East,Technical Services,Premises,Removal Of Refuse,126,20-May-11,1105-00732,948.1,R,Bw Skip Hire Ltd
http://statistics.data.gov.uk/doc/local-authority/00DA,West - North West,West - North West,Customer And Tenancy,Premises,Removal Of Refuse,126,26-May-11,1105-00733,1599.58,R,Bw Skip Hire Ltd
http://statistics.data.gov.uk/doc/local-authority/00DA,West - North West,West - North West,Customer And Tenancy,Premises,Removal Of Refuse,126,27-May-11,1105-00734,981.78,R,Bw Skip Hire Ltd
http://statistics.data.gov.uk/doc/local-authority/00DA,Leeds City Council,City Development,Highways,Employees,Agency Staff,8,11-May-11,1105-00735,1330,R,Byland Engineering
http://statistics.data.gov.uk/doc/local-authority/00DA,Leeds City Council,Environment & Neighbourhoods,Environmental Health,Capital,Construction,3,13-May-11,1105-00736,4400,C,C & R Maintenance Services Limited
http://statistics.data.gov.uk/doc/local-authority/00DA,Leeds City Council,Environment & Neighbourhoods,Environmental Health,Capital,Construction,3,13-May-11,1105-00737,4400,C,C & R Maintenance Services Limited
http://statistics.data.gov.uk/doc/local-authority/00DA,Leeds City Council,Environment & Neighbourhoods,Environmental Health,Capital,Construction,3,13-May-11,1105-00738,3622.12,C,C & R Maintenance Services Limited
http://statistics.data.gov.uk/doc/local-authority/00DA,Leeds City Council,Environment & Neighbourhoods,Environmental Health,Capital,Construction,3,13-May-11,1105-00739,2915.46,C,C & R Maintenance Services Limited
http://statistics.data.gov.uk/doc/local-authority/00DA,Leeds City Council,Environment & Neighbourhoods,Environmental Health,Capital,Construction,3,20-May-11,1105-00740,4400,C,C & R Maintenance Services Limited
http://statistics.data.gov.uk/doc/local-authority/00DA,Leeds City Council,Environment & Neighbourhoods,Environmental Health,Capital,Construction,3,20-May-11,1105-00741,2890,C,C & R Maintenance Services Limited
http://statistics.data.gov.uk/doc/local-authority/00DA,Leeds City Council,Environment & Neighbourhoods,Environmental Health,Capital,Construction,3,20-May-11,1105-00742,2890,C,C & R Maintenance Services Limited
http://statistics.data.gov.uk/doc/local-authority/00DA,Leeds City Council,Environment & Neighbourhoods,Environmental Health,Capital,Construction,3,20-May-11,1105-00743,4400,C,C & R Maintenance Services Limited
http://statistics.data.gov.uk/doc/local-authority/00DA,Leeds City Council,Environment & Neighbourhoods,Environmental Health,Capital,Construction,3,20-May-11,1105-00744,4400,C,C & R Maintenance Services Limited
http://statistics.data.gov.uk/doc/local-authority/00DA,Leeds City Council,Environment & Neighbourhoods,Environmental Health,Capital,Construction,3,31-May-11,1105-00745,4085.91,C,C & R Maintenance Services Limited
http://statistics.data.gov.uk/doc/local-authority/00DA,Leeds City Council,Environment & Neighbourhoods,Hra,Premises,Maintenance Of Buildings,101,04-May-11,1105-00746,483.31,R,C D Robinson Building & Plastering
http://statistics.data.gov.uk/doc/local-authority/00DA,Leeds City Council,Environment & Neighbourhoods,Hra,Premises,Maintenance Of Buildings,101,12-May-11,1105-00747,1825.5,R,C D Robinson Building & Plastering
http://statistics.data.gov.uk/doc/local-authority/00DA,Leeds City Council,Childrens Services,Children - Commissioning And Social Work,Support Services,Legal Disbursements,411,23-May-11,1105-00748,816.67,R,C H Buller
http://statistics.data.gov.uk/doc/local-authority/00DA,Leeds City Council,Central & Corporate Functions,Corporate Property Management,Premises,Maintenance Of Buildings,101,03-May-11,1105-00749,524,R,C P Thornton Roofing
http://statistics.data.gov.uk/doc/local-authority/00DA,Leeds City Council,Central & Corporate Functions,Corporate Property Management,Premises,Maintenance Of Buildings,101,06-May-11,1105-00750,5971,R,C P Thornton Roofing
http://statistics.data.gov.uk/doc/local-authority/00DA,Leeds City Council,Central & Corporate Functions,Corporate Property Management,Premises,Maintenance Of Buildings,101,06-May-11,1105-00751,1091.5,R,C P Thornton Roofing
http://statistics.data.gov.uk/doc/local-authority/00DA,Leeds City Council,Central & Corporate Functions,Corporate Property Management,Premises,Maintenance Of Buildings,101,06-May-11,1105-00752,531,R,C P Thornton Roofing
http://statistics.data.gov.uk/doc/local-authority/00DA,Leeds City Council,Central & Corporate Functions,Corporate Property Management,Premises,Maintenance Of Buildings,101,11-May-11,1105-00753,1511,R,C P Thornton Roofing
http://statistics.data.gov.uk/doc/local-authority/00DA,Leeds City Council,Central & Corporate Functions,Corporate Property Management,Premises,Maintenance Of Buildings,101,11-May-11,1105-00754,1509,R,C P Thornton Roofing
http://statistics.data.gov.uk/doc/local-authority/00DA,Leeds City Council,Central & Corporate Functions,Corporate Property Management,Premises,Maintenance Of Buildings,101,11-May-11,1105-00755,448,R,C P Thornton Roofing
http://statistics.data.gov.uk/doc/local-authority/00DA,Leeds City Council,Central & Corporate Functions,Corporate Property Management,Premises,Maintenance Of Buildings,101,18-May-11,1105-00756,2216,R,C P Thornton Roofing
http://statistics.data.gov.uk/doc/local-authority/00DA,Leeds City Council,Central & Corporate Functions,Corporate Property Management,Premises,Maintenance Of Buildings,101,18-May-11,1105-00757,1648,R,C P Thornton Roofing
http://statistics.data.gov.uk/doc/local-authority/00DA,Leeds City Council,Central & Corporate Functions,Corporate Property Management,Premises,Maintenance Of Buildings,101,25-May-11,1105-00758,1817.5,R,C P Thornton Roofing
http://statistics.data.gov.uk/doc/local-authority/00DA,Leeds City Council,Central & Corporate Functions,Corporate Property Management,Premises,Maintenance Of Buildings,101,25-May-11,1105-00759,585,R,C P Thornton Roofing
http://statistics.data.gov.uk/doc/local-authority/00DA,Leeds City Council,Central & Corporate Functions,Corporate Property Management,Premises,Maintenance Of Buildings,101,25-May-11,1105-00760,10786.5,R,C P Thornton Roofing
http://statistics.data.gov.uk/doc/local-authority/00DA,Leeds City Council,Central & Corporate Functions,Corporate Property Management,Premises,Maintenance Of Buildings,101,25-May-11,1105-00761,1628,R,C P Thornton Roofing
http://statistics.data.gov.uk/doc/local-authority/00DA,East - North East,East - North East,Technical Services,Supplies and Services,Other Hired And Contracted Services,265,03-May-11,1105-00762,1156.27,R,C&L Plumbing Services
http://statistics.data.gov.uk/doc/local-authority/00DA,East - North East,East - North East,Technical Services,Supplies and Services,Other Hired And Contracted Services,265,03-May-11,1105-00763,829.33,R,C&L Plumbing Services
http://statistics.data.gov.uk/doc/local-authority/00DA,East - North East,East - North East,Technical Services,Supplies and Services,Other Hired And Contracted Services,265,03-May-11,1105-00764,740.96,R,C&L Plumbing Services
http://statistics.data.gov.uk/doc/local-authority/00DA,East - North East,East - North East,Technical Services,Supplies and Services,Other Hired And Contracted Services,265,03-May-11,1105-00765,591.09,R,C&L Plumbing Services
http://statistics.data.gov.uk/doc/local-authority/00DA,Leeds City Council,Environment & Neighbourhoods,East North East,Capital,Construction,3,05-May-11,1105-00766,3089.25,C,C&L Plumbing Services
http://statistics.data.gov.uk/doc/local-authority/00DA,East - North East,East - North East,Technical Services,Supplies and Services,Other Hired And Contracted Services,265,12-May-11,1105-00767,2154.62,R,C&L Plumbing Services
http://statistics.data.gov.uk/doc/local-authority/00DA,East - North East,East - North East,Technical Services,Supplies and Services,Other Hired And Contracted Services,265,12-May-11,1105-00768,1066.52,R,C&L Plumbing Services
http://statistics.data.gov.uk/doc/local-authority/00DA,East - North East,East - North East,Technical Services,Supplies and Services,Other Hired And Contracted Services,265,12-May-11,1105-00769,2199.74,R,C&L Plumbing Services
http://statistics.data.gov.uk/doc/local-authority/00DA,East - North East,East - North East,Technical Services,Supplies and Services,Other Hired And Contracted Services,265,17-May-11,1105-00770,1772.5,R,C&L Plumbing Services
http://statistics.data.gov.uk/doc/local-authority/00DA,East - North East,East - North East,Technical Services,Supplies and Services,Other Hired And Contracted Services,265,17-May-11,1105-00771,2601.35,R,C&L Plumbing Services
http://statistics.data.gov.uk/doc/local-authority/00DA,East - North East,East - North East,Technical Services,Supplies and Services,Other Hired And Contracted Services,265,17-May-11,1105-00772,436,R,C&L Plumbing Services
http://statistics.data.gov.uk/doc/local-authority/00DA,Leeds City Council,Central & Corporate Functions,Commercial Services Trading Services,Supplies and Services,Other Hired And Contracted Services,265,18-May-11,1105-00773,750,R,C&L Plumbing Services
http://statistics.data.gov.uk/doc/local-authority/00DA,Leeds City Council,Central & Corporate Functions,Commercial Services Trading Services,Supplies and Services,Other Hired And Contracted Services,265,18-May-11,1105-00774,460,R,C&L Plumbing Services
http://statistics.data.gov.uk/doc/local-authority/00DA,Leeds City Council,Central & Corporate Functions,Commercial Services Trading Services,Supplies and Services,Other Hired And Contracted Services,265,18-May-11,1105-00775,750,R,C&L Plumbing Services
http://statistics.data.gov.uk/doc/local-authority/00DA,East - North East,East - North East,Technical Services,Supplies and Services,Other Hired And Contracted Services,265,19-May-11,1105-00776,1680.76,R,C&L Plumbing Services
http://statistics.data.gov.uk/doc/local-authority/00DA,East - North East,East - North East,Technical Services,Supplies and Services,Other Hired And Contracted Services,265,19-May-11,1105-00777,1310.02,R,C&L Plumbing Services
http://statistics.data.gov.uk/doc/local-authority/00DA,East - North East,East - North East,Technical Services,Supplies and Services,Other Hired And Contracted Services,265,19-May-11,1105-00778,1716.99,R,C&L Plumbing Services
http://statistics.data.gov.uk/doc/local-authority/00DA,East - North East,East - North East,Technical Services,Supplies and Services,Other Hired And Contracted Services,265,26-May-11,1105-00779,1441.49,R,C&L Plumbing Services
http://statistics.data.gov.uk/doc/local-authority/00DA,Leeds City Council,Environment & Neighbourhoods,East North East,Capital,Construction,3,26-May-11,1105-00780,2269.23,C,C&L Plumbing Services
http://statistics.data.gov.uk/doc/local-authority/00DA,Leeds City Council,Environment & Neighbourhoods,East North East,Capital,Construction,3,26-May-11,1105-00781,2440.23,C,C&L Plumbing Services
http://statistics.data.gov.uk/doc/local-authority/00DA,Leeds City Council,Environment & Neighbourhoods,East North East,Capital,Construction,3,26-May-11,1105-00782,2194.08,C,C&L Plumbing Services
http://statistics.data.gov.uk/doc/local-authority/00DA,East - North East,East - North East,Technical Services,Employees,Temporary Staff-Basic,9,31-May-11,1105-00783,594.96,R,C&L Plumbing Services
http://statistics.data.gov.uk/doc/local-authority/00DA,East - North East,East - North East,Technical Services,Supplies and Services,Other Hired And Contracted Services,265,31-May-11,1105-00784,1958.87,R,C&L Plumbing Services
http://statistics.data.gov.uk/doc/local-authority/00DA,Leeds City Council,Central & Corporate Functions,Information Technology,Supplies and Services,Computer Software & Equipment,214,18-May-11,1105-00785,1550.75,R,Cable & Wireless Uk
http://statistics.data.gov.uk/doc/local-authority/00DA,Leeds City Council,Environment & Neighbourhoods,Regeneration,Capital,Construction,3,11-May-11,1105-00786,18955.56,C,Caddick Construction Ltd
http://statistics.data.gov.uk/doc/local-authority/00DA,Leeds City Council,Environment & Neighbourhoods,Housing Needs,Supplies and Services,Other Hired And Contracted Services,265,25-May-11,1105-00787,600,R,Cadman Properties Ltd
http://statistics.data.gov.uk/doc/local-authority/00DA,Leeds City Council,City Development,Recreation,Supplies and Services,Food & Drink,231,25-May-11,1105-00788,510.31,R,Cafeology Ltd
http://statistics.data.gov.uk/doc/local-authority/00DA,Leeds City Council,Environment & Neighbourhoods,Streetscene Environmental Services,Supplies and Services,Waste Disposal Charges,236,13-May-11,1105-00789,929.6,R,Caird Bardon Limited
http://statistics.data.gov.uk/doc/local-authority/00DA,Leeds City Council,Environment & Neighbourhoods,Streetscene Environmental Services,Supplies and Services,Waste Disposal Charges,236,13-May-11,1105-00790,5577.6,R,Caird Bardon Limited
http://statistics.data.gov.uk/doc/local-authority/00DA,Leeds City Council,Environment & Neighbourhoods,Streetscene Environmental Services,Supplies and Services,Waste Disposal Charges,236,13-May-11,1105-00791,1090.24,R,Caird Bardon Limited
http://statistics.data.gov.uk/doc/local-authority/00DA,Leeds City Council,Environment & Neighbourhoods,Streetscene Environmental Services,Supplies and Services,Waste Disposal Charges,236,13-May-11,1105-00792,6541.44,R,Caird Bardon Limited
http://statistics.data.gov.uk/doc/local-authority/00DA,Leeds City Council,Environment & Neighbourhoods,Regeneration,Supplies and Services,Grant Related Expenditure,290,27-May-11,1105-00793,1810.98,R,Calderdale Mbc
http://statistics.data.gov.uk/doc/local-authority/00DA,Leeds City Council,Environment & Neighbourhoods,Housing Needs,Supplies and Services,Other Hired And Contracted Services,265,26-May-11,1105-00794,2517.56,R,Calderdale Metropolitan Borough
http://statistics.data.gov.uk/doc/local-authority/00DA,Leeds City Council,City Development,Planning & Sustainable Development,Supplies and Services,Other Hired And Contracted Services,265,26-May-11,1105-00795,750,R,Calderdale Metropolitan Borough Council
http://statistics.data.gov.uk/doc/local-authority/00DA,Leeds City Council,Central & Corporate Functions,Commercial Services General Fund,Transport,Private Hire,360,11-May-11,1105-00796,2310.84,R,Call-A-Car
http://statistics.data.gov.uk/doc/local-authority/00DA,Leeds City Council,City Development,Recreation,Premises,Gas,123,17-May-11,1105-00797,672.7,R,Calor Gas Limited
http://statistics.data.gov.uk/doc/local-authority/00DA,Leeds City Council as Accountable Body,Jcs For People With Learning Disabilitie,Jcs For People With Learning Disabilitie,Third Party Payments,Residential,580,13-May-11,1105-00798,49315.5,R,Cambian Care Service Limited
http://statistics.data.gov.uk/doc/local-authority/00DA,Leeds City Council,Environment & Neighbourhoods,Health & Environmental Action,Supplies and Services,Operational Furniture And Equipment,203,27-May-11,1105-00799,907,R,Campbell Associates Ltd
http://statistics.data.gov.uk/doc/local-authority/00DA,Leeds City Council,Adult Social Care,Services For Older People - 65 And Over,Third Party Payments,Residential,580,11-May-11,1105-00800,1134.04,R,Cantley Grange
http://statistics.data.gov.uk/doc/local-authority/00DA,Leeds City Council,Central & Corporate Functions,Customer Services,Supplies and Services,Bought In Professional Services,277,06-May-11,1105-00801,823.66,R,Capita Business Services Ltd
http://statistics.data.gov.uk/doc/local-authority/00DA,Leeds City Council,City Development,Libraries Arts & Heritage,Supplies and Services,Other Hired And Contracted Services,265,20-May-11,1105-00802,613.73,R,Capita Business Services Ltd
http://statistics.data.gov.uk/doc/local-authority/00DA,Leeds City Council,Central & Corporate Functions,Benefits,Supplies and Services,Computer Software & Equipment,214,24-May-11,1105-00803,31838,R,Capita Business Services Ltd
http://statistics.data.gov.uk/doc/local-authority/00DA,Leeds City Council,Central & Corporate Functions,Commercial Services Trading Services,Supplies and Services,Licences,266,20-May-11,1105-00804,2918.8,R,Capita Gas Registration And Ancillary
http://statistics.data.gov.uk/doc/local-authority/00DA,Leeds City Council,Central & Corporate Functions,Commercial Services Trading Services,Supplies and Services,Operational Materials,205,11-May-11,1105-00805,511.15,R,Capri Calvert Electrics Ltd
http://statistics.data.gov.uk/doc/local-authority/00DA,Leeds City Council,Central & Corporate Functions,Commercial Services Trading Services,Supplies and Services,Operational Materials,205,13-May-11,1105-00806,1252.9,R,Capri Calvert Electrics Ltd
http://statistics.data.gov.uk/doc/local-authority/00DA,Leeds City Council,Other Education Services,Active Accounts,Supplies and Services,Other Hired And Contracted Services,265,09-May-11,1105-00807,81468.71,R,Cardinal Heenan High School Pfi
http://statistics.data.gov.uk/doc/local-authority/00DA,Leeds City Council,Environment & Neighbourhoods,Environmental Health,Capital,Construction,3,06-May-11,1105-00808,1608.5,C,Care & Repair (Leeds) Ltd
http://statistics.data.gov.uk/doc/local-authority/00DA,Leeds City Council,Environment & Neighbourhoods,Environmental Health,Capital,Construction,3,06-May-11,1105-00809,4000,C,Care & Repair (Leeds) Ltd
http://statistics.data.gov.uk/doc/local-authority/00DA,West - North West,West - North West,Property And Maintenance,Premises,General Maintenance,104,11-May-11,1105-00810,1246.62,R,Care & Repair (Leeds) Ltd
http://statistics.data.gov.uk/doc/local-authority/00DA,Leeds City Council,Environment & Neighbourhoods,Health & Environmental Action,Supplies and Services,Grants To Voluntary Organisations,293,12-May-11,1105-00811,5000,R,Care & Repair (Leeds) Ltd
http://statistics.data.gov.uk/doc/local-authority/00DA,West - North West,West - North West,Property And Maintenance,Premises,General Maintenance,104,18-May-11,1105-00812,817.75,R,Care & Repair (Leeds) Ltd
http://statistics.data.gov.uk/doc/local-authority/00DA,East - North East,East - North East,Technical Services,Premises,H.R.A. - Special Maintenance,106,19-May-11,1105-00813,500.91,R,Care & Repair (Leeds) Ltd
http://statistics.data.gov.uk/doc/local-authority/00DA,East - North East,East - North East,Technical Services,Premises,H.R.A. - Special Maintenance,106,19-May-11,1105-00814,873.44,R,Care & Repair (Leeds) Ltd
http://statistics.data.gov.uk/doc/local-authority/00DA,Leeds City Council,Environment & Neighbourhoods,Housing Needs,Third Party Payments,Supporting Ppl - Block Gross Chargeable,514,23-May-11,1105-00815,2322.69,R,Care & Repair (Leeds) Ltd
http://statistics.data.gov.uk/doc/local-authority/00DA,Leeds City Council,Environment & Neighbourhoods,Housing Needs,Third Party Payments,Supporting Ppl - Block Gross Chargeable,514,23-May-11,1105-00816,5266.72,R,Care & Repair (Leeds) Ltd
http://statistics.data.gov.uk/doc/local-authority/00DA,Leeds City Council,Adult Social Care,Services For Adults Under 65 Mental/Dis,Third Party Payments,Home Care,568,27-May-11,1105-00817,2269.68,R,Care 24-7 Limited
http://statistics.data.gov.uk/doc/local-authority/00DA,Leeds City Council,Adult Social Care,Services For Older People Under 65 P/Dis,Third Party Payments,Home Care,568,27-May-11,1105-00818,968.4,R,Care 24-7 Limited
http://statistics.data.gov.uk/doc/local-authority/00DA,Education Leeds,Education Leeds,Education Leeds,Supplies and Services,Other Hired And Contracted Services,265,04-May-11,1105-00819,456,R,Care First
http://statistics.data.gov.uk/doc/local-authority/00DA,Education Leeds,Education Leeds,Education Leeds,Supplies and Services,Other Hired And Contracted Services,265,04-May-11,1105-00820,570,R,Care First
http://statistics.data.gov.uk/doc/local-authority/00DA,Leeds City Council as Accountable Body,Jcs For People With Learning Disabilitie,Jcs For People With Learning Disabilitie,Third Party Payments,Residential,580,11-May-11,1105-00821,7236.6,R,Care Network Solutions Ltd
http://statistics.data.gov.uk/doc/local-authority/00DA,Leeds City Council,Childrens Services,Other Childrens And Families Services,Third Party Payments,Rent,552,13-May-11,1105-00822,2100,R,Care Properties Ltd
http://statistics.data.gov.uk/doc/local-authority/00DA,Leeds City Council,Adult Social Care,Home Care Services,Supplies and Services,Licences,266,03-May-11,1105-00823,1242,R,Care Quality Commission
http://statistics.data.gov.uk/doc/local-authority/00DA,Leeds City Council,Adult Social Care,Services For Adults Under 65 Learn/Dis,Supplies and Services,Licences,266,24-May-11,1105-00824,990,R,Care Quality Commission
http://statistics.data.gov.uk/doc/local-authority/00DA,Leeds City Council,Adult Social Care,Services For Adults Under 65 Learn/Dis,Supplies and Services,Licences,266,24-May-11,1105-00825,495,R,Care Quality Commission
http://statistics.data.gov.uk/doc/local-authority/00DA,Leeds City Council,Adult Social Care,Services For Adults Under 65 Learn/Dis,Supplies and Services,Licences,266,31-May-11,1105-00826,495,R,Care Quality Commission
http://statistics.data.gov.uk/doc/local-authority/00DA,Leeds City Council,Adult Social Care,Services For Older People Under 65 P/Dis,Third Party Payments,Residential,580,11-May-11,1105-00827,2705.32,R,Care Tech Community Services Ltd
http://statistics.data.gov.uk/doc/local-authority/00DA,Leeds City Council,Adult Social Care,Services For Older People - 65 And Over,Third Party Payments,Home Care,568,06-May-11,1105-00828,774.57,R,Care Uk Homecare Ltd
http://statistics.data.gov.uk/doc/local-authority/00DA,Leeds City Council,Adult Social Care,Services For Older People - 65 And Over,Third Party Payments,Home Care,568,06-May-11,1105-00829,642.78,R,Care Uk Homecare Ltd
http://statistics.data.gov.uk/doc/local-authority/00DA,Leeds City Council,Adult Social Care,Other Generic Services,Third Party Payments,Home Care,568,06-May-11,1105-00830,11722.33,R,Care Uk Homecare Ltd
http://statistics.data.gov.uk/doc/local-authority/00DA,Leeds City Council,Adult Social Care,Other Generic Services,Third Party Payments,Home Care,568,16-May-11,1105-00831,13212.29,R,Care Uk Homecare Ltd
http://statistics.data.gov.uk/doc/local-authority/00DA,Leeds City Council,Adult Social Care,Other Generic Services,Third Party Payments,Home Care,568,16-May-11,1105-00832,12662.65,R,Care Uk Homecare Ltd
http://statistics.data.gov.uk/doc/local-authority/00DA,Leeds City Council,Adult Social Care,Services For Older People - 65 And Over,Third Party Payments,Home Care,568,06-May-11,1105-00833,1512,R,Caremark (Leeds)
http://statistics.data.gov.uk/doc/local-authority/00DA,Leeds City Council,Adult Social Care,Services For Older People - 65 And Over,Third Party Payments,Home Care,568,06-May-11,1105-00834,463.92,R,Caremark (Leeds)
http://statistics.data.gov.uk/doc/local-authority/00DA,Leeds City Council,Adult Social Care,Services For Older People - 65 And Over,Third Party Payments,Home Care,568,06-May-11,1105-00835,2632.02,R,Caremark (Leeds)
http://statistics.data.gov.uk/doc/local-authority/00DA,Leeds City Council,Adult Social Care,Services For Older People Under 65 P/Dis,Third Party Payments,Home Care,568,06-May-11,1105-00836,986,R,Caremark (Leeds)
http://statistics.data.gov.uk/doc/local-authority/00DA,Leeds City Council,Adult Social Care,Services For Older People - 65 And Over,Third Party Payments,Home Care,568,06-May-11,1105-00837,957,R,Caremark (Leeds)
http://statistics.data.gov.uk/doc/local-authority/00DA,Leeds City Council,Adult Social Care,Services For Older People - 65 And Over,Third Party Payments,Home Care,568,06-May-11,1105-00838,1014.72,R,Caremark (Leeds)
http://statistics.data.gov.uk/doc/local-authority/00DA,Leeds City Council,Adult Social Care,Services For Older People - 65 And Over,Third Party Payments,Home Care,568,06-May-11,1105-00839,434.96,R,Caremark (Leeds)
http://statistics.data.gov.uk/doc/local-authority/00DA,Leeds City Council,Adult Social Care,Services For Older People - 65 And Over,Third Party Payments,Home Care,568,06-May-11,1105-00840,573.66,R,Caremark (Leeds)
http://statistics.data.gov.uk/doc/local-authority/00DA,Leeds City Council,Adult Social Care,Services For Older People - 65 And Over,Third Party Payments,Home Care,568,06-May-11,1105-00841,1602,R,Caremark (Leeds)
http://statistics.data.gov.uk/doc/local-authority/00DA,Leeds City Council,Adult Social Care,Services For Older People - 65 And Over,Third Party Payments,Home Care,568,06-May-11,1105-00842,1398.44,R,Caremark (Leeds)
http://statistics.data.gov.uk/doc/local-authority/00DA,Leeds City Council,Adult Social Care,Services For Older People - 65 And Over,Third Party Payments,Home Care,568,06-May-11,1105-00843,420.2,R,Caremark (Leeds)
http://statistics.data.gov.uk/doc/local-authority/00DA,Leeds City Council,Adult Social Care,Services For Older People - 65 And Over,Third Party Payments,Home Care,568,06-May-11,1105-00844,1942.44,R,Caremark (Leeds)
http://statistics.data.gov.uk/doc/local-authority/00DA,Leeds City Council,Adult Social Care,Services For Older People - 65 And Over,Third Party Payments,Home Care,568,06-May-11,1105-00845,507.36,R,Caremark (Leeds)
http://statistics.data.gov.uk/doc/local-authority/00DA,Leeds City Council,Adult Social Care,Services For Older People - 65 And Over,Third Party Payments,Home Care,568,06-May-11,1105-00846,464,R,Caremark (Leeds)
http://statistics.data.gov.uk/doc/local-authority/00DA,Leeds City Council,Adult Social Care,Services For Older People - 65 And Over,Third Party Payments,Home Care,568,06-May-11,1105-00847,710.36,R,Caremark (Leeds)
http://statistics.data.gov.uk/doc/local-authority/00DA,Leeds City Council,Adult Social Care,Services For Older People - 65 And Over,Third Party Payments,Home Care,568,06-May-11,1105-00848,1217.44,R,Caremark (Leeds)
http://statistics.data.gov.uk/doc/local-authority/00DA,Leeds City Council,Adult Social Care,Services For Older People Under 65 P/Dis,Third Party Payments,Home Care,568,06-May-11,1105-00849,982.26,R,Caremark (Leeds)
http://statistics.data.gov.uk/doc/local-authority/00DA,Leeds City Council,Adult Social Care,Services For Older People - 65 And Over,Third Party Payments,Home Care,568,06-May-11,1105-00850,2146,R,Caremark (Leeds)
http://statistics.data.gov.uk/doc/local-authority/00DA,Leeds City Council,Adult Social Care,Services For Older People - 65 And Over,Third Party Payments,Home Care,568,06-May-11,1105-00851,2145.6,R,Caremark (Leeds)
http://statistics.data.gov.uk/doc/local-authority/00DA,Leeds City Council,Adult Social Care,Services For Older People - 65 And Over,Third Party Payments,Home Care,568,06-May-11,1105-00852,485.65,R,Caremark (Leeds)
http://statistics.data.gov.uk/doc/local-authority/00DA,Leeds City Council,Adult Social Care,Services For Older People - 65 And Over,Third Party Payments,Home Care,568,06-May-11,1105-00853,1624,R,Caremark (Leeds)
http://statistics.data.gov.uk/doc/local-authority/00DA,Leeds City Council,Adult Social Care,Services For Older People Under 65 P/Dis,Third Party Payments,Home Care,568,06-May-11,1105-00854,695.96,R,Caremark (Leeds)
http://statistics.data.gov.uk/doc/local-authority/00DA,Leeds City Council,Adult Social Care,Services For Older People - 65 And Over,Third Party Payments,Home Care,568,06-May-11,1105-00855,637.68,R,Caremark (Leeds)
http://statistics.data.gov.uk/doc/local-authority/00DA,Leeds City Council,Adult Social Care,Services For Older People Under 65 P/Dis,Third Party Payments,Home Care,568,06-May-11,1105-00856,464,R,Caremark (Leeds)
http://statistics.data.gov.uk/doc/local-authority/00DA,Leeds City Council,Adult Social Care,Services For Older People Under 65 P/Dis,Third Party Payments,Home Care,568,06-May-11,1105-00857,464,R,Caremark (Leeds)
http://statistics.data.gov.uk/doc/local-authority/00DA,Leeds City Council,Adult Social Care,Services For Older People Under 65 P/Dis,Third Party Payments,Home Care,568,06-May-11,1105-00858,1826.72,R,Caremark (Leeds)
http://statistics.data.gov.uk/doc/local-authority/00DA,Leeds City Council,Adult Social Care,Services For Older People - 65 And Over,Third Party Payments,Home Care,568,06-May-11,1105-00859,2030,R,Caremark (Leeds)
http://statistics.data.gov.uk/doc/local-authority/00DA,Leeds City Council,Adult Social Care,Services For Older People - 65 And Over,Third Party Payments,Home Care,568,06-May-11,1105-00860,692.34,R,Caremark (Leeds)
http://statistics.data.gov.uk/doc/local-authority/00DA,Leeds City Council,Adult Social Care,Services For Older People - 65 And Over,Third Party Payments,Home Care,568,06-May-11,1105-00861,1660.22,R,Caremark (Leeds)
http://statistics.data.gov.uk/doc/local-authority/00DA,Leeds City Council,Adult Social Care,Services For Older People Under 65 P/Dis,Third Party Payments,Home Care,568,06-May-11,1105-00862,1174.64,R,Caremark (Leeds)
http://statistics.data.gov.uk/doc/local-authority/00DA,Leeds City Council,Adult Social Care,Services For Older People - 65 And Over,Third Party Payments,Home Care,568,06-May-11,1105-00863,1304.72,R,Caremark (Leeds)
http://statistics.data.gov.uk/doc/local-authority/00DA,Leeds City Council,Adult Social Care,Services For Older People - 65 And Over,Third Party Payments,Home Care,568,06-May-11,1105-00864,1646.72,R,Caremark (Leeds)
http://statistics.data.gov.uk/doc/local-authority/00DA,Leeds City Council,Adult Social Care,Services For Older People - 65 And Over,Third Party Payments,Home Care,568,06-May-11,1105-00865,2029.44,R,Caremark (Leeds)
http://statistics.data.gov.uk/doc/local-authority/00DA,Leeds City Council,Adult Social Care,Services For Older People Under 65 P/Dis,Third Party Payments,Home Care,568,06-May-11,1105-00866,971.5,R,Caremark (Leeds)
http://statistics.data.gov.uk/doc/local-authority/00DA,Leeds City Council,Adult Social Care,Services For Older People - 65 And Over,Third Party Payments,Home Care,568,06-May-11,1105-00867,703.11,R,Caremark (Leeds)
http://statistics.data.gov.uk/doc/local-authority/00DA,Leeds City Council,Adult Social Care,Services For Older People - 65 And Over,Third Party Payments,Home Care,568,06-May-11,1105-00868,913.5,R,Caremark (Leeds)
http://statistics.data.gov.uk/doc/local-authority/00DA,Leeds City Council,Adult Social Care,Services For Older People Under 65 P/Dis,Third Party Payments,Home Care,568,06-May-11,1105-00869,1398.44,R,Caremark (Leeds)
http://statistics.data.gov.uk/doc/local-authority/00DA,Leeds City Council,Adult Social Care,Services For Older People - 65 And Over,Third Party Payments,Home Care,568,06-May-11,1105-00870,1014.72,R,Caremark (Leeds)
http://statistics.data.gov.uk/doc/local-authority/00DA,Leeds City Council,Adult Social Care,Services For Older People - 65 And Over,Third Party Payments,Home Care,568,06-May-11,1105-00871,507.36,R,Caremark (Leeds)
http://statistics.data.gov.uk/doc/local-authority/00DA,Leeds City Council,Adult Social Care,Services For Older People Under 65 P/Dis,Third Party Payments,Home Care,568,06-May-11,1105-00872,588,R,Caremark (Leeds)
http://statistics.data.gov.uk/doc/local-authority/00DA,Leeds City Council,Adult Social Care,Services For Older People - 65 And Over,Third Party Payments,Home Care,568,06-May-11,1105-00873,572.75,R,Caremark (Leeds)
http://statistics.data.gov.uk/doc/local-authority/00DA,Leeds City Council,Adult Social Care,Services For Older People - 65 And Over,Third Party Payments,Home Care,568,06-May-11,1105-00874,1073,R,Caremark (Leeds)
http://statistics.data.gov.uk/doc/local-authority/00DA,Leeds City Council,Adult Social Care,Services For Older People - 65 And Over,Third Party Payments,Home Care,568,06-May-11,1105-00875,507.4,R,Caremark (Leeds)
http://statistics.data.gov.uk/doc/local-authority/00DA,Leeds City Council,Adult Social Care,Services For Older People - 65 And Over,Third Party Payments,Home Care,568,06-May-11,1105-00876,608.72,R,Caremark (Leeds)
http://statistics.data.gov.uk/doc/local-authority/00DA,Leeds City Council,Adult Social Care,Services For Adults Under 65 Mental/Dis,Third Party Payments,Home Care,568,06-May-11,1105-00877,1290.6,R,Caremark (Leeds)
http://statistics.data.gov.uk/doc/local-authority/00DA,Leeds City Council,Adult Social Care,Services For Older People - 65 And Over,Third Party Payments,Home Care,568,06-May-11,1105-00878,710.36,R,Caremark (Leeds)
http://statistics.data.gov.uk/doc/local-authority/00DA,Leeds City Council,Adult Social Care,Services For Older People - 65 And Over,Third Party Payments,Home Care,568,06-May-11,1105-00879,812,R,Caremark (Leeds)
http://statistics.data.gov.uk/doc/local-authority/00DA,Leeds City Council,Adult Social Care,Services For Older People - 65 And Over,Third Party Payments,Home Care,568,06-May-11,1105-00880,1970.72,R,Caremark (Leeds)
http://statistics.data.gov.uk/doc/local-authority/00DA,Leeds City Council,Adult Social Care,Services For Older People - 65 And Over,Third Party Payments,Home Care,568,06-May-11,1105-00881,1242,R,Caremark (Leeds)
http://statistics.data.gov.uk/doc/local-authority/00DA,Leeds City Council,Adult Social Care,Services For Older People - 65 And Over,Third Party Payments,Home Care,568,06-May-11,1105-00882,2030,R,Caremark (Leeds)
http://statistics.data.gov.uk/doc/local-authority/00DA,Leeds City Council,Adult Social Care,Services For Older People Under 65 P/Dis,Third Party Payments,Home Care,568,06-May-11,1105-00883,1485,R,Caremark (Leeds)
http://statistics.data.gov.uk/doc/local-authority/00DA,Leeds City Council,Adult Social Care,Services For Older People - 65 And Over,Third Party Payments,Home Care,568,06-May-11,1105-00884,1826.72,R,Caremark (Leeds)
http://statistics.data.gov.uk/doc/local-authority/00DA,Leeds City Council,Adult Social Care,Services For Older People Under 65 P/Dis,Third Party Payments,Home Care,568,06-May-11,1105-00885,1218,R,Caremark (Leeds)
http://statistics.data.gov.uk/doc/local-authority/00DA,Leeds City Council,Adult Social Care,Services For Older People Under 65 P/Dis,Third Party Payments,Home Care,568,06-May-11,1105-00886,938.77,R,Caremark (Leeds)
http://statistics.data.gov.uk/doc/local-authority/00DA,Leeds City Council,Adult Social Care,Services For Older People - 65 And Over,Third Party Payments,Home Care,568,06-May-11,1105-00887,609,R,Caremark (Leeds)
http://statistics.data.gov.uk/doc/local-authority/00DA,Leeds City Council,Adult Social Care,Services For Older People Under 65 P/Dis,Third Party Payments,Home Care,568,06-May-11,1105-00888,812,R,Caremark (Leeds)
http://statistics.data.gov.uk/doc/local-authority/00DA,Leeds City Council,Adult Social Care,Services For Older People - 65 And Over,Third Party Payments,Home Care,568,06-May-11,1105-00889,924.75,R,Caremark (Leeds)
http://statistics.data.gov.uk/doc/local-authority/00DA,Leeds City Council,Adult Social Care,Services For Older People - 65 And Over,Third Party Payments,Home Care,568,06-May-11,1105-00890,1826.72,R,Caremark (Leeds)
http://statistics.data.gov.uk/doc/local-authority/00DA,Leeds City Council,Adult Social Care,Services For Older People - 65 And Over,Third Party Payments,Home Care,568,06-May-11,1105-00891,2232.72,R,Caremark (Leeds)
http://statistics.data.gov.uk/doc/local-authority/00DA,Leeds City Council,Adult Social Care,Services For Older People - 65 And Over,Third Party Payments,Home Care,568,06-May-11,1105-00892,551,R,Caremark (Leeds)
http://statistics.data.gov.uk/doc/local-authority/00DA,Leeds City Council,Adult Social Care,Services For Older People - 65 And Over,Third Party Payments,Home Care,568,06-May-11,1105-00893,2436,R,Caremark (Leeds)
http://statistics.data.gov.uk/doc/local-authority/00DA,Leeds City Council,Adult Social Care,Services For Older People - 65 And Over,Third Party Payments,Home Care,568,06-May-11,1105-00894,2014.94,R,Caremark (Leeds)
http://statistics.data.gov.uk/doc/local-authority/00DA,Leeds City Council,Adult Social Care,Services For Older People - 65 And Over,Third Party Payments,Home Care,568,06-May-11,1105-00895,608.72,R,Caremark (Leeds)
http://statistics.data.gov.uk/doc/local-authority/00DA,Leeds City Council,Adult Social Care,Services For Older People Under 65 P/Dis,Third Party Payments,Home Care,568,06-May-11,1105-00896,1826.72,R,Caremark (Leeds)
http://statistics.data.gov.uk/doc/local-authority/00DA,Leeds City Council,Adult Social Care,Services For Older People - 65 And Over,Third Party Payments,Home Care,568,06-May-11,1105-00897,986,R,Caremark (Leeds)
http://statistics.data.gov.uk/doc/local-authority/00DA,Leeds City Council,Adult Social Care,Services For Older People Under 65 P/Dis,Third Party Payments,Home Care,568,06-May-11,1105-00898,2030,R,Caremark (Leeds)
http://statistics.data.gov.uk/doc/local-authority/00DA,Leeds City Council,Adult Social Care,Services For Older People - 65 And Over,Third Party Payments,Home Care,568,06-May-11,1105-00899,749.25,R,Caremark (Leeds)
http://statistics.data.gov.uk/doc/local-authority/00DA,Leeds City Council,Adult Social Care,Services For Older People - 65 And Over,Third Party Payments,Home Care,568,06-May-11,1105-00900,1809,R,Caremark (Leeds)
http://statistics.data.gov.uk/doc/local-authority/00DA,Leeds City Council,Adult Social Care,Services For Older People Under 65 P/Dis,Third Party Payments,Home Care,568,06-May-11,1105-00901,1761.54,R,Caremark (Leeds)
http://statistics.data.gov.uk/doc/local-authority/00DA,Leeds City Council,Adult Social Care,Services For Older People - 65 And Over,Third Party Payments,Home Care,568,06-May-11,1105-00902,472.36,R,Caremark (Leeds)
http://statistics.data.gov.uk/doc/local-authority/00DA,Leeds City Council,Adult Social Care,Services For Older People - 65 And Over,Third Party Payments,Home Care,568,06-May-11,1105-00903,2029.44,R,Caremark (Leeds)
http://statistics.data.gov.uk/doc/local-authority/00DA,Leeds City Council,Adult Social Care,Services For Older People - 65 And Over,Third Party Payments,Home Care,568,06-May-11,1105-00904,870,R,Caremark (Leeds)
http://statistics.data.gov.uk/doc/local-authority/00DA,Leeds City Council,Adult Social Care,Services For Older People - 65 And Over,Third Party Payments,Home Care,568,06-May-11,1105-00905,666.72,R,Caremark (Leeds)
http://statistics.data.gov.uk/doc/local-authority/00DA,Leeds City Council,Adult Social Care,Services For Older People Under 65 P/Dis,Third Party Payments,Home Care,568,06-May-11,1105-00906,840.84,R,Caremark (Leeds)
